Workbook

Sheet Introduction
B2: Mise à jour automatique des données - version 2024-03 → il se peut que l'ouverture prenne légèrement plus de temps qu'auparavant - en cas de soucis, n'hésitez pas à retélécharger l'outil sur notre site internet →
B4: A ce jour, les données de RevTool ne remontent que jusqu'au 1er janvier 2018 !
C5: L'outil de suivi de l'évolution des prix dans le secteur de la construction. Attention ! Cet outil n'est pas un instrument juridique, mais bien un outil de calcul.
C7: Découvrez l'outil en 4 étapes !
B17: Profitez des feuilles bonus : Elles sont cachées par défaut, cliquez sur les boutons blancs afin de les faire apparaître
C18: Feuille | D18: Cette feuille résume l'évolution des prix sur plusieurs périodes d'analyses. Les résultats visibles correspondent à l'application de la formule de révision des prix calculée chaque mois selon les paramètres encodés dans la feuille « Formule de révision courante ». (indice matériaux, indice salaire, coefficients)
D19: Vous pouvez également faire une prévision sur cette feuille de ce que le prix pourrait être après un certain laps de temps (si le démarrage du projet n’est prévu que pour dans 10 mois par exemple).
D20: Veuillez noter, cependant, que les résultats de ce procédé sont estimatifs. Nous ne sommes malheureusement pas en mesure de prévoir l’évolution future des prix.
C22: Feuille | D22: Cette feuille de calcul vous offre la fonctionnalité de vérifier rapidement des cumuls de remises ou d'augmentations de prix.
D23: Vérifiez rapidement quels pourcentages de majoration (fi) il ne faut pas dépasser afin de ne pas atteindre les prix publics HTVA de vos fournisseurs.
D24: Vous pouvez calculer l’impact final sur le budget du client en appliquant l’évolution de prix comme première majoration et le taux de TVA applicable comme seconde majoration. De ce fait vous pourrez connaître la différence entre le budget final du client par rapport au budget initial en les comparant.
C26: Feuilles | D26: Ces feuilles de calcul sont disponibles pour votre information et sont les banques de données sur lesquelles sont notamment basées les autres feuilles de calcul.
D27: Vous pouvez les consulter si une analyse plus approfondie vous intéresse.
D28: Ces feuilles sont mises à jour au moins une fois par mois.
C30: Nous attirons votre attention que l'indexation des prix n'est pas automatique. Le prix convenu avec le client doit être respecté et ne peut être adapté unilatéralement
C32: Dans certains cas, les documents contratuels ou du marché prévoient l'utilisation d'une formule de révision qui permet de valoriser une évolution des prix des matériaux et de la main d'oeuvre (à la hausse comme à la baisse)
C34: RevTool a été conçu par Buildwise afin de sensibiliser ses membres à l’impact de l’évolution des prix dans le secteur de la construction. Buildwise ne peut cependant être tenu responsable de l’application pour un marché spécifique des calculs réalisées. Ceux-ci dépendent toujours des documents du marché. Buildwise n’offre aucune garantie explicite ou implicite et la garantie d’adéquation à un usage bien déterminé est d’ailleurs exclue. L’utilisateur vérifiera si les résultats ainsi obtenus peuvent être utilisés dans le cadre de ses objectifs et les testera toujours à l’aide d’autres moyens. Il est seul responsable de leur exactitude. Buildwise ne garantit toutefois pas que RevTool est totalement exempt de bugs ou d’erreurs. Buildwise fera tous les efforts raisonnables pour garantir le bon fonctionnement de l’application.
C40: Pour toute question relative à l'outil et à son utilisation, contactez la division "Gestion & Qualité" de Buildwise
C41: gebe@buildwise.be | D41: https://www.buildwise.be/fr/expertise-soutien/gestion-bim/
C43: Pour toute question juridique sur l'application des formules de révision, contactez Embuild :
C44: https://embuild.be/fr
C52: Vers les conditions juridiques de Buildwise

Sheet Graphique évolution des indices
B2: Cette feuille vous permet de disposer d'une vue graphique de l'évolution de l'ensemble des indices de prix disponibles dans l'outil en utilisant la fontionnalité du filtre du graphique. Utiliser la fonctionnalité du filtre : cliquer sur le graphique, puis sélectionner le 3ème symbole qui apparaît dans le coin supérieur droit, à l'extérieur de celui-ci. (en forme d'entonnoir) Vous pouvez dès lors sélectionner les données et périodes que vous désirez faire apparâitre / disparaître. (N'oubliez pas de cliquer sur "appliquer", tout en bas de la fenêtre)
A6: ← | B6: cliquer sur "+" / "-" → "montrer" / "cacher" l'introduction → Que puis-je faire dans cette feuille ?
L110: Type de matériau | M110: Matériaux pierreux naturels et sables | AK110: Métaux | BR110: Bois | BV110: Terre cuite | BZ110: Ciment | CD110: Produits en béton | CK110: Produits combustibles et bitumineux | CV110: Matières plastiques | DE110: GRYMAFER | DI110: Electricité indice à la consommation Statbel 04.5.1.0 | DJ110: Gaz naturel indice à la consommation Statbel 04.5.2.1 | DK110: Eau indice à la consommation Statbel 04.4.1.0 | DL110: IPC Indice des prix à la consommation (Statbel) | DM110: Inflation générale (Statbel) | DN110: Indice Santé (Statbel) | DO110: Indice Production dans la construction (Statbel) | DP110: Indice Loyers (Statbel) | DS110: Services | EE110: Secteurs
B111: Période | C111: indice "i" | D111: indice "i2021" | E111: indice "K1" | F111: indice "K2" | G111: indice "M" | H111: indice "MM" | I111: Evolution des prix selon formule de révision - indice i 2021 | J111: Evolution des prix selon formule de révision - indice i | K111: Augmentation mois par mois - selon indice i 2021 | L111: Augmentation mois par mois - selon indice i | M111: TP 101 - porphyre concassé - 40/56 | N111: TP 102 - porphyre concassé - 20/32 | O111: TP 103 - porphyre concassé - 6/20 | P111: TP 104 - porphyre concassé - 2/6 | Q111: TP 109 - grès concassé - 32/56 | R111: TP 110 - grès concassé - 20/32 | S111: TP 111 - grès concassé - 6/20 | T111: TP 112 - grès concassé - 2/6 | U111: TP 117 - pierres calcaires du Tournaisis - 20/32 | V111: TP 118 - pierres calcaires du Tournaisis - 14/20 | W111: TP 119 - pierres calcaires du Tournaisis - 6/14 | X111: TP 120 - pierres calcaires du Tournaisis - 2/6 | Y111: TP 121 - pierres calcaires du Tournaisis - 0/2 - 0/4 | Z111: TP 130 - sables belges - de pavage | AA111: TP 131 - sables belges - pour béton | AB111: TP 132 - graviers de rivières belges - gravier 4/28 | AC111: TP 133 - graviers de rivières belges - sable de Meuse | AD111: TP 134 - graviers de rivières belges - concassé 2/6 | AE111: TP 135 - graviers de rivières belges - concassé 6/20 | AF111: TP 136 - graviers de rivières belges - concassé 2/32 | AG111: TP 137 - graviers importés par bateau - vers Bruxelles | AH111: TP 137² - graviers importés par bateau - vers Anvers | AI111: TP 138 - sables importés par bateau - vers Bruxelles | AJ111: TP 138² - sables importés par bateau - vers Anvers | AK111: TP 205 - tôles minces laminées à froid - 1mm | AL111: TP 210 - profilés - aciers AE 355 D | AM111: TP 211 - aciers marchands - aciers courants AE 235 A | AN111: TP 212 - tôles fortes - aciers AE 355 D | AO111: TP 213 - profilés - aciers AE 235 C | AP111: TP 215 - tôles fortes - aciers AE 235 A | AQ111: TP 216 - tôles moyennes - aciers courants A 320 | AR111: TP 217 - profilés - aciers courants AE 235 A | AS111: TP 218 - ronds à béton - BE 500 crênelés | AT111: TP 219 - aciers marchands - aciers AE 355 C | AU111: TP 220 - tôles fortes - aciers courants A 320 | AV111: TP 221 - tôles minces laminées à chaud - aciers courants A 320 - 1,5 mm | AW111: TP 222 - tôles minces laminées à chaud - aciers courants A 320 - 2 mm | AX111: TP 223 - tôles minces laminées à chaud - aciers courants A 320 - 2,75 mm | AY111: TP 224 - ronds à béton - diam. 10 à 40 mm | AZ111: TP 226 - palplanches - profilés AZ 18 - PAE 320 | BA111: TP 227 - fonte de moulage - fonte | BB111: TP 230 - Acier - Aciers Marchands | BC111: TP 231 - Acier - Poutrelles H | BD111: TP 232 - Acier - Tôles | BE111: TP 233 - Acier - Bobines laminées à chaud | BF111: TP 234 - Acier - Bobines laminées à froid | BG111: TP 235 - Acier - Galvanisé | BH111: TP 236 - Aciers inoxydables 304 - bobines laminées à froid | BI111: TP 259 - plomb ordinaire | BJ111: TP 260 - cuivre électrolytique | BK111: TP 260 bis - cuivre - brut | BL111: TP 261 - zinc - laminé | BM111: TP 261 bis - zinc brut | BN111: TP 262 - aluminium - tôles en alliage 1050 (1m x 2m) - ép. 1 à 3 mm | BO111: TP 262 bis - aluminium - brut | BP111: TP 262 ter - tôles aluminium | BQ111: TP 263 - nickel brut | BR111: TP 339 - bois de sciage epicea - epicea indigene V - 2½ x 7 - charpente | BS111: TP 340 - bois de sciage epicea - epicea indigene V - 4/4 x 4 - voliges | BT111: TP 341 - bois de sciage pin du nord - pin du nord V - 2½ x 7 - charpente | BU111: TP 342 - bois de sciage pin du nord - pin du nord V - 4/4 x 4 - voliges | BV111: TP 442 - blocs terre cuite perforés - L : 290 / l : 140 /h : 90 | BW111: TP 443 - blocs terre cuite perforés - L : 290 / l : 140 / h : 140 | BX111: TP 445 - briques de maçonnerie - ordinaire : L : 190 / l : 09 / h : 65 | BY111: TP 448 - briques de maçonnerie - à la main : L : 190 / l : 90 / h : 50 - argile locale | BZ111: TP 462 - ciment - classe 32,5 | CA111: TP 464 - ciment - classe 42,5 | CB111: TP 466 - ciment - classe 52,5 | CC111: TP 467 - ciment - en sacs | CD111: TP 470 - produits béton pour la voirie - carreaux - 30/30/6 cm | CE111: TP 475 - produits béton pour la voirie - pavés - 22/11/10 cm | CF111: TP 476 - produits béton pour le bâtiment - blocs creux - classe p 0,8 - 39/19/19 | CG111: TP 477 - produits béton pour le bâtiment - blocs pleins - classe p 2,2 - 39/19/19 | CH111: TP 480 - produits béton pour la voirie - bordures 21-411 type 1A - 100/35/15 | CI111: TP 486 - produits béton pour la voirie - tuyaux non armés - L : 2,5 m - diam. 80cm | CJ111: TP 486² - produits béton pour la voirie - tuyaux non armés - L : 2 m - diam. 80cm | CK111: TP 549 - Diesel B7 à la pompe - 10 ppm | CL111: TP 549² - Diesel B7 à la pompe - 50 ppm | CM111: TP 549³ - Diesel B7 à la pompe | CN111: TP 550 - Gazoil chauffage - 1000 ppm | CO111: TP 550² - Gazoil chauffage - 2000 ppm | CP111: TP 551 - Eurosuper 95 à la pompe - 10 ppm | CQ111: TP 551² - Eurosuper 95 à la pompe - 50 ppm | CR111: TP 551³ - Eurosuper 95 à la pompe | CS111: TP 552 - LPG | CT111: TP 563 - Bitume pétrolier - fûts | CU111: TP 564 - Bitume pétrolier - vrac | CV111: TP 671 - polyester (UP) - non saturé liquide | CW111: TP 672 - PVC - chlorure de polyvinyl | CX111: TP 673 - polyéthylène basse densité - PE/LD basse densité | CY111: TP 674 - polyéthylène haute densité - PE/HD haute densité | CZ111: TP 675 - tubes polyéthylène - PE/HD haute densité | DA111: TP 680 - PVC - tuyaux | DB111: TP 681 - PELD - film | DC111: TP 683 - PEHD - moulage par injection | DD111: TP 684 - PP - polypropylène (homopolymère) | DE111: Ronds à béton - GRYMAFER - RSR | DF111: Fil à froid - GRYMAFER - FKC | DG111: Fil à chaud - GRYMAFER - CWH | DH111: Treillis - GRYMAFER - TNM | DI111: Electricité - Statbel - 04.5.1.0 | DJ111: Gaz naturel - Statbel - 04.5.2.1 | DK111: Eau - Statbel - 04.4.1.0 | DL111: Indice des prix à la consommation (IPC) Statbel | DM111: Indice de l'inflation Statbel | DN111: Indice santé Statbel | DO111: Indice de production pour secteur de la Construction - Statbel | DP111: Indice Loyers - Statbel | DR111: période | DS111: Transports routiers de fret | DT111: Transports maritimes et côtiers de fret | DU111: Entreposage et stockage | DV111: Manutention | DW111: Poste et courrier (autres activités) | DX111: Télécommunications | DY111: Informatique - programmation, conseil et autres activités informatiques | DZ111: Architecture, ingénieurie; activités de contrôle et analyses techniques | EA111: Publicité et études de marché | EB111: Emploi - activités liées à l'emploi | EC111: Enquêtes privées et sécurité | ED111: Nettoyage (activités) | EE111: Energie | EF111: Métallurgie et travail des métaux | EG111: Fabrications métalliques | EH111: Appareils électriques, machines électroniques, équipements de radio, TV et communication (fabrication) | EI111: Industries extractives (autres) | EJ111: Pierres, sables & argiles (extraction) | EK111: Pierres ornementales et de construction, de pierres calcaires, de gypse, de craie et d'ardoise (extraction) | EL111: Exploitation gravières et sablières, extraction d'argiles et de kaolin | EM111: thé et café (transformation) | EN111: Bière (fabrication) | EO111: Tapis et moquettes (Fabrication) | EP111: Vêtements de travail (fabrication) | EQ111: Travail du bois et fabrication d'articles en bois et en liège, à l'exception des meubles; fabrication d'articles en vannerie et sparterie | ER111: Sciage et rabotage du bois | ES111: Articles en bois, liège, vannerie et sparterie (fabrication) | ET111: Placage et panneaux bois (fabrication) | EU111: Charpentes et autres menuiseries (fabrication) | EV111: Papier et carton (industrie) | EW111: Rafinage du pétrole | EX111: Industrie chimique | EY111: Produits chimiques de base, de produits azotés et d'engrais, de matières plastiques de base et de caoutchouc synthétique (fabrication) | EZ111: Colorants et pigments (fabrication) | FA111: Autres produits chimiques inorganiques de base (fabrication) | FB111: Matières plastiques de base (fabrication) | FC111: Peintures, mastics, vernis, encres (fabrication) | FD111: Caoutchouc et plastique (fabrication de produits) | FE111: Caoutchouc (fabrication de produits) | FF111: Plastique (fabrication de produits) | FG111: Plastique : plaques, feuilles, tubes et profilés (fabrication en matière plastique) | FH111: Emballages plastiques (fabrication) | FI111: Eléments plastiques pour la construction (fabrication) | FJ111: Autres produits minéraux non métalliques (fabrication) | FK111: Verre et articles en verre (fabrication) | FL111: Verre plat (façonnage et transformation) | FM111: Terre cuite (Fabrication de matériaux de construction) | FN111: Briques, tuiles et produits de construction en terre cuite (fabrication) | FO111: Ciment, chaux et plâtre (fabrication) | FP111: Ciment (fabrication) | FQ111: Ouvrages en béton, ciment ou plâtre (fabrication) | FR111: Eléments en béton pour la construction (fabrication) | FS111: Béton prêt à l'emploi (fabrication) | FT111: Autres ouvrages béton, ciment ou plâtre (fabrication) | FU111: Pierre : taille, façonnage et finissage | FV111: Produits abrasifs et de produits minéraux non métalliques n.c.a. (fabrication) | FW111: Métallurgie | FX111: Sidérurgie | FY111: Acier : autres produits de première transformation (fabrication) | FZ111: Tréfilage à froid | GA111: Métaux précieux et d'autres métaux non ferreux (Production) | GB111: Cuivre (Métallurgie) | GC111: Fonderie de métaux | GD111: Fonderie de fonte | GE111: Produits métalliques, à l'exception des machines et des équipements (fabrication) | GF111: Eléments en métal pour la construction (fabrication) | GG111: Structures métalliques et parties de structures (fabrication) | GH111: Portes et fenêtres métalliques (fabrication) | GI111: Réservoirs, citernes et conteneurs métalliques (fabrication) | GJ111: Radiateurs et chaudières pour le chauffage central (fabrication) | GK111: Produits informatiques, électroniques et optiques (fabrication) | GL111: Equipements de communication (fabrication) | GM111: Equipements électriques (fabrication) | GN111: Fils, câbles et matériel d'installation électrique (fabrication) | GO111: Matériel d'installation électrique (fabrication) | GP111: Lampes et appareils d'éclairage électrique (fabrication) | GQ111: Appareils ménagers (fabrication) | GR111: Machines et équipements n.c.a. (fabrication) | GS111: Matériel de levage et de manutention (fabrication) | GT111: Véhicules automobiles, de remorques et de semi-remorques (Construction et assemblage) | GU111: Meubles (fabrication) | GV111: Meubles de bureau et de magasin (fabrication) | GW111: Meubles de cuisine (fabrication) | GX111: Autres industries manufacturières | GY111: Machines (réparation et installation) & installations | GZ111: Electricité, gaz, vapeur et air conditionné (Production et distribution) | HA111: Electricité (Production, transport et distribution) | HB111: Gaz (production et distribution de combustibles gazeux) | HC111: Eau (captage, traitement et distribution d'eau) | HE111: Période | HF111: indice "s" - cat A (< 10 p) | HG111: indice "s" - cat A (de 10 à 19 p) | HH111: indice "s" - cat A (≥ 20 p) | HI111: indice "s" - cat B (< 10 p) | HJ111: indice "s" - cat B (de 10 à 19 p) | HK111: indice "s" - cat B (≥ 20 p) | HL111: indice "s" - cat C (< 10 p) | HM111: indice "s" - cat C (de 10 à 19 p) | HN111: indice "s" - cat C (≥ 20 p) | HO111: indice "s" - cat D (< 10 p) | HP111: indice "s" - cat D (de 10 à 19 p) | HQ111: indice "s" - cat D (≥ 20 p) | HR111: indice "s" - électriciens (< 10 p) | HS111: indice "s" - électriciens (≥ 10 p) | HT111: Indice T0 - asphalteurs | HU111: Indice T1 - asphalteurs | HV111: Indice T2 - asphalteurs | HW111: Indice T3 - asphalteurs | HX111: Indice T4 - asphalteurs | HY111: Indice T5 - asphalteurs | HZ111: Evolution des prix selon formule de révision - indice i 2021 | IA111: Evolution des prix selon formule de révision - indice i | IB111: Formule de révision - indice i 2021 | IC111: Formule de révision - indice i | ID111: CP 124 - construction - ouvriers | IE111: CP 200 - employés | IF111: CP 149.01 - électriciens - ouvriers | IG111: CP 116.0001 - Industrie chimique - manœuvres | IH111: CP 121 - Nettoyage - ouvriers | II111: CP 111.0003 - Construction métallique - ouvriers | IJ111: CP 209 - Construction métallique - employés | IK111: CP 126 - Transformation bois - ouvriers | IL111: CP 126 - Transformation bois - employés | IM111: CP 115.0003 - miroiterie - ouvriers
B112: ='Indices courants'!C29 -> 2018-01-01 | C112: =IFERROR(IF('Indices courants'!D29/'Indices courants'!D$29=0,NA(),'Indices courants'!D29/'Indices courants'!D$29),NA()) -> 1 | D112: =IFERROR(IF('Indices courants'!E29/'Indices courants'!E$29=0,NA(),'Indices courants'!E29/'Indices courants'!E$29),NA()) -> 1 | E112: =IFERROR(IF('Indices courants'!F29/'Indices courants'!F$29=0,NA(),'Indices courants'!F29/'Indices courants'!F$29),NA()) -> 1 | F112: =IFERROR(IF('Indices courants'!G29/'Indices courants'!G$29=0,NA(),'Indices courants'!G29/'Indices courants'!G$29),NA()) -> 1 | G112: =IFERROR(IF('Indices courants'!H29/'Indices courants'!H$29=0,NA(),'Indices courants'!H29/'Indices courants'!H$29),NA()) -> 1 | H112: =IFERROR(IF('Indices courants'!I29/'Indices courants'!I$29=0,NA(),'Indices courants'!I29/'Indices courants'!I$29),NA()) -> 1 | I112: 1 | J112: 1 | K112: 1 | L112: 1 | M112: =IFERROR(IF('Indices T.P. matériaux'!C33/'Indices T.P. matériaux'!C$33=0,NA(),'Indices T.P. matériaux'!C33/'Indices T.P. matériaux'!C$33),NA()) -> 1 | N112: =IFERROR(IF('Indices T.P. matériaux'!D33/'Indices T.P. matériaux'!D$33=0,NA(),'Indices T.P. matériaux'!D33/'Indices T.P. matériaux'!D$33),NA()) -> 1 | O112: =IFERROR(IF('Indices T.P. matériaux'!E33/'Indices T.P. matériaux'!E$33=0,NA(),'Indices T.P. matériaux'!E33/'Indices T.P. matériaux'!E$33),NA()) -> 1 | P112: =IFERROR(IF('Indices T.P. matériaux'!F33/'Indices T.P. matériaux'!F$33=0,NA(),'Indices T.P. matériaux'!F33/'Indices T.P. matériaux'!F$33),NA()) -> 1 | Q112: =IFERROR(IF('Indices T.P. matériaux'!G33/'Indices T.P. matériaux'!G$33=0,NA(),'Indices T.P. matériaux'!G33/'Indices T.P. matériaux'!G$33),NA()) -> 1 | R112: =IFERROR(IF('Indices T.P. matériaux'!H33/'Indices T.P. matériaux'!H$33=0,NA(),'Indices T.P. matériaux'!H33/'Indices T.P. matériaux'!H$33),NA()) -> 1 | S112: =IFERROR(IF('Indices T.P. matériaux'!I33/'Indices T.P. matériaux'!I$33=0,NA(),'Indices T.P. matériaux'!I33/'Indices T.P. matériaux'!I$33),NA()) -> 1 | T112: =IFERROR(IF('Indices T.P. matériaux'!J33/'Indices T.P. matériaux'!J$33=0,NA(),'Indices T.P. matériaux'!J33/'Indices T.P. matériaux'!J$33),NA()) -> 1 | U112: =IFERROR(IF('Indices T.P. matériaux'!K33/'Indices T.P. matériaux'!K$33=0,NA(),'Indices T.P. matériaux'!K33/'Indices T.P. matériaux'!K$33),NA()) -> 1 | V112: =IFERROR(IF('Indices T.P. matériaux'!L33/'Indices T.P. matériaux'!L$33=0,NA(),'Indices T.P. matériaux'!L33/'Indices T.P. matériaux'!L$33),NA()) -> 1 | W112: =IFERROR(IF('Indices T.P. matériaux'!M33/'Indices T.P. matériaux'!M$33=0,NA(),'Indices T.P. matériaux'!M33/'Indices T.P. matériaux'!M$33),NA()) -> 1 | X112: =IFERROR(IF('Indices T.P. matériaux'!N33/'Indices T.P. matériaux'!N$33=0,NA(),'Indices T.P. matériaux'!N33/'Indices T.P. matériaux'!N$33),NA()) -> 1 | Y112: =IFERROR(IF('Indices T.P. matériaux'!O33/'Indices T.P. matériaux'!O$33=0,NA(),'Indices T.P. matériaux'!O33/'Indices T.P. matériaux'!O$33),NA()) -> 1 | Z112: =IFERROR(IF('Indices T.P. matériaux'!P33/'Indices T.P. matériaux'!P$33=0,NA(),'Indices T.P. matériaux'!P33/'Indices T.P. matériaux'!P$33),NA()) -> 1 | AA112: =IFERROR(IF('Indices T.P. matériaux'!Q33/'Indices T.P. matériaux'!Q$33=0,NA(),'Indices T.P. matériaux'!Q33/'Indices T.P. matériaux'!Q$33),NA()) -> 1 | AB112: =IFERROR(IF('Indices T.P. matériaux'!R33/'Indices T.P. matériaux'!R$33=0,NA(),'Indices T.P. matériaux'!R33/'Indices T.P. matériaux'!R$33),NA()) -> 1 | AC112: =IFERROR(IF('Indices T.P. matériaux'!S33/'Indices T.P. matériaux'!S$33=0,NA(),'Indices T.P. matériaux'!S33/'Indices T.P. matériaux'!S$33),NA()) -> 1 | AD112: =IFERROR(IF('Indices T.P. matériaux'!T33/'Indices T.P. matériaux'!T$33=0,NA(),'Indices T.P. matériaux'!T33/'Indices T.P. matériaux'!T$33),NA()) -> 1 | AE112: =IFERROR(IF('Indices T.P. matériaux'!U33/'Indices T.P. matériaux'!U$33=0,NA(),'Indices T.P. matériaux'!U33/'Indices T.P. matériaux'!U$33),NA()) -> 1 | AF112: =IFERROR(IF('Indices T.P. matériaux'!V33/'Indices T.P. matériaux'!V$33=0,NA(),'Indices T.P. matériaux'!V33/'Indices T.P. matériaux'!V$33),NA()) -> 1 | AG112: =IFERROR(IF('Indices T.P. matériaux'!W33/'Indices T.P. matériaux'!W$33=0,NA(),'Indices T.P. matériaux'!W33/'Indices T.P. matériaux'!W$33),NA()) -> 1 | AH112: =IFERROR(IF('Indices T.P. matériaux'!X33/'Indices T.P. matériaux'!X$33=0,NA(),'Indices T.P. matériaux'!X33/'Indices T.P. matériaux'!X$33),NA()) -> 1 | AI112: =IFERROR(IF('Indices T.P. matériaux'!Y33/'Indices T.P. matériaux'!Y$33=0,NA(),'Indices T.P. matériaux'!Y33/'Indices T.P. matériaux'!Y$33),NA()) -> 1 | AJ112: =IFERROR(IF('Indices T.P. matériaux'!Z33/'Indices T.P. matériaux'!Z$33=0,NA(),'Indices T.P. matériaux'!Z33/'Indices T.P. matériaux'!Z$33),NA()) -> 1 | AK112: =IFERROR(IF('Indices T.P. matériaux'!AA33/'Indices T.P. matériaux'!AA$33=0,NA(),'Indices T.P. matériaux'!AA33/'Indices T.P. matériaux'!AA$33),NA()) -> 1 | AL112: =IFERROR(IF('Indices T.P. matériaux'!AB33/'Indices T.P. matériaux'!AB$33=0,NA(),'Indices T.P. matériaux'!AB33/'Indices T.P. matériaux'!AB$33),NA()) -> 1 | AM112: =IFERROR(IF('Indices T.P. matériaux'!AC33/'Indices T.P. matériaux'!AC$33=0,NA(),'Indices T.P. matériaux'!AC33/'Indices T.P. matériaux'!AC$33),NA()) -> 1 | AN112: =IFERROR(IF('Indices T.P. matériaux'!AD33/'Indices T.P. matériaux'!AD$33=0,NA(),'Indices T.P. matériaux'!AD33/'Indices T.P. matériaux'!AD$33),NA()) -> 1 | AO112: =IFERROR(IF('Indices T.P. matériaux'!AE33/'Indices T.P. matériaux'!AE$33=0,NA(),'Indices T.P. matériaux'!AE33/'Indices T.P. matériaux'!AE$33),NA()) -> 1 | AP112: =IFERROR(IF('Indices T.P. matériaux'!AF33/'Indices T.P. matériaux'!AF$33=0,NA(),'Indices T.P. matériaux'!AF33/'Indices T.P. matériaux'!AF$33),NA()) -> 1 | AQ112: =IFERROR(IF('Indices T.P. matériaux'!AG33/'Indices T.P. matériaux'!AG$33=0,NA(),'Indices T.P. matériaux'!AG33/'Indices T.P. matériaux'!AG$33),NA()) -> 1 | AR112: =IFERROR(IF('Indices T.P. matériaux'!AH33/'Indices T.P. matériaux'!AH$33=0,NA(),'Indices T.P. matériaux'!AH33/'Indices T.P. matériaux'!AH$33),NA()) -> 1 | AS112: =IFERROR(IF('Indices T.P. matériaux'!AI33/'Indices T.P. matériaux'!AI$33=0,NA(),'Indices T.P. matériaux'!AI33/'Indices T.P. matériaux'!AI$33),NA()) -> 1 | AT112: =IFERROR(IF('Indices T.P. matériaux'!AJ33/'Indices T.P. matériaux'!AJ$33=0,NA(),'Indices T.P. matériaux'!AJ33/'Indices T.P. matériaux'!AJ$33),NA()) -> 1 | AU112: =IFERROR(IF('Indices T.P. matériaux'!AK33/'Indices T.P. matériaux'!AK$33=0,NA(),'Indices T.P. matériaux'!AK33/'Indices T.P. matériaux'!AK$33),NA()) -> 1 | AV112: =IFERROR(IF('Indices T.P. matériaux'!AL33/'Indices T.P. matériaux'!AL$33=0,NA(),'Indices T.P. matériaux'!AL33/'Indices T.P. matériaux'!AL$33),NA()) -> 1 | AW112: =IFERROR(IF('Indices T.P. matériaux'!AM33/'Indices T.P. matériaux'!AM$33=0,NA(),'Indices T.P. matériaux'!AM33/'Indices T.P. matériaux'!AM$33),NA()) -> 1 | AX112: =IFERROR(IF('Indices T.P. matériaux'!AN33/'Indices T.P. matériaux'!AN$33=0,NA(),'Indices T.P. matériaux'!AN33/'Indices T.P. matériaux'!AN$33),NA()) -> 1 | AY112: =IFERROR(IF('Indices T.P. matériaux'!AO33/'Indices T.P. matériaux'!AO$33=0,NA(),'Indices T.P. matériaux'!AO33/'Indices T.P. matériaux'!AO$33),NA()) -> 1 | AZ112: =IFERROR(IF('Indices T.P. matériaux'!AP33/'Indices T.P. matériaux'!AP$33=0,NA(),'Indices T.P. matériaux'!AP33/'Indices T.P. matériaux'!AP$33),NA()) -> 1 | BA112: =IFERROR(IF('Indices T.P. matériaux'!AQ33/'Indices T.P. matériaux'!AQ$33=0,NA(),'Indices T.P. matériaux'!AQ33/'Indices T.P. matériaux'!AQ$33),NA()) -> 1 | BB112: =IFERROR(IF('Indices T.P. matériaux'!AR33/'Indices T.P. matériaux'!AR$33=0,NA(),'Indices T.P. matériaux'!AR33/'Indices T.P. matériaux'!AR$33),NA()) ->  | BC112: =IFERROR(IF('Indices T.P. matériaux'!AS33/'Indices T.P. matériaux'!AS$33=0,NA(),'Indices T.P. matériaux'!AS33/'Indices T.P. matériaux'!AS$33),NA()) ->  | BD112: =IFERROR(IF('Indices T.P. matériaux'!AT33/'Indices T.P. matériaux'!AT$33=0,NA(),'Indices T.P. matériaux'!AT33/'Indices T.P. matériaux'!AT$33),NA()) ->  | BE112: =IFERROR(IF('Indices T.P. matériaux'!AU33/'Indices T.P. matériaux'!AU$33=0,NA(),'Indices T.P. matériaux'!AU33/'Indices T.P. matériaux'!AU$33),NA()) ->  | BF112: =IFERROR(IF('Indices T.P. matériaux'!AV33/'Indices T.P. matériaux'!AV$33=0,NA(),'Indices T.P. matériaux'!AV33/'Indices T.P. matériaux'!AV$33),NA()) ->  | BG112: =IFERROR(IF('Indices T.P. matériaux'!AW33/'Indices T.P. matériaux'!AW$33=0,NA(),'Indices T.P. matériaux'!AW33/'Indices T.P. matériaux'!AW$33),NA()) ->  | BH112: =IFERROR(IF('Indices T.P. matériaux'!AX33/'Indices T.P. matériaux'!AX$33=0,NA(),'Indices T.P. matériaux'!AX33/'Indices T.P. matériaux'!AX$33),NA()) ->  | BI112: =IFERROR(IF('Indices T.P. matériaux'!AY33/'Indices T.P. matériaux'!AY$33=0,NA(),'Indices T.P. matériaux'!AY33/'Indices T.P. matériaux'!AY$33),NA()) -> 1 | BJ112: =IFERROR(IF('Indices T.P. matériaux'!AZ33/'Indices T.P. matériaux'!AZ$33=0,NA(),'Indices T.P. matériaux'!AZ33/'Indices T.P. matériaux'!AZ$33),NA()) -> 1 | BK112: =IFERROR(IF('Indices T.P. matériaux'!BA33/'Indices T.P. matériaux'!BA$33=0,NA(),'Indices T.P. matériaux'!BA33/'Indices T.P. matériaux'!BA$33),NA()) -> 1 | BL112: =IFERROR(IF('Indices T.P. matériaux'!BB33/'Indices T.P. matériaux'!BB$33=0,NA(),'Indices T.P. matériaux'!BB33/'Indices T.P. matériaux'!BB$33),NA()) -> 1 | BM112: =IFERROR(IF('Indices T.P. matériaux'!BC33/'Indices T.P. matériaux'!BC$33=0,NA(),'Indices T.P. matériaux'!BC33/'Indices T.P. matériaux'!BC$33),NA()) -> 1 | BN112: =IFERROR(IF('Indices T.P. matériaux'!BD33/'Indices T.P. matériaux'!BD$33=0,NA(),'Indices T.P. matériaux'!BD33/'Indices T.P. matériaux'!BD$33),NA()) -> 1 | BO112: =IFERROR(IF('Indices T.P. matériaux'!BE33/'Indices T.P. matériaux'!BE$33=0,NA(),'Indices T.P. matériaux'!BE33/'Indices T.P. matériaux'!BE$33),NA()) -> 1 | BP112: =IFERROR(IF('Indices T.P. matériaux'!BF33/'Indices T.P. matériaux'!BF$33=0,NA(),'Indices T.P. matériaux'!BF33/'Indices T.P. matériaux'!BF$33),NA()) ->  | BQ112: =IFERROR(IF('Indices T.P. matériaux'!BG33/'Indices T.P. matériaux'!BG$33=0,NA(),'Indices T.P. matériaux'!BG33/'Indices T.P. matériaux'!BG$33),NA()) -> 1 | BR112: =IFERROR(IF('Indices T.P. matériaux'!BH33/'Indices T.P. matériaux'!BH$33=0,NA(),'Indices T.P. matériaux'!BH33/'Indices T.P. matériaux'!BH$33),NA()) -> 1 | BS112: =IFERROR(IF('Indices T.P. matériaux'!BI33/'Indices T.P. matériaux'!BI$33=0,NA(),'Indices T.P. matériaux'!BI33/'Indices T.P. matériaux'!BI$33),NA()) -> 1 | BT112: =IFERROR(IF('Indices T.P. matériaux'!BJ33/'Indices T.P. matériaux'!BJ$33=0,NA(),'Indices T.P. matériaux'!BJ33/'Indices T.P. matériaux'!BJ$33),NA()) -> 1 | BU112: =IFERROR(IF('Indices T.P. matériaux'!BK33/'Indices T.P. matériaux'!BK$33=0,NA(),'Indices T.P. matériaux'!BK33/'Indices T.P. matériaux'!BK$33),NA()) -> 1 | BV112: =IFERROR(IF('Indices T.P. matériaux'!BL33/'Indices T.P. matériaux'!BL$33=0,NA(),'Indices T.P. matériaux'!BL33/'Indices T.P. matériaux'!BL$33),NA()) -> 1 | BW112: =IFERROR(IF('Indices T.P. matériaux'!BM33/'Indices T.P. matériaux'!BM$33=0,NA(),'Indices T.P. matériaux'!BM33/'Indices T.P. matériaux'!BM$33),NA()) -> 1 | BX112: =IFERROR(IF('Indices T.P. matériaux'!BN33/'Indices T.P. matériaux'!BN$33=0,NA(),'Indices T.P. matériaux'!BN33/'Indices T.P. matériaux'!BN$33),NA()) -> 1 | BY112: =IFERROR(IF('Indices T.P. matériaux'!BO33/'Indices T.P. matériaux'!BO$33=0,NA(),'Indices T.P. matériaux'!BO33/'Indices T.P. matériaux'!BO$33),NA()) -> 1 | BZ112: =IFERROR(IF('Indices T.P. matériaux'!BP33/'Indices T.P. matériaux'!BP$33=0,NA(),'Indices T.P. matériaux'!BP33/'Indices T.P. matériaux'!BP$33),NA()) -> 1 | CA112: =IFERROR(IF('Indices T.P. matériaux'!BQ33/'Indices T.P. matériaux'!BQ$33=0,NA(),'Indices T.P. matériaux'!BQ33/'Indices T.P. matériaux'!BQ$33),NA()) -> 1 | CB112: =IFERROR(IF('Indices T.P. matériaux'!BR33/'Indices T.P. matériaux'!BR$33=0,NA(),'Indices T.P. matériaux'!BR33/'Indices T.P. matériaux'!BR$33),NA()) -> 1 | CC112: =IFERROR(IF('Indices T.P. matériaux'!BS33/'Indices T.P. matériaux'!BS$33=0,NA(),'Indices T.P. matériaux'!BS33/'Indices T.P. matériaux'!BS$33),NA()) -> 1 | CD112: =IFERROR(IF('Indices T.P. matériaux'!BT33/'Indices T.P. matériaux'!BT$33=0,NA(),'Indices T.P. matériaux'!BT33/'Indices T.P. matériaux'!BT$33),NA()) -> 1 | CE112: =IFERROR(IF('Indices T.P. matériaux'!BU33/'Indices T.P. matériaux'!BU$33=0,NA(),'Indices T.P. matériaux'!BU33/'Indices T.P. matériaux'!BU$33),NA()) -> 1 | CF112: =IFERROR(IF('Indices T.P. matériaux'!BV33/'Indices T.P. matériaux'!BV$33=0,NA(),'Indices T.P. matériaux'!BV33/'Indices T.P. matériaux'!BV$33),NA()) -> 1 | CG112: =IFERROR(IF('Indices T.P. matériaux'!BW33/'Indices T.P. matériaux'!BW$33=0,NA(),'Indices T.P. matériaux'!BW33/'Indices T.P. matériaux'!BW$33),NA()) -> 1 | CH112: =IFERROR(IF('Indices T.P. matériaux'!BX33/'Indices T.P. matériaux'!BX$33=0,NA(),'Indices T.P. matériaux'!BX33/'Indices T.P. matériaux'!BX$33),NA()) -> 1 | CI112: =IFERROR(IF('Indices T.P. matériaux'!BY33/'Indices T.P. matériaux'!BY$33=0,NA(),'Indices T.P. matériaux'!BY33/'Indices T.P. matériaux'!BY$33),NA()) -> 1 | CJ112: =IFERROR(IF('Indices T.P. matériaux'!BZ33/'Indices T.P. matériaux'!BZ$33=0,NA(),'Indices T.P. matériaux'!BZ33/'Indices T.P. matériaux'!BZ$33),NA()) -> 1 | CK112: =IFERROR(IF('Indices T.P. matériaux'!CA33/'Indices T.P. matériaux'!CA$33=0,NA(),'Indices T.P. matériaux'!CA33/'Indices T.P. matériaux'!CA$33),NA()) -> 1 | CL112: =IFERROR(IF('Indices T.P. matériaux'!CB33/'Indices T.P. matériaux'!CB$33=0,NA(),'Indices T.P. matériaux'!CB33/'Indices T.P. matériaux'!CB$33),NA()) -> 1 | CM112: =IFERROR(IF('Indices T.P. matériaux'!CC33/'Indices T.P. matériaux'!CC$33=0,NA(),'Indices T.P. matériaux'!CC33/'Indices T.P. matériaux'!CC$33),NA()) -> 1 | CN112: =IFERROR(IF('Indices T.P. matériaux'!CD33/'Indices T.P. matériaux'!CD$33=0,NA(),'Indices T.P. matériaux'!CD33/'Indices T.P. matériaux'!CD$33),NA()) -> 1 | CO112: =IFERROR(IF('Indices T.P. matériaux'!CE33/'Indices T.P. matériaux'!CE$33=0,NA(),'Indices T.P. matériaux'!CE33/'Indices T.P. matériaux'!CE$33),NA()) -> 1 | CP112: =IFERROR(IF('Indices T.P. matériaux'!CF33/'Indices T.P. matériaux'!CF$33=0,NA(),'Indices T.P. matériaux'!CF33/'Indices T.P. matériaux'!CF$33),NA()) -> 1 | CQ112: =IFERROR(IF('Indices T.P. matériaux'!CG33/'Indices T.P. matériaux'!CG$33=0,NA(),'Indices T.P. matériaux'!CG33/'Indices T.P. matériaux'!CG$33),NA()) -> 1 | CR112: =IFERROR(IF('Indices T.P. matériaux'!CH33/'Indices T.P. matériaux'!CH$33=0,NA(),'Indices T.P. matériaux'!CH33/'Indices T.P. matériaux'!CH$33),NA()) -> 1 | CS112: =IFERROR(IF('Indices T.P. matériaux'!CI33/'Indices T.P. matériaux'!CI$33=0,NA(),'Indices T.P. matériaux'!CI33/'Indices T.P. matériaux'!CI$33),NA()) -> 1 | CT112: =IFERROR(IF('Indices T.P. matériaux'!CJ33/'Indices T.P. matériaux'!CJ$33=0,NA(),'Indices T.P. matériaux'!CJ33/'Indices T.P. matériaux'!CJ$33),NA()) -> 1 | CU112: =IFERROR(IF('Indices T.P. matériaux'!CK33/'Indices T.P. matériaux'!CK$33=0,NA(),'Indices T.P. matériaux'!CK33/'Indices T.P. matériaux'!CK$33),NA()) -> 1 | CV112: =IFERROR(IF('Indices T.P. matériaux'!CL33/'Indices T.P. matériaux'!CL$33=0,NA(),'Indices T.P. matériaux'!CL33/'Indices T.P. matériaux'!CL$33),NA()) -> 1 | CW112: =IFERROR(IF('Indices T.P. matériaux'!CM33/'Indices T.P. matériaux'!CM$33=0,NA(),'Indices T.P. matériaux'!CM33/'Indices T.P. matériaux'!CM$33),NA()) -> 1 | CX112: =IFERROR(IF('Indices T.P. matériaux'!CN33/'Indices T.P. matériaux'!CN$33=0,NA(),'Indices T.P. matériaux'!CN33/'Indices T.P. matériaux'!CN$33),NA()) -> 1 | CY112: =IFERROR(IF('Indices T.P. matériaux'!CO33/'Indices T.P. matériaux'!CO$33=0,NA(),'Indices T.P. matériaux'!CO33/'Indices T.P. matériaux'!CO$33),NA()) -> 1 | CZ112: =IFERROR(IF('Indices T.P. matériaux'!CP33/'Indices T.P. matériaux'!CP$33=0,NA(),'Indices T.P. matériaux'!CP33/'Indices T.P. matériaux'!CP$33),NA()) -> 1 | DA112: =IFERROR(IF('Indices T.P. matériaux'!CQ33/'Indices T.P. matériaux'!CQ$33=0,NA(),'Indices T.P. matériaux'!CQ33/'Indices T.P. matériaux'!CQ$33),NA()) ->  | DB112: =IFERROR(IF('Indices T.P. matériaux'!CR33/'Indices T.P. matériaux'!CR$33=0,NA(),'Indices T.P. matériaux'!CR33/'Indices T.P. matériaux'!CR$33),NA()) ->  | DC112: =IFERROR(IF('Indices T.P. matériaux'!CS33/'Indices T.P. matériaux'!CS$33=0,NA(),'Indices T.P. matériaux'!CS33/'Indices T.P. matériaux'!CS$33),NA()) ->  | DD112: =IFERROR(IF('Indices T.P. matériaux'!CT33/'Indices T.P. matériaux'!CT$33=0,NA(),'Indices T.P. matériaux'!CT33/'Indices T.P. matériaux'!CT$33),NA()) ->  | DE112: =IFERROR(IF('Indices Grymafer'!D31/'Indices Grymafer'!D$31=0,NA(),'Indices Grymafer'!D31/'Indices Grymafer'!D$31),NA()) -> 1 | DF112: =IFERROR(IF('Indices Grymafer'!E31/'Indices Grymafer'!E$31=0,NA(),'Indices Grymafer'!E31/'Indices Grymafer'!E$31),NA()) -> 1 | DG112: =IFERROR(IF('Indices Grymafer'!F31/'Indices Grymafer'!F$31=0,NA(),'Indices Grymafer'!F31/'Indices Grymafer'!F$31),NA()) -> 1 | DH112: =IFERROR(IF('Indices Grymafer'!G31/'Indices Grymafer'!G$31=0,NA(),'Indices Grymafer'!G31/'Indices Grymafer'!G$31),NA()) -> 1 | DI112: =IFERROR(IF('Indices T.P. matériaux'!CW33/'Indices T.P. matériaux'!CW$33=0,NA(),'Indices T.P. matériaux'!CW33/'Indices T.P. matériaux'!CW$33),NA()) -> 1 | DJ112: =IFERROR(IF('Indices T.P. matériaux'!CX33/'Indices T.P. matériaux'!CX$33=0,NA(),'Indices T.P. matériaux'!CX33/'Indices T.P. matériaux'!CX$33),NA()) -> 1 | DK112: =IFERROR(IF('Indices T.P. matériaux'!CY33/'Indices T.P. matériaux'!CY$33=0,NA(),'Indices T.P. matériaux'!CY33/'Indices T.P. matériaux'!CY$33),NA()) -> 1 | DL112: =IFERROR(IF('Indices T.P. matériaux'!CZ33/'Indices T.P. matériaux'!CZ$33=0,NA(),'Indices T.P. matériaux'!CZ33/'Indices T.P. matériaux'!CZ$33),NA()) -> 1 | DM112: =IFERROR(IF('Indices T.P. matériaux'!DA33/'Indices T.P. matériaux'!DA$33=0,NA(),'Indices T.P. matériaux'!DA33/'Indices T.P. matériaux'!DA$33),NA()) -> 1 | DN112: =IFERROR(IF('Indices T.P. matériaux'!DB33/'Indices T.P. matériaux'!DB$33=0,NA(),'Indices T.P. matériaux'!DB33/'Indices T.P. matériaux'!DB$33),NA()) -> 1 | DO112: =IFERROR(IF('Indices T.P. matériaux'!DC33/'Indices T.P. matériaux'!DC$33=0,NA(),'Indices T.P. matériaux'!DC33/'Indices T.P. matériaux'!DC$33),NA()) -> 1 | DP112: =IFERROR(IF('Indices T.P. matériaux'!DD33/'Indices T.P. matériaux'!DD$33=0,NA(),'Indices T.P. matériaux'!DD33/'Indices T.P. matériaux'!DD$33),NA()) -> 1 | DR112: ='Indices courants'!C29 -> 2018-01-01 | DS112: =IFERROR(IF('Indices des produits & services'!D31/'Indices des produits & services'!D$31=0,NA(),'Indices des produits & services'!D31/'Indices des produits & services'!D$31),NA()) -> 1 | DT112: =IFERROR(IF('Indices des produits & services'!E31/'Indices des produits & services'!E$31=0,NA(),'Indices des produits & services'!E31/'Indices des produits & services'!E$31),NA()) -> 1 | DU112: =IFERROR(IF('Indices des produits & services'!F31/'Indices des produits & services'!F$31=0,NA(),'Indices des produits & services'!F31/'Indices des produits & services'!F$31),NA()) -> 1 | DV112: =IFERROR(IF('Indices des produits & services'!G31/'Indices des produits & services'!G$31=0,NA(),'Indices des produits & services'!G31/'Indices des produits & services'!G$31),NA()) -> 1 | DW112: =IFERROR(IF('Indices des produits & services'!H31/'Indices des produits & services'!H$31=0,NA(),'Indices des produits & services'!H31/'Indices des produits & services'!H$31),NA()) -> 1 | DX112: =IFERROR(IF('Indices des produits & services'!I31/'Indices des produits & services'!I$31=0,NA(),'Indices des produits & services'!I31/'Indices des produits & services'!I$31),NA()) -> 1 | DY112: =IFERROR(IF('Indices des produits & services'!J31/'Indices des produits & services'!J$31=0,NA(),'Indices des produits & services'!J31/'Indices des produits & services'!J$31),NA()) -> 1 | DZ112: =IFERROR(IF('Indices des produits & services'!K31/'Indices des produits & services'!K$31=0,NA(),'Indices des produits & services'!K31/'Indices des produits & services'!K$31),NA()) -> 1 | EA112: =IFERROR(IF('Indices des produits & services'!L31/'Indices des produits & services'!L$31=0,NA(),'Indices des produits & services'!L31/'Indices des produits & services'!L$31),NA()) -> 1 | EB112: =IFERROR(IF('Indices des produits & services'!M31/'Indices des produits & services'!M$31=0,NA(),'Indices des produits & services'!M31/'Indices des produits & services'!M$31),NA()) -> 1 | EC112: =IFERROR(IF('Indices des produits & services'!N31/'Indices des produits & services'!N$31=0,NA(),'Indices des produits & services'!N31/'Indices des produits & services'!N$31),NA()) -> 1 | ED112: =IFERROR(IF('Indices des produits & services'!O31/'Indices des produits & services'!O$31=0,NA(),'Indices des produits & services'!O31/'Indices des produits & services'!O$31),NA()) -> 1 | EE112: =IFERROR(IF('Indices des produits & services'!P31/'Indices des produits & services'!P$31=0,NA(),'Indices des produits & services'!P31/'Indices des produits & services'!P$31),NA()) -> 1 | EF112: =IFERROR(IF('Indices des produits & services'!Q31/'Indices des produits & services'!Q$31=0,NA(),'Indices des produits & services'!Q31/'Indices des produits & services'!Q$31),NA()) -> 1 | EG112: =IFERROR(IF('Indices des produits & services'!R31/'Indices des produits & services'!R$31=0,NA(),'Indices des produits & services'!R31/'Indices des produits & services'!R$31),NA()) -> 1 | EH112: =IFERROR(IF('Indices des produits & services'!S31/'Indices des produits & services'!S$31=0,NA(),'Indices des produits & services'!S31/'Indices des produits & services'!S$31),NA()) -> 1 | EI112: =IFERROR(IF('Indices des produits & services'!T31/'Indices des produits & services'!T$31=0,NA(),'Indices des produits & services'!T31/'Indices des produits & services'!T$31),NA()) -> 1 | EJ112: =IFERROR(IF('Indices des produits & services'!U31/'Indices des produits & services'!U$31=0,NA(),'Indices des produits & services'!U31/'Indices des produits & services'!U$31),NA()) -> 1 | EK112: =IFERROR(IF('Indices des produits & services'!V31/'Indices des produits & services'!V$31=0,NA(),'Indices des produits & services'!V31/'Indices des produits & services'!V$31),NA()) -> 1 | EL112: =IFERROR(IF('Indices des produits & services'!W31/'Indices des produits & services'!W$31=0,NA(),'Indices des produits & services'!W31/'Indices des produits & services'!W$31),NA()) -> 1 | EM112: =IFERROR(IF('Indices des produits & services'!X31/'Indices des produits & services'!X$31=0,NA(),'Indices des produits & services'!X31/'Indices des produits & services'!X$31),NA()) -> 1 | EN112: =IFERROR(IF('Indices des produits & services'!Y31/'Indices des produits & services'!Y$31=0,NA(),'Indices des produits & services'!Y31/'Indices des produits & services'!Y$31),NA()) -> 1 | EO112: =IFERROR(IF('Indices des produits & services'!Z31/'Indices des produits & services'!Z$31=0,NA(),'Indices des produits & services'!Z31/'Indices des produits & services'!Z$31),NA()) -> 1 | EP112: =IFERROR(IF('Indices des produits & services'!AA31/'Indices des produits & services'!AA$31=0,NA(),'Indices des produits & services'!AA31/'Indices des produits & services'!AA$31),NA()) -> 1 | EQ112: =IFERROR(IF('Indices des produits & services'!AB31/'Indices des produits & services'!AB$31=0,NA(),'Indices des produits & services'!AB31/'Indices des produits & services'!AB$31),NA()) -> 1 | ER112: =IFERROR(IF('Indices des produits & services'!AC31/'Indices des produits & services'!AC$31=0,NA(),'Indices des produits & services'!AC31/'Indices des produits & services'!AC$31),NA()) -> 1 | ES112: =IFERROR(IF('Indices des produits & services'!AD31/'Indices des produits & services'!AD$31=0,NA(),'Indices des produits & services'!AD31/'Indices des produits & services'!AD$31),NA()) -> 1 | ET112: =IFERROR(IF('Indices des produits & services'!AE31/'Indices des produits & services'!AE$31=0,NA(),'Indices des produits & services'!AE31/'Indices des produits & services'!AE$31),NA()) -> 1 | EU112: =IFERROR(IF('Indices des produits & services'!AF31/'Indices des produits & services'!AF$31=0,NA(),'Indices des produits & services'!AF31/'Indices des produits & services'!AF$31),NA()) -> 1 | EV112: =IFERROR(IF('Indices des produits & services'!AG31/'Indices des produits & services'!AG$31=0,NA(),'Indices des produits & services'!AG31/'Indices des produits & services'!AG$31),NA()) -> 1 | EW112: =IFERROR(IF('Indices des produits & services'!AH31/'Indices des produits & services'!AH$31=0,NA(),'Indices des produits & services'!AH31/'Indices des produits & services'!AH$31),NA()) -> 1 | EX112: =IFERROR(IF('Indices des produits & services'!AI31/'Indices des produits & services'!AI$31=0,NA(),'Indices des produits & services'!AI31/'Indices des produits & services'!AI$31),NA()) -> 1 | EY112: =IFERROR(IF('Indices des produits & services'!AJ31/'Indices des produits & services'!AJ$31=0,NA(),'Indices des produits & services'!AJ31/'Indices des produits & services'!AJ$31),NA()) -> 1 | EZ112: =IFERROR(IF('Indices des produits & services'!AK31/'Indices des produits & services'!AK$31=0,NA(),'Indices des produits & services'!AK31/'Indices des produits & services'!AK$31),NA()) -> 1 | FA112: =IFERROR(IF('Indices des produits & services'!AL31/'Indices des produits & services'!AL$31=0,NA(),'Indices des produits & services'!AL31/'Indices des produits & services'!AL$31),NA()) -> 1 | FB112: =IFERROR(IF('Indices des produits & services'!AM31/'Indices des produits & services'!AM$31=0,NA(),'Indices des produits & services'!AM31/'Indices des produits & services'!AM$31),NA()) -> 1 | FC112: =IFERROR(IF('Indices des produits & services'!AN31/'Indices des produits & services'!AN$31=0,NA(),'Indices des produits & services'!AN31/'Indices des produits & services'!AN$31),NA()) -> 1 | FD112: =IFERROR(IF('Indices des produits & services'!AO31/'Indices des produits & services'!AO$31=0,NA(),'Indices des produits & services'!AO31/'Indices des produits & services'!AO$31),NA()) -> 1 | FE112: =IFERROR(IF('Indices des produits & services'!AP31/'Indices des produits & services'!AP$31=0,NA(),'Indices des produits & services'!AP31/'Indices des produits & services'!AP$31),NA()) -> 1 | FF112: =IFERROR(IF('Indices des produits & services'!AQ31/'Indices des produits & services'!AQ$31=0,NA(),'Indices des produits & services'!AQ31/'Indices des produits & services'!AQ$31),NA()) -> 1 | FG112: =IFERROR(IF('Indices des produits & services'!AR31/'Indices des produits & services'!AR$31=0,NA(),'Indices des produits & services'!AR31/'Indices des produits & services'!AR$31),NA()) -> 1 | FH112: =IFERROR(IF('Indices des produits & services'!AS31/'Indices des produits & services'!AS$31=0,NA(),'Indices des produits & services'!AS31/'Indices des produits & services'!AS$31),NA()) -> 1 | FI112: =IFERROR(IF('Indices des produits & services'!AT31/'Indices des produits & services'!AT$31=0,NA(),'Indices des produits & services'!AT31/'Indices des produits & services'!AT$31),NA()) -> 1 | FJ112: =IFERROR(IF('Indices des produits & services'!AU31/'Indices des produits & services'!AU$31=0,NA(),'Indices des produits & services'!AU31/'Indices des produits & services'!AU$31),NA()) -> 1 | FK112: =IFERROR(IF('Indices des produits & services'!AV31/'Indices des produits & services'!AV$31=0,NA(),'Indices des produits & services'!AV31/'Indices des produits & services'!AV$31),NA()) -> 1 | FL112: =IFERROR(IF('Indices des produits & services'!AW31/'Indices des produits & services'!AW$31=0,NA(),'Indices des produits & services'!AW31/'Indices des produits & services'!AW$31),NA()) -> 1 | FM112: =IFERROR(IF('Indices des produits & services'!AX31/'Indices des produits & services'!AX$31=0,NA(),'Indices des produits & services'!AX31/'Indices des produits & services'!AX$31),NA()) -> 1 | FN112: =IFERROR(IF('Indices des produits & services'!AY31/'Indices des produits & services'!AY$31=0,NA(),'Indices des produits & services'!AY31/'Indices des produits & services'!AY$31),NA()) -> 1 | FO112: =IFERROR(IF('Indices des produits & services'!AZ31/'Indices des produits & services'!AZ$31=0,NA(),'Indices des produits & services'!AZ31/'Indices des produits & services'!AZ$31),NA()) -> 1 | FP112: =IFERROR(IF('Indices des produits & services'!BA31/'Indices des produits & services'!BA$31=0,NA(),'Indices des produits & services'!BA31/'Indices des produits & services'!BA$31),NA()) -> 1 | FQ112: =IFERROR(IF('Indices des produits & services'!BB31/'Indices des produits & services'!BB$31=0,NA(),'Indices des produits & services'!BB31/'Indices des produits & services'!BB$31),NA()) -> 1 | FR112: =IFERROR(IF('Indices des produits & services'!BC31/'Indices des produits & services'!BC$31=0,NA(),'Indices des produits & services'!BC31/'Indices des produits & services'!BC$31),NA()) -> 1 | FS112: =IFERROR(IF('Indices des produits & services'!BD31/'Indices des produits & services'!BD$31=0,NA(),'Indices des produits & services'!BD31/'Indices des produits & services'!BD$31),NA()) -> 1 | FT112: =IFERROR(IF('Indices des produits & services'!BE31/'Indices des produits & services'!BE$31=0,NA(),'Indices des produits & services'!BE31/'Indices des produits & services'!BE$31),NA()) -> 1 | FU112: =IFERROR(IF('Indices des produits & services'!BF31/'Indices des produits & services'!BF$31=0,NA(),'Indices des produits & services'!BF31/'Indices des produits & services'!BF$31),NA()) -> 1 | FV112: =IFERROR(IF('Indices des produits & services'!BG31/'Indices des produits & services'!BG$31=0,NA(),'Indices des produits & services'!BG31/'Indices des produits & services'!BG$31),NA()) -> 1 | FW112: =IFERROR(IF('Indices des produits & services'!BH31/'Indices des produits & services'!BH$31=0,NA(),'Indices des produits & services'!BH31/'Indices des produits & services'!BH$31),NA()) -> 1 | FX112: =IFERROR(IF('Indices des produits & services'!BI31/'Indices des produits & services'!BI$31=0,NA(),'Indices des produits & services'!BI31/'Indices des produits & services'!BI$31),NA()) -> 1 | FY112: =IFERROR(IF('Indices des produits & services'!BJ31/'Indices des produits & services'!BJ$31=0,NA(),'Indices des produits & services'!BJ31/'Indices des produits & services'!BJ$31),NA()) -> 1 | FZ112: =IFERROR(IF('Indices des produits & services'!BK31/'Indices des produits & services'!BK$31=0,NA(),'Indices des produits & services'!BK31/'Indices des produits & services'!BK$31),NA()) -> 1 | GA112: =IFERROR(IF('Indices des produits & services'!BL31/'Indices des produits & services'!BL$31=0,NA(),'Indices des produits & services'!BL31/'Indices des produits & services'!BL$31),NA()) -> 1 | GB112: =IFERROR(IF('Indices des produits & services'!BM31/'Indices des produits & services'!BM$31=0,NA(),'Indices des produits & services'!BM31/'Indices des produits & services'!BM$31),NA()) -> 1 | GC112: =IFERROR(IF('Indices des produits & services'!BN31/'Indices des produits & services'!BN$31=0,NA(),'Indices des produits & services'!BN31/'Indices des produits & services'!BN$31),NA()) -> 1 | GD112: =IFERROR(IF('Indices des produits & services'!BO31/'Indices des produits & services'!BO$31=0,NA(),'Indices des produits & services'!BO31/'Indices des produits & services'!BO$31),NA()) -> 1 | GE112: =IFERROR(IF('Indices des produits & services'!BP31/'Indices des produits & services'!BP$31=0,NA(),'Indices des produits & services'!BP31/'Indices des produits & services'!BP$31),NA()) -> 1 | GF112: =IFERROR(IF('Indices des produits & services'!BQ31/'Indices des produits & services'!BQ$31=0,NA(),'Indices des produits & services'!BQ31/'Indices des produits & services'!BQ$31),NA()) -> 1 | GG112: =IFERROR(IF('Indices des produits & services'!BR31/'Indices des produits & services'!BR$31=0,NA(),'Indices des produits & services'!BR31/'Indices des produits & services'!BR$31),NA()) -> 1 | GH112: =IFERROR(IF('Indices des produits & services'!BS31/'Indices des produits & services'!BS$31=0,NA(),'Indices des produits & services'!BS31/'Indices des produits & services'!BS$31),NA()) -> 1 | GI112: =IFERROR(IF('Indices des produits & services'!BT31/'Indices des produits & services'!BT$31=0,NA(),'Indices des produits & services'!BT31/'Indices des produits & services'!BT$31),NA()) -> 1 | GJ112: =IFERROR(IF('Indices des produits & services'!BU31/'Indices des produits & services'!BU$31=0,NA(),'Indices des produits & services'!BU31/'Indices des produits & services'!BU$31),NA()) -> 1 | GK112: =IFERROR(IF('Indices des produits & services'!BV31/'Indices des produits & services'!BV$31=0,NA(),'Indices des produits & services'!BV31/'Indices des produits & services'!BV$31),NA()) -> 1 | GL112: =IFERROR(IF('Indices des produits & services'!BW31/'Indices des produits & services'!BW$31=0,NA(),'Indices des produits & services'!BW31/'Indices des produits & services'!BW$31),NA()) -> 1 | GM112: =IFERROR(IF('Indices des produits & services'!BX31/'Indices des produits & services'!BX$31=0,NA(),'Indices des produits & services'!BX31/'Indices des produits & services'!BX$31),NA()) -> 1 | GN112: =IFERROR(IF('Indices des produits & services'!BY31/'Indices des produits & services'!BY$31=0,NA(),'Indices des produits & services'!BY31/'Indices des produits & services'!BY$31),NA()) -> 1 | GO112: =IFERROR(IF('Indices des produits & services'!BZ31/'Indices des produits & services'!BZ$31=0,NA(),'Indices des produits & services'!BZ31/'Indices des produits & services'!BZ$31),NA()) -> 1 | GP112: =IFERROR(IF('Indices des produits & services'!CA31/'Indices des produits & services'!CA$31=0,NA(),'Indices des produits & services'!CA31/'Indices des produits & services'!CA$31),NA()) -> 1 | GQ112: =IFERROR(IF('Indices des produits & services'!CB31/'Indices des produits & services'!CB$31=0,NA(),'Indices des produits & services'!CB31/'Indices des produits & services'!CB$31),NA()) -> 1 | GR112: =IFERROR(IF('Indices des produits & services'!CC31/'Indices des produits & services'!CC$31=0,NA(),'Indices des produits & services'!CC31/'Indices des produits & services'!CC$31),NA()) -> 1 | GS112: =IFERROR(IF('Indices des produits & services'!CD31/'Indices des produits & services'!CD$31=0,NA(),'Indices des produits & services'!CD31/'Indices des produits & services'!CD$31),NA()) -> 1 | GT112: =IFERROR(IF('Indices des produits & services'!CE31/'Indices des produits & services'!CE$31=0,NA(),'Indices des produits & services'!CE31/'Indices des produits & services'!CE$31),NA()) -> 1 | GU112: =IFERROR(IF('Indices des produits & services'!CF31/'Indices des produits & services'!CF$31=0,NA(),'Indices des produits & services'!CF31/'Indices des produits & services'!CF$31),NA()) -> 1 | GV112: =IFERROR(IF('Indices des produits & services'!CG31/'Indices des produits & services'!CG$31=0,NA(),'Indices des produits & services'!CG31/'Indices des produits & services'!CG$31),NA()) -> 1 | GW112: =IFERROR(IF('Indices des produits & services'!CH31/'Indices des produits & services'!CH$31=0,NA(),'Indices des produits & services'!CH31/'Indices des produits & services'!CH$31),NA()) -> 1 | GX112: =IFERROR(IF('Indices des produits & services'!CI31/'Indices des produits & services'!CI$31=0,NA(),'Indices des produits & services'!CI31/'Indices des produits & services'!CI$31),NA()) -> 1 | GY112: =IFERROR(IF('Indices des produits & services'!CJ31/'Indices des produits & services'!CJ$31=0,NA(),'Indices des produits & services'!CJ31/'Indices des produits & services'!CJ$31),NA()) -> 1 | GZ112: =IFERROR(IF('Indices des produits & services'!CK31/'Indices des produits & services'!CK$31=0,NA(),'Indices des produits & services'!CK31/'Indices des produits & services'!CK$31),NA()) -> 1 | HA112: =IFERROR(IF('Indices des produits & services'!CL31/'Indices des produits & services'!CL$31=0,NA(),'Indices des produits & services'!CL31/'Indices des produits & services'!CL$31),NA()) -> 1 | HB112: =IFERROR(IF('Indices des produits & services'!CM31/'Indices des produits & services'!CM$31=0,NA(),'Indices des produits & services'!CM31/'Indices des produits & services'!CM$31),NA()) -> 1 | HC112: =IFERROR(IF('Indices des produits & services'!CN31/'Indices des produits & services'!CN$31=0,NA(),'Indices des produits & services'!CN31/'Indices des produits & services'!CN$31),NA()) -> 1 | HE112: =Tableau21[[#This Row],[Période]] -> 2018-01-01 | HF112: =IFERROR(IF('Indices courants'!J29/'Indices courants'!J$29=0,NA(),'Indices courants'!J29/'Indices courants'!J$29),NA()) -> 1 | HG112: =IFERROR(IF('Indices courants'!K29/'Indices courants'!K$29=0,NA(),'Indices courants'!K29/'Indices courants'!K$29),NA()) -> 1 | HH112: =IFERROR(IF('Indices courants'!L29/'Indices courants'!L$29=0,NA(),'Indices courants'!L29/'Indices courants'!L$29),NA()) -> 1 | HI112: =IFERROR(IF('Indices courants'!M29/'Indices courants'!M$29=0,NA(),'Indices courants'!M29/'Indices courants'!M$29),NA()) -> 1 | HJ112: =IFERROR(IF('Indices courants'!N29/'Indices courants'!N$29=0,NA(),'Indices courants'!N29/'Indices courants'!N$29),NA()) -> 1 | HK112: =IFERROR(IF('Indices courants'!O29/'Indices courants'!O$29=0,NA(),'Indices courants'!O29/'Indices courants'!O$29),NA()) -> 1 | HL112: =IFERROR(IF('Indices courants'!P29/'Indices courants'!P$29=0,NA(),'Indices courants'!P29/'Indices courants'!P$29),NA()) -> 1 | HM112: =IFERROR(IF('Indices courants'!Q29/'Indices courants'!Q$29=0,NA(),'Indices courants'!Q29/'Indices courants'!Q$29),NA()) -> 1 | HN112: =IFERROR(IF('Indices courants'!R29/'Indices courants'!R$29=0,NA(),'Indices courants'!R29/'Indices courants'!R$29),NA()) -> 1 | HO112: =IFERROR(IF('Indices courants'!S29/'Indices courants'!S$29=0,NA(),'Indices courants'!S29/'Indices courants'!S$29),NA()) -> 1 | HP112: =IFERROR(IF('Indices courants'!T29/'Indices courants'!T$29=0,NA(),'Indices courants'!T29/'Indices courants'!T$29),NA()) -> 1 | HQ112: =IFERROR(IF('Indices courants'!U29/'Indices courants'!U$29=0,NA(),'Indices courants'!U29/'Indices courants'!U$29),NA()) -> 1 | HR112: =IFERROR(IF('Indices courants'!V29/'Indices courants'!V$29=0,NA(),'Indices courants'!V29/'Indices courants'!V$29),NA()) -> 1 | HS112: =IFERROR(IF('Indices courants'!W29/'Indices courants'!W$29=0,NA(),'Indices courants'!W29/'Indices courants'!W$29),NA()) -> 1 | HT112: =IFERROR(IF('Indices courants'!X29/'Indices courants'!X$29=0,NA(),'Indices courants'!X29/'Indices courants'!X$29),NA()) -> 1 | HU112: =IFERROR(IF('Indices courants'!Y29/'Indices courants'!Y$29=0,NA(),'Indices courants'!Y29/'Indices courants'!Y$29),NA()) -> 1 | HV112: =IFERROR(IF('Indices courants'!Z29/'Indices courants'!Z$29=0,NA(),'Indices courants'!Z29/'Indices courants'!Z$29),NA()) -> 1 | HW112: =IFERROR(IF('Indices courants'!AA29/'Indices courants'!AA$29=0,NA(),'Indices courants'!AA29/'Indices courants'!AA$29),NA()) -> 1 | HX112: =IFERROR(IF('Indices courants'!AB29/'Indices courants'!AB$29=0,NA(),'Indices courants'!AB29/'Indices courants'!AB$29),NA()) -> 1 | HY112: =IFERROR(IF('Indices courants'!AC29/'Indices courants'!AC$29=0,NA(),'Indices courants'!AC29/'Indices courants'!AC$29),NA()) -> 1 | HZ112: =Tableau21[[#This Row],[Evolution des prix selon formule de révision - indice i 2021]] -> 1 | IA112: =Tableau21[[#This Row],[Evolution des prix selon formule de révision - indice i]] -> 1 | IB112: =Tableau21[[#This Row],[Augmentation mois par mois - selon indice i 2021]] -> 1 | IC112: =Tableau21[[#This Row],[Augmentation mois par mois - selon indice i ]] -> 1 | ID112: =IFERROR(IF('Indexations des salaires par CP'!BY38/'Indexations des salaires par CP'!BY$38=0,NA(),'Indexations des salaires par CP'!BY38/'Indexations des salaires par CP'!BY$38),NA()) -> 1 | IE112: =IFERROR(IF('Indexations des salaires par CP'!BZ38/'Indexations des salaires par CP'!BZ$38=0,NA(),'Indexations des salaires par CP'!BZ38/'Indexations des salaires par CP'!BZ$38),NA()) -> 1 | IF112: =IFERROR(IF('Indexations des salaires par CP'!CA38/'Indexations des salaires par CP'!CA$38=0,NA(),'Indexations des salaires par CP'!CA38/'Indexations des salaires par CP'!CA$38),NA()) -> 1 | IG112: =IFERROR(IF('Indexations des salaires par CP'!CB38/'Indexations des salaires par CP'!CB$38=0,NA(),'Indexations des salaires par CP'!CB38/'Indexations des salaires par CP'!CB$38),NA()) -> 1 | IH112: =IFERROR(IF('Indexations des salaires par CP'!CC38/'Indexations des salaires par CP'!CC$38=0,NA(),'Indexations des salaires par CP'!CC38/'Indexations des salaires par CP'!CC$38),NA()) -> 1 | II112: =IFERROR(IF('Indexations des salaires par CP'!CD38/'Indexations des salaires par CP'!CD$38=0,NA(),'Indexations des salaires par CP'!CD38/'Indexations des salaires par CP'!CD$38),NA()) -> 1 | IJ112: =IFERROR(IF('Indexations des salaires par CP'!CE38/'Indexations des salaires par CP'!CE$38=0,NA(),'Indexations des salaires par CP'!CE38/'Indexations des salaires par CP'!CE$38),NA()) -> 1 | IK112: =IFERROR(IF('Indexations des salaires par CP'!CF38/'Indexations des salaires par CP'!CF$38=0,NA(),'Indexations des salaires par CP'!CF38/'Indexations des salaires par CP'!CF$38),NA()) -> 1 | IL112: =IFERROR(IF('Indexations des salaires par CP'!CG38/'Indexations des salaires par CP'!CG$38=0,NA(),'Indexations des salaires par CP'!CG38/'Indexations des salaires par CP'!CG$38),NA()) -> 1 | IM112: =IFERROR(IF('Indexations des salaires par CP'!CH38/'Indexations des salaires par CP'!CH$38=0,NA(),'Indexations des salaires par CP'!CH38/'Indexations des salaires par CP'!CH$38),NA()) -> 1
B113: ='Indices courants'!C30 -> 2018-02-01 | C113: =IFERROR(IF('Indices courants'!D30/'Indices courants'!D$29=0,NA(),'Indices courants'!D30/'Indices courants'!D$29),NA()) -> 1.001776875 | D113: =IFERROR(IF('Indices courants'!E30/'Indices courants'!E$29=0,NA(),'Indices courants'!E30/'Indices courants'!E$29),NA()) -> 1.009613397 | E113: =IFERROR(IF('Indices courants'!F30/'Indices courants'!F$29=0,NA(),'Indices courants'!F30/'Indices courants'!F$29),NA()) -> 0.9962311558 | F113: =IFERROR(IF('Indices courants'!G30/'Indices courants'!G$29=0,NA(),'Indices courants'!G30/'Indices courants'!G$29),NA()) -> 1 | G113: =IFERROR(IF('Indices courants'!H30/'Indices courants'!H$29=0,NA(),'Indices courants'!H30/'Indices courants'!H$29),NA()) -> 0.9940675767 | H113: =IFERROR(IF('Indices courants'!I30/'Indices courants'!I$29=0,NA(),'Indices courants'!I30/'Indices courants'!I$29),NA()) -> 1.006684661 | I113: 1 | J113: 1 | K113: 1 | L113: 1 | M113: =IFERROR(IF('Indices T.P. matériaux'!C34/'Indices T.P. matériaux'!C$33=0,NA(),'Indices T.P. matériaux'!C34/'Indices T.P. matériaux'!C$33),NA()) -> 1 | N113: =IFERROR(IF('Indices T.P. matériaux'!D34/'Indices T.P. matériaux'!D$33=0,NA(),'Indices T.P. matériaux'!D34/'Indices T.P. matériaux'!D$33),NA()) -> 1 | O113: =IFERROR(IF('Indices T.P. matériaux'!E34/'Indices T.P. matériaux'!E$33=0,NA(),'Indices T.P. matériaux'!E34/'Indices T.P. matériaux'!E$33),NA()) -> 1 | P113: =IFERROR(IF('Indices T.P. matériaux'!F34/'Indices T.P. matériaux'!F$33=0,NA(),'Indices T.P. matériaux'!F34/'Indices T.P. matériaux'!F$33),NA()) -> 1 | Q113: =IFERROR(IF('Indices T.P. matériaux'!G34/'Indices T.P. matériaux'!G$33=0,NA(),'Indices T.P. matériaux'!G34/'Indices T.P. matériaux'!G$33),NA()) -> 1 | R113: =IFERROR(IF('Indices T.P. matériaux'!H34/'Indices T.P. matériaux'!H$33=0,NA(),'Indices T.P. matériaux'!H34/'Indices T.P. matériaux'!H$33),NA()) -> 1 | S113: =IFERROR(IF('Indices T.P. matériaux'!I34/'Indices T.P. matériaux'!I$33=0,NA(),'Indices T.P. matériaux'!I34/'Indices T.P. matériaux'!I$33),NA()) -> 1 | T113: =IFERROR(IF('Indices T.P. matériaux'!J34/'Indices T.P. matériaux'!J$33=0,NA(),'Indices T.P. matériaux'!J34/'Indices T.P. matériaux'!J$33),NA()) -> 1 | U113: =IFERROR(IF('Indices T.P. matériaux'!K34/'Indices T.P. matériaux'!K$33=0,NA(),'Indices T.P. matériaux'!K34/'Indices T.P. matériaux'!K$33),NA()) -> 1 | V113: =IFERROR(IF('Indices T.P. matériaux'!L34/'Indices T.P. matériaux'!L$33=0,NA(),'Indices T.P. matériaux'!L34/'Indices T.P. matériaux'!L$33),NA()) -> 1 | W113: =IFERROR(IF('Indices T.P. matériaux'!M34/'Indices T.P. matériaux'!M$33=0,NA(),'Indices T.P. matériaux'!M34/'Indices T.P. matériaux'!M$33),NA()) -> 1 | X113: =IFERROR(IF('Indices T.P. matériaux'!N34/'Indices T.P. matériaux'!N$33=0,NA(),'Indices T.P. matériaux'!N34/'Indices T.P. matériaux'!N$33),NA()) -> 1 | Y113: =IFERROR(IF('Indices T.P. matériaux'!O34/'Indices T.P. matériaux'!O$33=0,NA(),'Indices T.P. matériaux'!O34/'Indices T.P. matériaux'!O$33),NA()) -> 1 | Z113: =IFERROR(IF('Indices T.P. matériaux'!P34/'Indices T.P. matériaux'!P$33=0,NA(),'Indices T.P. matériaux'!P34/'Indices T.P. matériaux'!P$33),NA()) -> 1 | AA113: =IFERROR(IF('Indices T.P. matériaux'!Q34/'Indices T.P. matériaux'!Q$33=0,NA(),'Indices T.P. matériaux'!Q34/'Indices T.P. matériaux'!Q$33),NA()) -> 1 | AB113: =IFERROR(IF('Indices T.P. matériaux'!R34/'Indices T.P. matériaux'!R$33=0,NA(),'Indices T.P. matériaux'!R34/'Indices T.P. matériaux'!R$33),NA()) -> 1 | AC113: =IFERROR(IF('Indices T.P. matériaux'!S34/'Indices T.P. matériaux'!S$33=0,NA(),'Indices T.P. matériaux'!S34/'Indices T.P. matériaux'!S$33),NA()) -> 1 | AD113: =IFERROR(IF('Indices T.P. matériaux'!T34/'Indices T.P. matériaux'!T$33=0,NA(),'Indices T.P. matériaux'!T34/'Indices T.P. matériaux'!T$33),NA()) -> 1 | AE113: =IFERROR(IF('Indices T.P. matériaux'!U34/'Indices T.P. matériaux'!U$33=0,NA(),'Indices T.P. matériaux'!U34/'Indices T.P. matériaux'!U$33),NA()) -> 1 | AF113: =IFERROR(IF('Indices T.P. matériaux'!V34/'Indices T.P. matériaux'!V$33=0,NA(),'Indices T.P. matériaux'!V34/'Indices T.P. matériaux'!V$33),NA()) -> 1 | AG113: =IFERROR(IF('Indices T.P. matériaux'!W34/'Indices T.P. matériaux'!W$33=0,NA(),'Indices T.P. matériaux'!W34/'Indices T.P. matériaux'!W$33),NA()) -> 1 | AH113: =IFERROR(IF('Indices T.P. matériaux'!X34/'Indices T.P. matériaux'!X$33=0,NA(),'Indices T.P. matériaux'!X34/'Indices T.P. matériaux'!X$33),NA()) -> 1 | AI113: =IFERROR(IF('Indices T.P. matériaux'!Y34/'Indices T.P. matériaux'!Y$33=0,NA(),'Indices T.P. matériaux'!Y34/'Indices T.P. matériaux'!Y$33),NA()) -> 1 | AJ113: =IFERROR(IF('Indices T.P. matériaux'!Z34/'Indices T.P. matériaux'!Z$33=0,NA(),'Indices T.P. matériaux'!Z34/'Indices T.P. matériaux'!Z$33),NA()) -> 1 | AK113: =IFERROR(IF('Indices T.P. matériaux'!AA34/'Indices T.P. matériaux'!AA$33=0,NA(),'Indices T.P. matériaux'!AA34/'Indices T.P. matériaux'!AA$33),NA()) -> 1 | AL113: =IFERROR(IF('Indices T.P. matériaux'!AB34/'Indices T.P. matériaux'!AB$33=0,NA(),'Indices T.P. matériaux'!AB34/'Indices T.P. matériaux'!AB$33),NA()) -> 1.004971377 | AM113: =IFERROR(IF('Indices T.P. matériaux'!AC34/'Indices T.P. matériaux'!AC$33=0,NA(),'Indices T.P. matériaux'!AC34/'Indices T.P. matériaux'!AC$33),NA()) -> 1.007749582 | AN113: =IFERROR(IF('Indices T.P. matériaux'!AD34/'Indices T.P. matériaux'!AD$33=0,NA(),'Indices T.P. matériaux'!AD34/'Indices T.P. matériaux'!AD$33),NA()) -> 1.002040816 | AO113: =IFERROR(IF('Indices T.P. matériaux'!AE34/'Indices T.P. matériaux'!AE$33=0,NA(),'Indices T.P. matériaux'!AE34/'Indices T.P. matériaux'!AE$33),NA()) -> 1.004828002 | AP113: =IFERROR(IF('Indices T.P. matériaux'!AF34/'Indices T.P. matériaux'!AF$33=0,NA(),'Indices T.P. matériaux'!AF34/'Indices T.P. matériaux'!AF$33),NA()) -> 1.002040469 | AQ113: =IFERROR(IF('Indices T.P. matériaux'!AG34/'Indices T.P. matériaux'!AG$33=0,NA(),'Indices T.P. matériaux'!AG34/'Indices T.P. matériaux'!AG$33),NA()) -> 1 | AR113: =IFERROR(IF('Indices T.P. matériaux'!AH34/'Indices T.P. matériaux'!AH$33=0,NA(),'Indices T.P. matériaux'!AH34/'Indices T.P. matériaux'!AH$33),NA()) -> 1.004828002 | AS113: =IFERROR(IF('Indices T.P. matériaux'!AI34/'Indices T.P. matériaux'!AI$33=0,NA(),'Indices T.P. matériaux'!AI34/'Indices T.P. matériaux'!AI$33),NA()) -> 0.9957585644 | AT113: =IFERROR(IF('Indices T.P. matériaux'!AJ34/'Indices T.P. matériaux'!AJ$33=0,NA(),'Indices T.P. matériaux'!AJ34/'Indices T.P. matériaux'!AJ$33),NA()) -> 1.007907543 | AU113: =IFERROR(IF('Indices T.P. matériaux'!AK34/'Indices T.P. matériaux'!AK$33=0,NA(),'Indices T.P. matériaux'!AK34/'Indices T.P. matériaux'!AK$33),NA()) -> 1.002210508 | AV113: =IFERROR(IF('Indices T.P. matériaux'!AL34/'Indices T.P. matériaux'!AL$33=0,NA(),'Indices T.P. matériaux'!AL34/'Indices T.P. matériaux'!AL$33),NA()) -> 1.018975625 | AW113: =IFERROR(IF('Indices T.P. matériaux'!AM34/'Indices T.P. matériaux'!AM$33=0,NA(),'Indices T.P. matériaux'!AM34/'Indices T.P. matériaux'!AM$33),NA()) -> 1.019227811 | AX113: =IFERROR(IF('Indices T.P. matériaux'!AN34/'Indices T.P. matériaux'!AN$33=0,NA(),'Indices T.P. matériaux'!AN34/'Indices T.P. matériaux'!AN$33),NA()) -> 1.019248537 | AY113: =IFERROR(IF('Indices T.P. matériaux'!AO34/'Indices T.P. matériaux'!AO$33=0,NA(),'Indices T.P. matériaux'!AO34/'Indices T.P. matériaux'!AO$33),NA()) -> 0.996911937 | AZ113: =IFERROR(IF('Indices T.P. matériaux'!AP34/'Indices T.P. matériaux'!AP$33=0,NA(),'Indices T.P. matériaux'!AP34/'Indices T.P. matériaux'!AP$33),NA()) -> 1.014732143 | BA113: =IFERROR(IF('Indices T.P. matériaux'!AQ34/'Indices T.P. matériaux'!AQ$33=0,NA(),'Indices T.P. matériaux'!AQ34/'Indices T.P. matériaux'!AQ$33),NA()) -> 0.9730109643 | BB113: =IFERROR(IF('Indices T.P. matériaux'!AR34/'Indices T.P. matériaux'!AR$33=0,NA(),'Indices T.P. matériaux'!AR34/'Indices T.P. matériaux'!AR$33),NA()) ->  | BC113: =IFERROR(IF('Indices T.P. matériaux'!AS34/'Indices T.P. matériaux'!AS$33=0,NA(),'Indices T.P. matériaux'!AS34/'Indices T.P. matériaux'!AS$33),NA()) ->  | BD113: =IFERROR(IF('Indices T.P. matériaux'!AT34/'Indices T.P. matériaux'!AT$33=0,NA(),'Indices T.P. matériaux'!AT34/'Indices T.P. matériaux'!AT$33),NA()) ->  | BE113: =IFERROR(IF('Indices T.P. matériaux'!AU34/'Indices T.P. matériaux'!AU$33=0,NA(),'Indices T.P. matériaux'!AU34/'Indices T.P. matériaux'!AU$33),NA()) ->  | BF113: =IFERROR(IF('Indices T.P. matériaux'!AV34/'Indices T.P. matériaux'!AV$33=0,NA(),'Indices T.P. matériaux'!AV34/'Indices T.P. matériaux'!AV$33),NA()) ->  | BG113: =IFERROR(IF('Indices T.P. matériaux'!AW34/'Indices T.P. matériaux'!AW$33=0,NA(),'Indices T.P. matériaux'!AW34/'Indices T.P. matériaux'!AW$33),NA()) ->  | BH113: =IFERROR(IF('Indices T.P. matériaux'!AX34/'Indices T.P. matériaux'!AX$33=0,NA(),'Indices T.P. matériaux'!AX34/'Indices T.P. matériaux'!AX$33),NA()) ->  | BI113: =IFERROR(IF('Indices T.P. matériaux'!AY34/'Indices T.P. matériaux'!AY$33=0,NA(),'Indices T.P. matériaux'!AY34/'Indices T.P. matériaux'!AY$33),NA()) -> 0.9843406352 | BJ113: =IFERROR(IF('Indices T.P. matériaux'!AZ34/'Indices T.P. matériaux'!AZ$33=0,NA(),'Indices T.P. matériaux'!AZ34/'Indices T.P. matériaux'!AZ$33),NA()) -> 0.9767904509 | BK113: =IFERROR(IF('Indices T.P. matériaux'!BA34/'Indices T.P. matériaux'!BA$33=0,NA(),'Indices T.P. matériaux'!BA34/'Indices T.P. matériaux'!BA$33),NA()) -> 0.9767904509 | BL113: =IFERROR(IF('Indices T.P. matériaux'!BB34/'Indices T.P. matériaux'!BB$33=0,NA(),'Indices T.P. matériaux'!BB34/'Indices T.P. matériaux'!BB$33),NA()) -> 1.016480379 | BM113: =IFERROR(IF('Indices T.P. matériaux'!BC34/'Indices T.P. matériaux'!BC$33=0,NA(),'Indices T.P. matériaux'!BC34/'Indices T.P. matériaux'!BC$33),NA()) -> 1.015994154 | BN113: =IFERROR(IF('Indices T.P. matériaux'!BD34/'Indices T.P. matériaux'!BD$33=0,NA(),'Indices T.P. matériaux'!BD34/'Indices T.P. matériaux'!BD$33),NA()) -> 1 | BO113: =IFERROR(IF('Indices T.P. matériaux'!BE34/'Indices T.P. matériaux'!BE$33=0,NA(),'Indices T.P. matériaux'!BE34/'Indices T.P. matériaux'!BE$33),NA()) -> 0.9747391543 | BP113: =IFERROR(IF('Indices T.P. matériaux'!BF34/'Indices T.P. matériaux'!BF$33=0,NA(),'Indices T.P. matériaux'!BF34/'Indices T.P. matériaux'!BF$33),NA()) ->  | BQ113: =IFERROR(IF('Indices T.P. matériaux'!BG34/'Indices T.P. matériaux'!BG$33=0,NA(),'Indices T.P. matériaux'!BG34/'Indices T.P. matériaux'!BG$33),NA()) -> 1.041583594 | BR113: =IFERROR(IF('Indices T.P. matériaux'!BH34/'Indices T.P. matériaux'!BH$33=0,NA(),'Indices T.P. matériaux'!BH34/'Indices T.P. matériaux'!BH$33),NA()) -> 0.975638549 | BS113: =IFERROR(IF('Indices T.P. matériaux'!BI34/'Indices T.P. matériaux'!BI$33=0,NA(),'Indices T.P. matériaux'!BI34/'Indices T.P. matériaux'!BI$33),NA()) -> 1.016707053 | BT113: =IFERROR(IF('Indices T.P. matériaux'!BJ34/'Indices T.P. matériaux'!BJ$33=0,NA(),'Indices T.P. matériaux'!BJ34/'Indices T.P. matériaux'!BJ$33),NA()) -> 1.00453841 | BU113: =IFERROR(IF('Indices T.P. matériaux'!BK34/'Indices T.P. matériaux'!BK$33=0,NA(),'Indices T.P. matériaux'!BK34/'Indices T.P. matériaux'!BK$33),NA()) -> 1.013582966 | BV113: =IFERROR(IF('Indices T.P. matériaux'!BL34/'Indices T.P. matériaux'!BL$33=0,NA(),'Indices T.P. matériaux'!BL34/'Indices T.P. matériaux'!BL$33),NA()) -> 1 | BW113: =IFERROR(IF('Indices T.P. matériaux'!BM34/'Indices T.P. matériaux'!BM$33=0,NA(),'Indices T.P. matériaux'!BM34/'Indices T.P. matériaux'!BM$33),NA()) -> 1 | BX113: =IFERROR(IF('Indices T.P. matériaux'!BN34/'Indices T.P. matériaux'!BN$33=0,NA(),'Indices T.P. matériaux'!BN34/'Indices T.P. matériaux'!BN$33),NA()) -> 1 | BY113: =IFERROR(IF('Indices T.P. matériaux'!BO34/'Indices T.P. matériaux'!BO$33=0,NA(),'Indices T.P. matériaux'!BO34/'Indices T.P. matériaux'!BO$33),NA()) -> 1 | BZ113: =IFERROR(IF('Indices T.P. matériaux'!BP34/'Indices T.P. matériaux'!BP$33=0,NA(),'Indices T.P. matériaux'!BP34/'Indices T.P. matériaux'!BP$33),NA()) -> 1.007306677 | CA113: =IFERROR(IF('Indices T.P. matériaux'!BQ34/'Indices T.P. matériaux'!BQ$33=0,NA(),'Indices T.P. matériaux'!BQ34/'Indices T.P. matériaux'!BQ$33),NA()) -> 1.007323027 | CB113: =IFERROR(IF('Indices T.P. matériaux'!BR34/'Indices T.P. matériaux'!BR$33=0,NA(),'Indices T.P. matériaux'!BR34/'Indices T.P. matériaux'!BR$33),NA()) -> 1.007131214 | CC113: =IFERROR(IF('Indices T.P. matériaux'!BS34/'Indices T.P. matériaux'!BS$33=0,NA(),'Indices T.P. matériaux'!BS34/'Indices T.P. matériaux'!BS$33),NA()) -> 1.007122507 | CD113: =IFERROR(IF('Indices T.P. matériaux'!BT34/'Indices T.P. matériaux'!BT$33=0,NA(),'Indices T.P. matériaux'!BT34/'Indices T.P. matériaux'!BT$33),NA()) -> 1 | CE113: =IFERROR(IF('Indices T.P. matériaux'!BU34/'Indices T.P. matériaux'!BU$33=0,NA(),'Indices T.P. matériaux'!BU34/'Indices T.P. matériaux'!BU$33),NA()) -> 1 | CF113: =IFERROR(IF('Indices T.P. matériaux'!BV34/'Indices T.P. matériaux'!BV$33=0,NA(),'Indices T.P. matériaux'!BV34/'Indices T.P. matériaux'!BV$33),NA()) -> 1 | CG113: =IFERROR(IF('Indices T.P. matériaux'!BW34/'Indices T.P. matériaux'!BW$33=0,NA(),'Indices T.P. matériaux'!BW34/'Indices T.P. matériaux'!BW$33),NA()) -> 1 | CH113: =IFERROR(IF('Indices T.P. matériaux'!BX34/'Indices T.P. matériaux'!BX$33=0,NA(),'Indices T.P. matériaux'!BX34/'Indices T.P. matériaux'!BX$33),NA()) -> 1 | CI113: =IFERROR(IF('Indices T.P. matériaux'!BY34/'Indices T.P. matériaux'!BY$33=0,NA(),'Indices T.P. matériaux'!BY34/'Indices T.P. matériaux'!BY$33),NA()) -> 1 | CJ113: =IFERROR(IF('Indices T.P. matériaux'!BZ34/'Indices T.P. matériaux'!BZ$33=0,NA(),'Indices T.P. matériaux'!BZ34/'Indices T.P. matériaux'!BZ$33),NA()) -> 1 | CK113: =IFERROR(IF('Indices T.P. matériaux'!CA34/'Indices T.P. matériaux'!CA$33=0,NA(),'Indices T.P. matériaux'!CA34/'Indices T.P. matériaux'!CA$33),NA()) -> 0.990913811 | CL113: =IFERROR(IF('Indices T.P. matériaux'!CB34/'Indices T.P. matériaux'!CB$33=0,NA(),'Indices T.P. matériaux'!CB34/'Indices T.P. matériaux'!CB$33),NA()) -> 0.9907852044 | CM113: =IFERROR(IF('Indices T.P. matériaux'!CC34/'Indices T.P. matériaux'!CC$33=0,NA(),'Indices T.P. matériaux'!CC34/'Indices T.P. matériaux'!CC$33),NA()) -> 0.9907840083 | CN113: =IFERROR(IF('Indices T.P. matériaux'!CD34/'Indices T.P. matériaux'!CD$33=0,NA(),'Indices T.P. matériaux'!CD34/'Indices T.P. matériaux'!CD$33),NA()) -> 0.9573241061 | CO113: =IFERROR(IF('Indices T.P. matériaux'!CE34/'Indices T.P. matériaux'!CE$33=0,NA(),'Indices T.P. matériaux'!CE34/'Indices T.P. matériaux'!CE$33),NA()) -> 0.9573241061 | CP113: =IFERROR(IF('Indices T.P. matériaux'!CF34/'Indices T.P. matériaux'!CF$33=0,NA(),'Indices T.P. matériaux'!CF34/'Indices T.P. matériaux'!CF$33),NA()) -> 0.9877888184 | CQ113: =IFERROR(IF('Indices T.P. matériaux'!CG34/'Indices T.P. matériaux'!CG$33=0,NA(),'Indices T.P. matériaux'!CG34/'Indices T.P. matériaux'!CG$33),NA()) -> 0.9876720527 | CR113: =IFERROR(IF('Indices T.P. matériaux'!CH34/'Indices T.P. matériaux'!CH$33=0,NA(),'Indices T.P. matériaux'!CH34/'Indices T.P. matériaux'!CH$33),NA()) -> 0.9869167535 | CS113: =IFERROR(IF('Indices T.P. matériaux'!CI34/'Indices T.P. matériaux'!CI$33=0,NA(),'Indices T.P. matériaux'!CI34/'Indices T.P. matériaux'!CI$33),NA()) -> 0.9175285426 | CT113: =IFERROR(IF('Indices T.P. matériaux'!CJ34/'Indices T.P. matériaux'!CJ$33=0,NA(),'Indices T.P. matériaux'!CJ34/'Indices T.P. matériaux'!CJ$33),NA()) -> 1.000684838 | CU113: =IFERROR(IF('Indices T.P. matériaux'!CK34/'Indices T.P. matériaux'!CK$33=0,NA(),'Indices T.P. matériaux'!CK34/'Indices T.P. matériaux'!CK$33),NA()) -> 1.00074184 | CV113: =IFERROR(IF('Indices T.P. matériaux'!CL34/'Indices T.P. matériaux'!CL$33=0,NA(),'Indices T.P. matériaux'!CL34/'Indices T.P. matériaux'!CL$33),NA()) -> 1.012052371 | CW113: =IFERROR(IF('Indices T.P. matériaux'!CM34/'Indices T.P. matériaux'!CM$33=0,NA(),'Indices T.P. matériaux'!CM34/'Indices T.P. matériaux'!CM$33),NA()) -> 1.011290505 | CX113: =IFERROR(IF('Indices T.P. matériaux'!CN34/'Indices T.P. matériaux'!CN$33=0,NA(),'Indices T.P. matériaux'!CN34/'Indices T.P. matériaux'!CN$33),NA()) -> 1.001995787 | CY113: =IFERROR(IF('Indices T.P. matériaux'!CO34/'Indices T.P. matériaux'!CO$33=0,NA(),'Indices T.P. matériaux'!CO34/'Indices T.P. matériaux'!CO$33),NA()) -> 1.009946796 | CZ113: =IFERROR(IF('Indices T.P. matériaux'!CP34/'Indices T.P. matériaux'!CP$33=0,NA(),'Indices T.P. matériaux'!CP34/'Indices T.P. matériaux'!CP$33),NA()) -> 1.009083202 | DA113: =IFERROR(IF('Indices T.P. matériaux'!CQ34/'Indices T.P. matériaux'!CQ$33=0,NA(),'Indices T.P. matériaux'!CQ34/'Indices T.P. matériaux'!CQ$33),NA()) ->  | DB113: =IFERROR(IF('Indices T.P. matériaux'!CR34/'Indices T.P. matériaux'!CR$33=0,NA(),'Indices T.P. matériaux'!CR34/'Indices T.P. matériaux'!CR$33),NA()) ->  | DC113: =IFERROR(IF('Indices T.P. matériaux'!CS34/'Indices T.P. matériaux'!CS$33=0,NA(),'Indices T.P. matériaux'!CS34/'Indices T.P. matériaux'!CS$33),NA()) ->  | DD113: =IFERROR(IF('Indices T.P. matériaux'!CT34/'Indices T.P. matériaux'!CT$33=0,NA(),'Indices T.P. matériaux'!CT34/'Indices T.P. matériaux'!CT$33),NA()) ->  | DE113: =IFERROR(IF('Indices Grymafer'!D32/'Indices Grymafer'!D$31=0,NA(),'Indices Grymafer'!D32/'Indices Grymafer'!D$31),NA()) -> 0.9938366718 | DF113: =IFERROR(IF('Indices Grymafer'!E32/'Indices Grymafer'!E$31=0,NA(),'Indices Grymafer'!E32/'Indices Grymafer'!E$31),NA()) -> 0.9961038961 | DG113: =IFERROR(IF('Indices Grymafer'!F32/'Indices Grymafer'!F$31=0,NA(),'Indices Grymafer'!F32/'Indices Grymafer'!F$31),NA()) -> 1.001112347 | DH113: =IFERROR(IF('Indices Grymafer'!G32/'Indices Grymafer'!G$31=0,NA(),'Indices Grymafer'!G32/'Indices Grymafer'!G$31),NA()) -> 0.9961290323 | DI113: =IFERROR(IF('Indices T.P. matériaux'!CW34/'Indices T.P. matériaux'!CW$33=0,NA(),'Indices T.P. matériaux'!CW34/'Indices T.P. matériaux'!CW$33),NA()) -> 1.007769552 | DJ113: =IFERROR(IF('Indices T.P. matériaux'!CX34/'Indices T.P. matériaux'!CX$33=0,NA(),'Indices T.P. matériaux'!CX34/'Indices T.P. matériaux'!CX$33),NA()) -> 1.005122832 | DK113: =IFERROR(IF('Indices T.P. matériaux'!CY34/'Indices T.P. matériaux'!CY$33=0,NA(),'Indices T.P. matériaux'!CY34/'Indices T.P. matériaux'!CY$33),NA()) -> 1.000439367 | DL113: =IFERROR(IF('Indices T.P. matériaux'!CZ34/'Indices T.P. matériaux'!CZ$33=0,NA(),'Indices T.P. matériaux'!CZ34/'Indices T.P. matériaux'!CZ$33),NA()) -> 1.00150858 | DM113: =IFERROR(IF('Indices T.P. matériaux'!DA34/'Indices T.P. matériaux'!DA$33=0,NA(),'Indices T.P. matériaux'!DA34/'Indices T.P. matériaux'!DA$33),NA()) -> 0.865497076 | DN113: =IFERROR(IF('Indices T.P. matériaux'!DB34/'Indices T.P. matériaux'!DB$33=0,NA(),'Indices T.P. matériaux'!DB34/'Indices T.P. matériaux'!DB$33),NA()) -> 1.001598195 | DO113: =IFERROR(IF('Indices T.P. matériaux'!DC34/'Indices T.P. matériaux'!DC$33=0,NA(),'Indices T.P. matériaux'!DC34/'Indices T.P. matériaux'!DC$33),NA()) -> 1 | DP113: =IFERROR(IF('Indices T.P. matériaux'!DD34/'Indices T.P. matériaux'!DD$33=0,NA(),'Indices T.P. matériaux'!DD34/'Indices T.P. matériaux'!DD$33),NA()) -> 1.001598195 | DR113: ='Indices courants'!C30 -> 2018-02-01 | DS113: =IFERROR(IF('Indices des produits & services'!D32/'Indices des produits & services'!D$31=0,NA(),'Indices des produits & services'!D32/'Indices des produits & services'!D$31),NA()) -> 1 | DT113: =IFERROR(IF('Indices des produits & services'!E32/'Indices des produits & services'!E$31=0,NA(),'Indices des produits & services'!E32/'Indices des produits & services'!E$31),NA()) -> 1 | DU113: =IFERROR(IF('Indices des produits & services'!F32/'Indices des produits & services'!F$31=0,NA(),'Indices des produits & services'!F32/'Indices des produits & services'!F$31),NA()) -> 1 | DV113: =IFERROR(IF('Indices des produits & services'!G32/'Indices des produits & services'!G$31=0,NA(),'Indices des produits & services'!G32/'Indices des produits & services'!G$31),NA()) -> 1 | DW113: =IFERROR(IF('Indices des produits & services'!H32/'Indices des produits & services'!H$31=0,NA(),'Indices des produits & services'!H32/'Indices des produits & services'!H$31),NA()) -> 1 | DX113: =IFERROR(IF('Indices des produits & services'!I32/'Indices des produits & services'!I$31=0,NA(),'Indices des produits & services'!I32/'Indices des produits & services'!I$31),NA()) -> 1 | DY113: =IFERROR(IF('Indices des produits & services'!J32/'Indices des produits & services'!J$31=0,NA(),'Indices des produits & services'!J32/'Indices des produits & services'!J$31),NA()) -> 1 | DZ113: =IFERROR(IF('Indices des produits & services'!K32/'Indices des produits & services'!K$31=0,NA(),'Indices des produits & services'!K32/'Indices des produits & services'!K$31),NA()) -> 1 | EA113: =IFERROR(IF('Indices des produits & services'!L32/'Indices des produits & services'!L$31=0,NA(),'Indices des produits & services'!L32/'Indices des produits & services'!L$31),NA()) -> 1 | EB113: =IFERROR(IF('Indices des produits & services'!M32/'Indices des produits & services'!M$31=0,NA(),'Indices des produits & services'!M32/'Indices des produits & services'!M$31),NA()) -> 1 | EC113: =IFERROR(IF('Indices des produits & services'!N32/'Indices des produits & services'!N$31=0,NA(),'Indices des produits & services'!N32/'Indices des produits & services'!N$31),NA()) -> 1 | ED113: =IFERROR(IF('Indices des produits & services'!O32/'Indices des produits & services'!O$31=0,NA(),'Indices des produits & services'!O32/'Indices des produits & services'!O$31),NA()) -> 1 | EE113: =IFERROR(IF('Indices des produits & services'!P32/'Indices des produits & services'!P$31=0,NA(),'Indices des produits & services'!P32/'Indices des produits & services'!P$31),NA()) -> 0.9850498339 | EF113: =IFERROR(IF('Indices des produits & services'!Q32/'Indices des produits & services'!Q$31=0,NA(),'Indices des produits & services'!Q32/'Indices des produits & services'!Q$31),NA()) -> 1.008952551 | EG113: =IFERROR(IF('Indices des produits & services'!R32/'Indices des produits & services'!R$31=0,NA(),'Indices des produits & services'!R32/'Indices des produits & services'!R$31),NA()) -> 1.013220019 | EH113: =IFERROR(IF('Indices des produits & services'!S32/'Indices des produits & services'!S$31=0,NA(),'Indices des produits & services'!S32/'Indices des produits & services'!S$31),NA()) -> 1.026785714 | EI113: =IFERROR(IF('Indices des produits & services'!T32/'Indices des produits & services'!T$31=0,NA(),'Indices des produits & services'!T32/'Indices des produits & services'!T$31),NA()) -> 1.001749781 | EJ113: =IFERROR(IF('Indices des produits & services'!U32/'Indices des produits & services'!U$31=0,NA(),'Indices des produits & services'!U32/'Indices des produits & services'!U$31),NA()) -> 1.00262697 | EK113: =IFERROR(IF('Indices des produits & services'!V32/'Indices des produits & services'!V$31=0,NA(),'Indices des produits & services'!V32/'Indices des produits & services'!V$31),NA()) -> 1 | EL113: =IFERROR(IF('Indices des produits & services'!W32/'Indices des produits & services'!W$31=0,NA(),'Indices des produits & services'!W32/'Indices des produits & services'!W$31),NA()) -> 1.008006405 | EM113: =IFERROR(IF('Indices des produits & services'!X32/'Indices des produits & services'!X$31=0,NA(),'Indices des produits & services'!X32/'Indices des produits & services'!X$31),NA()) -> 1 | EN113: =IFERROR(IF('Indices des produits & services'!Y32/'Indices des produits & services'!Y$31=0,NA(),'Indices des produits & services'!Y32/'Indices des produits & services'!Y$31),NA()) -> 1.004321521 | EO113: =IFERROR(IF('Indices des produits & services'!Z32/'Indices des produits & services'!Z$31=0,NA(),'Indices des produits & services'!Z32/'Indices des produits & services'!Z$31),NA()) -> 0.9836909871 | EP113: =IFERROR(IF('Indices des produits & services'!AA32/'Indices des produits & services'!AA$31=0,NA(),'Indices des produits & services'!AA32/'Indices des produits & services'!AA$31),NA()) -> 0.8878416588 | EQ113: =IFERROR(IF('Indices des produits & services'!AB32/'Indices des produits & services'!AB$31=0,NA(),'Indices des produits & services'!AB32/'Indices des produits & services'!AB$31),NA()) -> 1.015177066 | ER113: =IFERROR(IF('Indices des produits & services'!AC32/'Indices des produits & services'!AC$31=0,NA(),'Indices des produits & services'!AC32/'Indices des produits & services'!AC$31),NA()) -> 1.018581081 | ES113: =IFERROR(IF('Indices des produits & services'!AD32/'Indices des produits & services'!AD$31=0,NA(),'Indices des produits & services'!AD32/'Indices des produits & services'!AD$31),NA()) -> 1.014370245 | ET113: =IFERROR(IF('Indices des produits & services'!AE32/'Indices des produits & services'!AE$31=0,NA(),'Indices des produits & services'!AE32/'Indices des produits & services'!AE$31),NA()) -> 1.01177394 | EU113: =IFERROR(IF('Indices des produits & services'!AF32/'Indices des produits & services'!AF$31=0,NA(),'Indices des produits & services'!AF32/'Indices des produits & services'!AF$31),NA()) -> 1.000868056 | EV113: =IFERROR(IF('Indices des produits & services'!AG32/'Indices des produits & services'!AG$31=0,NA(),'Indices des produits & services'!AG32/'Indices des produits & services'!AG$31),NA()) -> 1.003581021 | EW113: =IFERROR(IF('Indices des produits & services'!AH32/'Indices des produits & services'!AH$31=0,NA(),'Indices des produits & services'!AH32/'Indices des produits & services'!AH$31),NA()) -> 0.9704301075 | EX113: =IFERROR(IF('Indices des produits & services'!AI32/'Indices des produits & services'!AI$31=0,NA(),'Indices des produits & services'!AI32/'Indices des produits & services'!AI$31),NA()) -> 0.9982486865 | EY113: =IFERROR(IF('Indices des produits & services'!AJ32/'Indices des produits & services'!AJ$31=0,NA(),'Indices des produits & services'!AJ32/'Indices des produits & services'!AJ$31),NA()) -> 1 | EZ113: =IFERROR(IF('Indices des produits & services'!AK32/'Indices des produits & services'!AK$31=0,NA(),'Indices des produits & services'!AK32/'Indices des produits & services'!AK$31),NA()) -> 0.9548989114 | FA113: =IFERROR(IF('Indices des produits & services'!AL32/'Indices des produits & services'!AL$31=0,NA(),'Indices des produits & services'!AL32/'Indices des produits & services'!AL$31),NA()) -> 1.00483611 | FB113: =IFERROR(IF('Indices des produits & services'!AM32/'Indices des produits & services'!AM$31=0,NA(),'Indices des produits & services'!AM32/'Indices des produits & services'!AM$31),NA()) -> 1.018404908 | FC113: =IFERROR(IF('Indices des produits & services'!AN32/'Indices des produits & services'!AN$31=0,NA(),'Indices des produits & services'!AN32/'Indices des produits & services'!AN$31),NA()) -> 0.986770428 | FD113: =IFERROR(IF('Indices des produits & services'!AO32/'Indices des produits & services'!AO$31=0,NA(),'Indices des produits & services'!AO32/'Indices des produits & services'!AO$31),NA()) -> 1.001771479 | FE113: =IFERROR(IF('Indices des produits & services'!AP32/'Indices des produits & services'!AP$31=0,NA(),'Indices des produits & services'!AP32/'Indices des produits & services'!AP$31),NA()) -> 0.9982222222 | FF113: =IFERROR(IF('Indices des produits & services'!AQ32/'Indices des produits & services'!AQ$31=0,NA(),'Indices des produits & services'!AQ32/'Indices des produits & services'!AQ$31),NA()) -> 1.00177305 | FG113: =IFERROR(IF('Indices des produits & services'!AR32/'Indices des produits & services'!AR$31=0,NA(),'Indices des produits & services'!AR32/'Indices des produits & services'!AR$31),NA()) -> 1.01182266 | FH113: =IFERROR(IF('Indices des produits & services'!AS32/'Indices des produits & services'!AS$31=0,NA(),'Indices des produits & services'!AS32/'Indices des produits & services'!AS$31),NA()) -> 0.9984152139 | FI113: =IFERROR(IF('Indices des produits & services'!AT32/'Indices des produits & services'!AT$31=0,NA(),'Indices des produits & services'!AT32/'Indices des produits & services'!AT$31),NA()) -> 1.008704062 | FJ113: =IFERROR(IF('Indices des produits & services'!AU32/'Indices des produits & services'!AU$31=0,NA(),'Indices des produits & services'!AU32/'Indices des produits & services'!AU$31),NA()) -> 1.011385199 | FK113: =IFERROR(IF('Indices des produits & services'!AV32/'Indices des produits & services'!AV$31=0,NA(),'Indices des produits & services'!AV32/'Indices des produits & services'!AV$31),NA()) -> 1.023162135 | FL113: =IFERROR(IF('Indices des produits & services'!AW32/'Indices des produits & services'!AW$31=0,NA(),'Indices des produits & services'!AW32/'Indices des produits & services'!AW$31),NA()) -> 1.084269663 | FM113: =IFERROR(IF('Indices des produits & services'!AX32/'Indices des produits & services'!AX$31=0,NA(),'Indices des produits & services'!AX32/'Indices des produits & services'!AX$31),NA()) -> 1.01453958 | FN113: =IFERROR(IF('Indices des produits & services'!AY32/'Indices des produits & services'!AY$31=0,NA(),'Indices des produits & services'!AY32/'Indices des produits & services'!AY$31),NA()) -> 1.01453958 | FO113: =IFERROR(IF('Indices des produits & services'!AZ32/'Indices des produits & services'!AZ$31=0,NA(),'Indices des produits & services'!AZ32/'Indices des produits & services'!AZ$31),NA()) -> 0.9911242604 | FP113: =IFERROR(IF('Indices des produits & services'!BA32/'Indices des produits & services'!BA$31=0,NA(),'Indices des produits & services'!BA32/'Indices des produits & services'!BA$31),NA()) -> 0.976386037 | FQ113: =IFERROR(IF('Indices des produits & services'!BB32/'Indices des produits & services'!BB$31=0,NA(),'Indices des produits & services'!BB32/'Indices des produits & services'!BB$31),NA()) -> 1.01605288 | FR113: =IFERROR(IF('Indices des produits & services'!BC32/'Indices des produits & services'!BC$31=0,NA(),'Indices des produits & services'!BC32/'Indices des produits & services'!BC$31),NA()) -> 1.018248175 | FS113: =IFERROR(IF('Indices des produits & services'!BD32/'Indices des produits & services'!BD$31=0,NA(),'Indices des produits & services'!BD32/'Indices des produits & services'!BD$31),NA()) -> 1.018518519 | FT113: =IFERROR(IF('Indices des produits & services'!BE32/'Indices des produits & services'!BE$31=0,NA(),'Indices des produits & services'!BE32/'Indices des produits & services'!BE$31),NA()) -> 0.9930693069 | FU113: =IFERROR(IF('Indices des produits & services'!BF32/'Indices des produits & services'!BF$31=0,NA(),'Indices des produits & services'!BF32/'Indices des produits & services'!BF$31),NA()) -> 1 | FV113: =IFERROR(IF('Indices des produits & services'!BG32/'Indices des produits & services'!BG$31=0,NA(),'Indices des produits & services'!BG32/'Indices des produits & services'!BG$31),NA()) -> 1.012 | FW113: =IFERROR(IF('Indices des produits & services'!BH32/'Indices des produits & services'!BH$31=0,NA(),'Indices des produits & services'!BH32/'Indices des produits & services'!BH$31),NA()) -> 0.9918433931 | FX113: =IFERROR(IF('Indices des produits & services'!BI32/'Indices des produits & services'!BI$31=0,NA(),'Indices des produits & services'!BI32/'Indices des produits & services'!BI$31),NA()) -> 1.00859375 | FY113: =IFERROR(IF('Indices des produits & services'!BJ32/'Indices des produits & services'!BJ$31=0,NA(),'Indices des produits & services'!BJ32/'Indices des produits & services'!BJ$31),NA()) -> 0.9933649289 | FZ113: =IFERROR(IF('Indices des produits & services'!BK32/'Indices des produits & services'!BK$31=0,NA(),'Indices des produits & services'!BK32/'Indices des produits & services'!BK$31),NA()) -> 0.9924242424 | GA113: =IFERROR(IF('Indices des produits & services'!BL32/'Indices des produits & services'!BL$31=0,NA(),'Indices des produits & services'!BL32/'Indices des produits & services'!BL$31),NA()) -> 0.9828767123 | GB113: =IFERROR(IF('Indices des produits & services'!BM32/'Indices des produits & services'!BM$31=0,NA(),'Indices des produits & services'!BM32/'Indices des produits & services'!BM$31),NA()) -> 0.999122807 | GC113: =IFERROR(IF('Indices des produits & services'!BN32/'Indices des produits & services'!BN$31=0,NA(),'Indices des produits & services'!BN32/'Indices des produits & services'!BN$31),NA()) -> 1 | GD113: =IFERROR(IF('Indices des produits & services'!BO32/'Indices des produits & services'!BO$31=0,NA(),'Indices des produits & services'!BO32/'Indices des produits & services'!BO$31),NA()) -> 1 | GE113: =IFERROR(IF('Indices des produits & services'!BP32/'Indices des produits & services'!BP$31=0,NA(),'Indices des produits & services'!BP32/'Indices des produits & services'!BP$31),NA()) -> 1.021052632 | GF113: =IFERROR(IF('Indices des produits & services'!BQ32/'Indices des produits & services'!BQ$31=0,NA(),'Indices des produits & services'!BQ32/'Indices des produits & services'!BQ$31),NA()) -> 1.008093525 | GG113: =IFERROR(IF('Indices des produits & services'!BR32/'Indices des produits & services'!BR$31=0,NA(),'Indices des produits & services'!BR32/'Indices des produits & services'!BR$31),NA()) -> 1.011009174 | GH113: =IFERROR(IF('Indices des produits & services'!BS32/'Indices des produits & services'!BS$31=0,NA(),'Indices des produits & services'!BS32/'Indices des produits & services'!BS$31),NA()) -> 1.00174216 | GI113: =IFERROR(IF('Indices des produits & services'!BT32/'Indices des produits & services'!BT$31=0,NA(),'Indices des produits & services'!BT32/'Indices des produits & services'!BT$31),NA()) -> 1.008183306 | GJ113: =IFERROR(IF('Indices des produits & services'!BU32/'Indices des produits & services'!BU$31=0,NA(),'Indices des produits & services'!BU32/'Indices des produits & services'!BU$31),NA()) -> 1.010507881 | GK113: =IFERROR(IF('Indices des produits & services'!BV32/'Indices des produits & services'!BV$31=0,NA(),'Indices des produits & services'!BV32/'Indices des produits & services'!BV$31),NA()) -> 1.025568182 | GL113: =IFERROR(IF('Indices des produits & services'!BW32/'Indices des produits & services'!BW$31=0,NA(),'Indices des produits & services'!BW32/'Indices des produits & services'!BW$31),NA()) -> 1 | GM113: =IFERROR(IF('Indices des produits & services'!BX32/'Indices des produits & services'!BX$31=0,NA(),'Indices des produits & services'!BX32/'Indices des produits & services'!BX$31),NA()) -> 1.025217391 | GN113: =IFERROR(IF('Indices des produits & services'!BY32/'Indices des produits & services'!BY$31=0,NA(),'Indices des produits & services'!BY32/'Indices des produits & services'!BY$31),NA()) -> 1.043413174 | GO113: =IFERROR(IF('Indices des produits & services'!BZ32/'Indices des produits & services'!BZ$31=0,NA(),'Indices des produits & services'!BZ32/'Indices des produits & services'!BZ$31),NA()) -> 1.020462633 | GP113: =IFERROR(IF('Indices des produits & services'!CA32/'Indices des produits & services'!CA$31=0,NA(),'Indices des produits & services'!CA32/'Indices des produits & services'!CA$31),NA()) -> 1.048212801 | GQ113: =IFERROR(IF('Indices des produits & services'!CB32/'Indices des produits & services'!CB$31=0,NA(),'Indices des produits & services'!CB32/'Indices des produits & services'!CB$31),NA()) -> 1 | GR113: =IFERROR(IF('Indices des produits & services'!CC32/'Indices des produits & services'!CC$31=0,NA(),'Indices des produits & services'!CC32/'Indices des produits & services'!CC$31),NA()) -> 1.001771479 | GS113: =IFERROR(IF('Indices des produits & services'!CD32/'Indices des produits & services'!CD$31=0,NA(),'Indices des produits & services'!CD32/'Indices des produits & services'!CD$31),NA()) -> 1.010110294 | GT113: =IFERROR(IF('Indices des produits & services'!CE32/'Indices des produits & services'!CE$31=0,NA(),'Indices des produits & services'!CE32/'Indices des produits & services'!CE$31),NA()) -> 1.00199005 | GU113: =IFERROR(IF('Indices des produits & services'!CF32/'Indices des produits & services'!CF$31=0,NA(),'Indices des produits & services'!CF32/'Indices des produits & services'!CF$31),NA()) -> 1.001755926 | GV113: =IFERROR(IF('Indices des produits & services'!CG32/'Indices des produits & services'!CG$31=0,NA(),'Indices des produits & services'!CG32/'Indices des produits & services'!CG$31),NA()) -> 1 | GW113: =IFERROR(IF('Indices des produits & services'!CH32/'Indices des produits & services'!CH$31=0,NA(),'Indices des produits & services'!CH32/'Indices des produits & services'!CH$31),NA()) -> 1.000888889 | GX113: =IFERROR(IF('Indices des produits & services'!CI32/'Indices des produits & services'!CI$31=0,NA(),'Indices des produits & services'!CI32/'Indices des produits & services'!CI$31),NA()) -> 1.00292113 | GY113: =IFERROR(IF('Indices des produits & services'!CJ32/'Indices des produits & services'!CJ$31=0,NA(),'Indices des produits & services'!CJ32/'Indices des produits & services'!CJ$31),NA()) -> 1.003157895 | GZ113: =IFERROR(IF('Indices des produits & services'!CK32/'Indices des produits & services'!CK$31=0,NA(),'Indices des produits & services'!CK32/'Indices des produits & services'!CK$31),NA()) -> 0.9918276374 | HA113: =IFERROR(IF('Indices des produits & services'!CL32/'Indices des produits & services'!CL$31=0,NA(),'Indices des produits & services'!CL32/'Indices des produits & services'!CL$31),NA()) -> 0.9887955182 | HB113: =IFERROR(IF('Indices des produits & services'!CM32/'Indices des produits & services'!CM$31=0,NA(),'Indices des produits & services'!CM32/'Indices des produits & services'!CM$31),NA()) -> 1.002923977 | HC113: =IFERROR(IF('Indices des produits & services'!CN32/'Indices des produits & services'!CN$31=0,NA(),'Indices des produits & services'!CN32/'Indices des produits & services'!CN$31),NA()) -> 1.00090009 | HE113: =Tableau21[[#This Row],[Période]] -> 2018-02-01 | HF113: =IFERROR(IF('Indices courants'!J30/'Indices courants'!J$29=0,NA(),'Indices courants'!J30/'Indices courants'!J$29),NA()) -> 1.000353994 | HG113: =IFERROR(IF('Indices courants'!K30/'Indices courants'!K$29=0,NA(),'Indices courants'!K30/'Indices courants'!K$29),NA()) -> 1.00031295 | HH113: =IFERROR(IF('Indices courants'!L30/'Indices courants'!L$29=0,NA(),'Indices courants'!L30/'Indices courants'!L$29),NA()) -> 1.000344299 | HI113: =IFERROR(IF('Indices courants'!M30/'Indices courants'!M$29=0,NA(),'Indices courants'!M30/'Indices courants'!M$29),NA()) -> 1.000354359 | HJ113: =IFERROR(IF('Indices courants'!N30/'Indices courants'!N$29=0,NA(),'Indices courants'!N30/'Indices courants'!N$29),NA()) -> 1.000313264 | HK113: =IFERROR(IF('Indices courants'!O30/'Indices courants'!O$29=0,NA(),'Indices courants'!O30/'Indices courants'!O$29),NA()) -> 1.000344644 | HL113: =IFERROR(IF('Indices courants'!P30/'Indices courants'!P$29=0,NA(),'Indices courants'!P30/'Indices courants'!P$29),NA()) -> 1.000361973 | HM113: =IFERROR(IF('Indices courants'!Q30/'Indices courants'!Q$29=0,NA(),'Indices courants'!Q30/'Indices courants'!Q$29),NA()) -> 1.000319806 | HN113: =IFERROR(IF('Indices courants'!R30/'Indices courants'!R$29=0,NA(),'Indices courants'!R30/'Indices courants'!R$29),NA()) -> 1.000351842 | HO113: =IFERROR(IF('Indices courants'!S30/'Indices courants'!S$29=0,NA(),'Indices courants'!S30/'Indices courants'!S$29),NA()) -> 1.000367955 | HP113: =IFERROR(IF('Indices courants'!T30/'Indices courants'!T$29=0,NA(),'Indices courants'!T30/'Indices courants'!T$29),NA()) -> 1.000357433 | HQ113: =IFERROR(IF('Indices courants'!U30/'Indices courants'!U$29=0,NA(),'Indices courants'!U30/'Indices courants'!U$29),NA()) -> 1.000357491 | HR113: =IFERROR(IF('Indices courants'!V30/'Indices courants'!V$29=0,NA(),'Indices courants'!V30/'Indices courants'!V$29),NA()) -> 1.000795355 | HS113: =IFERROR(IF('Indices courants'!W30/'Indices courants'!W$29=0,NA(),'Indices courants'!W30/'Indices courants'!W$29),NA()) -> 1.000747737 | HT113: =IFERROR(IF('Indices courants'!X30/'Indices courants'!X$29=0,NA(),'Indices courants'!X30/'Indices courants'!X$29),NA()) -> 0.9960738123 | HU113: =IFERROR(IF('Indices courants'!Y30/'Indices courants'!Y$29=0,NA(),'Indices courants'!Y30/'Indices courants'!Y$29),NA()) -> 0.9968739717 | HV113: =IFERROR(IF('Indices courants'!Z30/'Indices courants'!Z$29=0,NA(),'Indices courants'!Z30/'Indices courants'!Z$29),NA()) -> 0.995246718 | HW113: =IFERROR(IF('Indices courants'!AA30/'Indices courants'!AA$29=0,NA(),'Indices courants'!AA30/'Indices courants'!AA$29),NA()) -> 0.9961118311 | HX113: =IFERROR(IF('Indices courants'!AB30/'Indices courants'!AB$29=0,NA(),'Indices courants'!AB30/'Indices courants'!AB$29),NA()) -> 0.9951576345 | HY113: =IFERROR(IF('Indices courants'!AC30/'Indices courants'!AC$29=0,NA(),'Indices courants'!AC30/'Indices courants'!AC$29),NA()) -> 0.9935228745 | HZ113: =Tableau21[[#This Row],[Evolution des prix selon formule de révision - indice i 2021]] -> 1 | IA113: =Tableau21[[#This Row],[Evolution des prix selon formule de révision - indice i]] -> 1 | IB113: =Tableau21[[#This Row],[Augmentation mois par mois - selon indice i 2021]] -> 1 | IC113: =Tableau21[[#This Row],[Augmentation mois par mois - selon indice i ]] -> 1 | ID113: =IFERROR(IF('Indexations des salaires par CP'!BY39/'Indexations des salaires par CP'!BY$38=0,NA(),'Indexations des salaires par CP'!BY39/'Indexations des salaires par CP'!BY$38),NA()) -> 1 | IE113: =IFERROR(IF('Indexations des salaires par CP'!BZ39/'Indexations des salaires par CP'!BZ$38=0,NA(),'Indexations des salaires par CP'!BZ39/'Indexations des salaires par CP'!BZ$38),NA()) -> 1 | IF113: =IFERROR(IF('Indexations des salaires par CP'!CA39/'Indexations des salaires par CP'!CA$38=0,NA(),'Indexations des salaires par CP'!CA39/'Indexations des salaires par CP'!CA$38),NA()) -> 1 | IG113: =IFERROR(IF('Indexations des salaires par CP'!CB39/'Indexations des salaires par CP'!CB$38=0,NA(),'Indexations des salaires par CP'!CB39/'Indexations des salaires par CP'!CB$38),NA()) -> 1 | IH113: =IFERROR(IF('Indexations des salaires par CP'!CC39/'Indexations des salaires par CP'!CC$38=0,NA(),'Indexations des salaires par CP'!CC39/'Indexations des salaires par CP'!CC$38),NA()) -> 1 | II113: =IFERROR(IF('Indexations des salaires par CP'!CD39/'Indexations des salaires par CP'!CD$38=0,NA(),'Indexations des salaires par CP'!CD39/'Indexations des salaires par CP'!CD$38),NA()) -> 1 | IJ113: =IFERROR(IF('Indexations des salaires par CP'!CE39/'Indexations des salaires par CP'!CE$38=0,NA(),'Indexations des salaires par CP'!CE39/'Indexations des salaires par CP'!CE$38),NA()) -> 1 | IK113: =IFERROR(IF('Indexations des salaires par CP'!CF39/'Indexations des salaires par CP'!CF$38=0,NA(),'Indexations des salaires par CP'!CF39/'Indexations des salaires par CP'!CF$38),NA()) -> 1 | IL113: =IFERROR(IF('Indexations des salaires par CP'!CG39/'Indexations des salaires par CP'!CG$38=0,NA(),'Indexations des salaires par CP'!CG39/'Indexations des salaires par CP'!CG$38),NA()) -> 1 | IM113: =IFERROR(IF('Indexations des salaires par CP'!CH39/'Indexations des salaires par CP'!CH$38=0,NA(),'Indexations des salaires par CP'!CH39/'Indexations des salaires par CP'!CH$38),NA()) -> 1
B114: ='Indices courants'!C31 -> 2018-03-01 | C114: =IFERROR(IF('Indices courants'!D31/'Indices courants'!D$29=0,NA(),'Indices courants'!D31/'Indices courants'!D$29),NA()) -> 0.9902271862 | D114: =IFERROR(IF('Indices courants'!E31/'Indices courants'!E$29=0,NA(),'Indices courants'!E31/'Indices courants'!E$29),NA()) -> 1.010853835 | E114: =IFERROR(IF('Indices courants'!F31/'Indices courants'!F$29=0,NA(),'Indices courants'!F31/'Indices courants'!F$29),NA()) -> 0.9915201005 | F114: =IFERROR(IF('Indices courants'!G31/'Indices courants'!G$29=0,NA(),'Indices courants'!G31/'Indices courants'!G$29),NA()) -> 0.992338339 | G114: =IFERROR(IF('Indices courants'!H31/'Indices courants'!H$29=0,NA(),'Indices courants'!H31/'Indices courants'!H$29),NA()) -> 0.9829163855 | H114: =IFERROR(IF('Indices courants'!I31/'Indices courants'!I$29=0,NA(),'Indices courants'!I31/'Indices courants'!I$29),NA()) -> 1.014556608 | I114: =IF('Indices courants'!E30=0,NA(),IF('Indices courants'!J31=0,NA(),IFERROR(ROUND(((('Formule de révision courante'!$E$27*('Indices courants'!E30/'Indices courants'!E29)+'Formule de révision courante'!$E$21*('Indices courants'!J31/'Indices courants'!J30)+'Formule de révision courante'!$E$33))*'Graphique évolution des indices'!I113),5),NA()))) -> 1.00385 | J114: =IF('Indices courants'!D30=0,NA(),IF('Indices courants'!J31=0,NA(),IFERROR(ROUND(((('Formule de révision courante'!$E$27*('Indices courants'!D30/'Indices courants'!D29)+'Formule de révision courante'!$E$21*('Indices courants'!J31/'Indices courants'!J30)+'Formule de révision courante'!$E$33))*'Graphique évolution des indices'!I113),5),NA()))) -> 1.00071 | K114: =IF('Indices courants'!E30=0,NA(),IF('Indices courants'!J31=0,NA(),IFERROR(ROUND(((('Formule de révision courante'!$E$27*('Indices courants'!E30/'Indices courants'!E29)+'Formule de révision courante'!$E$21*('Indices courants'!J31/'Indices courants'!J30)+'Formule de révision courante'!$E$33))),5),NA()))) -> 1.00385 | L114: =IF('Indices courants'!D30=0,NA(),IF('Indices courants'!J31=0,NA(),IFERROR(ROUND(((('Formule de révision courante'!$E$27*('Indices courants'!D30/'Indices courants'!D29)+'Formule de révision courante'!$E$21*('Indices courants'!J31/'Indices courants'!J30)+'Formule de révision courante'!$E$33))),5),NA()))) -> 1.00071 | M114: =IFERROR(IF('Indices T.P. matériaux'!C35/'Indices T.P. matériaux'!C$33=0,NA(),'Indices T.P. matériaux'!C35/'Indices T.P. matériaux'!C$33),NA()) -> 1 | N114: =IFERROR(IF('Indices T.P. matériaux'!D35/'Indices T.P. matériaux'!D$33=0,NA(),'Indices T.P. matériaux'!D35/'Indices T.P. matériaux'!D$33),NA()) -> 1 | O114: =IFERROR(IF('Indices T.P. matériaux'!E35/'Indices T.P. matériaux'!E$33=0,NA(),'Indices T.P. matériaux'!E35/'Indices T.P. matériaux'!E$33),NA()) -> 1 | P114: =IFERROR(IF('Indices T.P. matériaux'!F35/'Indices T.P. matériaux'!F$33=0,NA(),'Indices T.P. matériaux'!F35/'Indices T.P. matériaux'!F$33),NA()) -> 1 | Q114: =IFERROR(IF('Indices T.P. matériaux'!G35/'Indices T.P. matériaux'!G$33=0,NA(),'Indices T.P. matériaux'!G35/'Indices T.P. matériaux'!G$33),NA()) -> 1 | R114: =IFERROR(IF('Indices T.P. matériaux'!H35/'Indices T.P. matériaux'!H$33=0,NA(),'Indices T.P. matériaux'!H35/'Indices T.P. matériaux'!H$33),NA()) -> 1 | S114: =IFERROR(IF('Indices T.P. matériaux'!I35/'Indices T.P. matériaux'!I$33=0,NA(),'Indices T.P. matériaux'!I35/'Indices T.P. matériaux'!I$33),NA()) -> 1 | T114: =IFERROR(IF('Indices T.P. matériaux'!J35/'Indices T.P. matériaux'!J$33=0,NA(),'Indices T.P. matériaux'!J35/'Indices T.P. matériaux'!J$33),NA()) -> 1 | U114: =IFERROR(IF('Indices T.P. matériaux'!K35/'Indices T.P. matériaux'!K$33=0,NA(),'Indices T.P. matériaux'!K35/'Indices T.P. matériaux'!K$33),NA()) -> 1 | V114: =IFERROR(IF('Indices T.P. matériaux'!L35/'Indices T.P. matériaux'!L$33=0,NA(),'Indices T.P. matériaux'!L35/'Indices T.P. matériaux'!L$33),NA()) -> 1 | W114: =IFERROR(IF('Indices T.P. matériaux'!M35/'Indices T.P. matériaux'!M$33=0,NA(),'Indices T.P. matériaux'!M35/'Indices T.P. matériaux'!M$33),NA()) -> 1 | X114: =IFERROR(IF('Indices T.P. matériaux'!N35/'Indices T.P. matériaux'!N$33=0,NA(),'Indices T.P. matériaux'!N35/'Indices T.P. matériaux'!N$33),NA()) -> 1 | Y114: =IFERROR(IF('Indices T.P. matériaux'!O35/'Indices T.P. matériaux'!O$33=0,NA(),'Indices T.P. matériaux'!O35/'Indices T.P. matériaux'!O$33),NA()) -> 1 | Z114: =IFERROR(IF('Indices T.P. matériaux'!P35/'Indices T.P. matériaux'!P$33=0,NA(),'Indices T.P. matériaux'!P35/'Indices T.P. matériaux'!P$33),NA()) -> 1 | AA114: =IFERROR(IF('Indices T.P. matériaux'!Q35/'Indices T.P. matériaux'!Q$33=0,NA(),'Indices T.P. matériaux'!Q35/'Indices T.P. matériaux'!Q$33),NA()) -> 1 | AB114: =IFERROR(IF('Indices T.P. matériaux'!R35/'Indices T.P. matériaux'!R$33=0,NA(),'Indices T.P. matériaux'!R35/'Indices T.P. matériaux'!R$33),NA()) -> 1 | AC114: =IFERROR(IF('Indices T.P. matériaux'!S35/'Indices T.P. matériaux'!S$33=0,NA(),'Indices T.P. matériaux'!S35/'Indices T.P. matériaux'!S$33),NA()) -> 1 | AD114: =IFERROR(IF('Indices T.P. matériaux'!T35/'Indices T.P. matériaux'!T$33=0,NA(),'Indices T.P. matériaux'!T35/'Indices T.P. matériaux'!T$33),NA()) -> 1 | AE114: =IFERROR(IF('Indices T.P. matériaux'!U35/'Indices T.P. matériaux'!U$33=0,NA(),'Indices T.P. matériaux'!U35/'Indices T.P. matériaux'!U$33),NA()) -> 1 | AF114: =IFERROR(IF('Indices T.P. matériaux'!V35/'Indices T.P. matériaux'!V$33=0,NA(),'Indices T.P. matériaux'!V35/'Indices T.P. matériaux'!V$33),NA()) -> 1 | AG114: =IFERROR(IF('Indices T.P. matériaux'!W35/'Indices T.P. matériaux'!W$33=0,NA(),'Indices T.P. matériaux'!W35/'Indices T.P. matériaux'!W$33),NA()) -> 1.052212931 | AH114: =IFERROR(IF('Indices T.P. matériaux'!X35/'Indices T.P. matériaux'!X$33=0,NA(),'Indices T.P. matériaux'!X35/'Indices T.P. matériaux'!X$33),NA()) -> 1.061061947 | AI114: =IFERROR(IF('Indices T.P. matériaux'!Y35/'Indices T.P. matériaux'!Y$33=0,NA(),'Indices T.P. matériaux'!Y35/'Indices T.P. matériaux'!Y$33),NA()) -> 1.060232393 | AJ114: =IFERROR(IF('Indices T.P. matériaux'!Z35/'Indices T.P. matériaux'!Z$33=0,NA(),'Indices T.P. matériaux'!Z35/'Indices T.P. matériaux'!Z$33),NA()) -> 1.06848965 | AK114: =IFERROR(IF('Indices T.P. matériaux'!AA35/'Indices T.P. matériaux'!AA$33=0,NA(),'Indices T.P. matériaux'!AA35/'Indices T.P. matériaux'!AA$33),NA()) -> 1.040326633 | AL114: =IFERROR(IF('Indices T.P. matériaux'!AB35/'Indices T.P. matériaux'!AB$33=0,NA(),'Indices T.P. matériaux'!AB35/'Indices T.P. matériaux'!AB$33),NA()) -> 1.009942754 | AM114: =IFERROR(IF('Indices T.P. matériaux'!AC35/'Indices T.P. matériaux'!AC$33=0,NA(),'Indices T.P. matériaux'!AC35/'Indices T.P. matériaux'!AC$33),NA()) -> 1.010788634 | AN114: =IFERROR(IF('Indices T.P. matériaux'!AD35/'Indices T.P. matériaux'!AD$33=0,NA(),'Indices T.P. matériaux'!AD35/'Indices T.P. matériaux'!AD$33),NA()) -> 1.006122449 | AO114: =IFERROR(IF('Indices T.P. matériaux'!AE35/'Indices T.P. matériaux'!AE$33=0,NA(),'Indices T.P. matériaux'!AE35/'Indices T.P. matériaux'!AE$33),NA()) -> 1.009656005 | AP114: =IFERROR(IF('Indices T.P. matériaux'!AF35/'Indices T.P. matériaux'!AF$33=0,NA(),'Indices T.P. matériaux'!AF35/'Indices T.P. matériaux'!AF$33),NA()) -> 1.006291447 | AQ114: =IFERROR(IF('Indices T.P. matériaux'!AG35/'Indices T.P. matériaux'!AG$33=0,NA(),'Indices T.P. matériaux'!AG35/'Indices T.P. matériaux'!AG$33),NA()) -> 1.008127588 | AR114: =IFERROR(IF('Indices T.P. matériaux'!AH35/'Indices T.P. matériaux'!AH$33=0,NA(),'Indices T.P. matériaux'!AH35/'Indices T.P. matériaux'!AH$33),NA()) -> 1.009656005 | AS114: =IFERROR(IF('Indices T.P. matériaux'!AI35/'Indices T.P. matériaux'!AI$33=0,NA(),'Indices T.P. matériaux'!AI35/'Indices T.P. matériaux'!AI$33),NA()) -> 0.9981511691 | AT114: =IFERROR(IF('Indices T.P. matériaux'!AJ35/'Indices T.P. matériaux'!AJ$33=0,NA(),'Indices T.P. matériaux'!AJ35/'Indices T.P. matériaux'!AJ$33),NA()) -> 1.011100973 | AU114: =IFERROR(IF('Indices T.P. matériaux'!AK35/'Indices T.P. matériaux'!AK$33=0,NA(),'Indices T.P. matériaux'!AK35/'Indices T.P. matériaux'!AK$33),NA()) -> 1.006461486 | AV114: =IFERROR(IF('Indices T.P. matériaux'!AL35/'Indices T.P. matériaux'!AL$33=0,NA(),'Indices T.P. matériaux'!AL35/'Indices T.P. matériaux'!AL$33),NA()) -> 1.029311941 | AW114: =IFERROR(IF('Indices T.P. matériaux'!AM35/'Indices T.P. matériaux'!AM$33=0,NA(),'Indices T.P. matériaux'!AM35/'Indices T.P. matériaux'!AM$33),NA()) -> 1.029226273 | AX114: =IFERROR(IF('Indices T.P. matériaux'!AN35/'Indices T.P. matériaux'!AN$33=0,NA(),'Indices T.P. matériaux'!AN35/'Indices T.P. matériaux'!AN$33),NA()) -> 1.029257776 | AY114: =IFERROR(IF('Indices T.P. matériaux'!AO35/'Indices T.P. matériaux'!AO$33=0,NA(),'Indices T.P. matériaux'!AO35/'Indices T.P. matériaux'!AO$33),NA()) -> 0.9986156959 | AZ114: =IFERROR(IF('Indices T.P. matériaux'!AP35/'Indices T.P. matériaux'!AP$33=0,NA(),'Indices T.P. matériaux'!AP35/'Indices T.P. matériaux'!AP$33),NA()) -> 1.014732143 | BA114: =IFERROR(IF('Indices T.P. matériaux'!AQ35/'Indices T.P. matériaux'!AQ$33=0,NA(),'Indices T.P. matériaux'!AQ35/'Indices T.P. matériaux'!AQ$33),NA()) -> 1.008574642 | BB114: =IFERROR(IF('Indices T.P. matériaux'!AR35/'Indices T.P. matériaux'!AR$33=0,NA(),'Indices T.P. matériaux'!AR35/'Indices T.P. matériaux'!AR$33),NA()) ->  | BC114: =IFERROR(IF('Indices T.P. matériaux'!AS35/'Indices T.P. matériaux'!AS$33=0,NA(),'Indices T.P. matériaux'!AS35/'Indices T.P. matériaux'!AS$33),NA()) ->  | BD114: =IFERROR(IF('Indices T.P. matériaux'!AT35/'Indices T.P. matériaux'!AT$33=0,NA(),'Indices T.P. matériaux'!AT35/'Indices T.P. matériaux'!AT$33),NA()) ->  | BE114: =IFERROR(IF('Indices T.P. matériaux'!AU35/'Indices T.P. matériaux'!AU$33=0,NA(),'Indices T.P. matériaux'!AU35/'Indices T.P. matériaux'!AU$33),NA()) ->  | BF114: =IFERROR(IF('Indices T.P. matériaux'!AV35/'Indices T.P. matériaux'!AV$33=0,NA(),'Indices T.P. matériaux'!AV35/'Indices T.P. matériaux'!AV$33),NA()) ->  | BG114: =IFERROR(IF('Indices T.P. matériaux'!AW35/'Indices T.P. matériaux'!AW$33=0,NA(),'Indices T.P. matériaux'!AW35/'Indices T.P. matériaux'!AW$33),NA()) ->  | BH114: =IFERROR(IF('Indices T.P. matériaux'!AX35/'Indices T.P. matériaux'!AX$33=0,NA(),'Indices T.P. matériaux'!AX35/'Indices T.P. matériaux'!AX$33),NA()) ->  | BI114: =IFERROR(IF('Indices T.P. matériaux'!AY35/'Indices T.P. matériaux'!AY$33=0,NA(),'Indices T.P. matériaux'!AY35/'Indices T.P. matériaux'!AY$33),NA()) -> 0.9168646081 | BJ114: =IFERROR(IF('Indices T.P. matériaux'!AZ35/'Indices T.P. matériaux'!AZ$33=0,NA(),'Indices T.P. matériaux'!AZ35/'Indices T.P. matériaux'!AZ$33),NA()) -> 0.949071618 | BK114: =IFERROR(IF('Indices T.P. matériaux'!BA35/'Indices T.P. matériaux'!BA$33=0,NA(),'Indices T.P. matériaux'!BA35/'Indices T.P. matériaux'!BA$33),NA()) -> 0.949071618 | BL114: =IFERROR(IF('Indices T.P. matériaux'!BB35/'Indices T.P. matériaux'!BB$33=0,NA(),'Indices T.P. matériaux'!BB35/'Indices T.P. matériaux'!BB$33),NA()) -> 0.9415844008 | BM114: =IFERROR(IF('Indices T.P. matériaux'!BC35/'Indices T.P. matériaux'!BC$33=0,NA(),'Indices T.P. matériaux'!BC35/'Indices T.P. matériaux'!BC$33),NA()) -> 0.9411382642 | BN114: =IFERROR(IF('Indices T.P. matériaux'!BD35/'Indices T.P. matériaux'!BD$33=0,NA(),'Indices T.P. matériaux'!BD35/'Indices T.P. matériaux'!BD$33),NA()) -> 1 | BO114: =IFERROR(IF('Indices T.P. matériaux'!BE35/'Indices T.P. matériaux'!BE$33=0,NA(),'Indices T.P. matériaux'!BE35/'Indices T.P. matériaux'!BE$33),NA()) -> 0.9272926963 | BP114: =IFERROR(IF('Indices T.P. matériaux'!BF35/'Indices T.P. matériaux'!BF$33=0,NA(),'Indices T.P. matériaux'!BF35/'Indices T.P. matériaux'!BF$33),NA()) ->  | BQ114: =IFERROR(IF('Indices T.P. matériaux'!BG35/'Indices T.P. matériaux'!BG$33=0,NA(),'Indices T.P. matériaux'!BG35/'Indices T.P. matériaux'!BG$33),NA()) -> 1.029336371 | BR114: =IFERROR(IF('Indices T.P. matériaux'!BH35/'Indices T.P. matériaux'!BH$33=0,NA(),'Indices T.P. matériaux'!BH35/'Indices T.P. matériaux'!BH$33),NA()) -> 0.9864777849 | BS114: =IFERROR(IF('Indices T.P. matériaux'!BI35/'Indices T.P. matériaux'!BI$33=0,NA(),'Indices T.P. matériaux'!BI35/'Indices T.P. matériaux'!BI$33),NA()) -> 1.016707053 | BT114: =IFERROR(IF('Indices T.P. matériaux'!BJ35/'Indices T.P. matériaux'!BJ$33=0,NA(),'Indices T.P. matériaux'!BJ35/'Indices T.P. matériaux'!BJ$33),NA()) -> 0.9970112907 | BU114: =IFERROR(IF('Indices T.P. matériaux'!BK35/'Indices T.P. matériaux'!BK$33=0,NA(),'Indices T.P. matériaux'!BK35/'Indices T.P. matériaux'!BK$33),NA()) -> 1.013582966 | BV114: =IFERROR(IF('Indices T.P. matériaux'!BL35/'Indices T.P. matériaux'!BL$33=0,NA(),'Indices T.P. matériaux'!BL35/'Indices T.P. matériaux'!BL$33),NA()) -> 1 | BW114: =IFERROR(IF('Indices T.P. matériaux'!BM35/'Indices T.P. matériaux'!BM$33=0,NA(),'Indices T.P. matériaux'!BM35/'Indices T.P. matériaux'!BM$33),NA()) -> 1 | BX114: =IFERROR(IF('Indices T.P. matériaux'!BN35/'Indices T.P. matériaux'!BN$33=0,NA(),'Indices T.P. matériaux'!BN35/'Indices T.P. matériaux'!BN$33),NA()) -> 1 | BY114: =IFERROR(IF('Indices T.P. matériaux'!BO35/'Indices T.P. matériaux'!BO$33=0,NA(),'Indices T.P. matériaux'!BO35/'Indices T.P. matériaux'!BO$33),NA()) -> 1 | BZ114: =IFERROR(IF('Indices T.P. matériaux'!BP35/'Indices T.P. matériaux'!BP$33=0,NA(),'Indices T.P. matériaux'!BP35/'Indices T.P. matériaux'!BP$33),NA()) -> 0.9835599756 | CA114: =IFERROR(IF('Indices T.P. matériaux'!BQ35/'Indices T.P. matériaux'!BQ$33=0,NA(),'Indices T.P. matériaux'!BQ35/'Indices T.P. matériaux'!BQ$33),NA()) -> 0.9835231896 | CB114: =IFERROR(IF('Indices T.P. matériaux'!BR35/'Indices T.P. matériaux'!BR$33=0,NA(),'Indices T.P. matériaux'!BR35/'Indices T.P. matériaux'!BR$33),NA()) -> 0.9834963325 | CC114: =IFERROR(IF('Indices T.P. matériaux'!BS35/'Indices T.P. matériaux'!BS$33=0,NA(),'Indices T.P. matériaux'!BS35/'Indices T.P. matériaux'!BS$33),NA()) -> 0.9833129833 | CD114: =IFERROR(IF('Indices T.P. matériaux'!BT35/'Indices T.P. matériaux'!BT$33=0,NA(),'Indices T.P. matériaux'!BT35/'Indices T.P. matériaux'!BT$33),NA()) -> 1 | CE114: =IFERROR(IF('Indices T.P. matériaux'!BU35/'Indices T.P. matériaux'!BU$33=0,NA(),'Indices T.P. matériaux'!BU35/'Indices T.P. matériaux'!BU$33),NA()) -> 1 | CF114: =IFERROR(IF('Indices T.P. matériaux'!BV35/'Indices T.P. matériaux'!BV$33=0,NA(),'Indices T.P. matériaux'!BV35/'Indices T.P. matériaux'!BV$33),NA()) -> 1 | CG114: =IFERROR(IF('Indices T.P. matériaux'!BW35/'Indices T.P. matériaux'!BW$33=0,NA(),'Indices T.P. matériaux'!BW35/'Indices T.P. matériaux'!BW$33),NA()) -> 1 | CH114: =IFERROR(IF('Indices T.P. matériaux'!BX35/'Indices T.P. matériaux'!BX$33=0,NA(),'Indices T.P. matériaux'!BX35/'Indices T.P. matériaux'!BX$33),NA()) -> 1 | CI114: =IFERROR(IF('Indices T.P. matériaux'!BY35/'Indices T.P. matériaux'!BY$33=0,NA(),'Indices T.P. matériaux'!BY35/'Indices T.P. matériaux'!BY$33),NA()) -> 1 | CJ114: =IFERROR(IF('Indices T.P. matériaux'!BZ35/'Indices T.P. matériaux'!BZ$33=0,NA(),'Indices T.P. matériaux'!BZ35/'Indices T.P. matériaux'!BZ$33),NA()) -> 1 | CK114: =IFERROR(IF('Indices T.P. matériaux'!CA35/'Indices T.P. matériaux'!CA$33=0,NA(),'Indices T.P. matériaux'!CA35/'Indices T.P. matériaux'!CA$33),NA()) -> 1.00142783 | CL114: =IFERROR(IF('Indices T.P. matériaux'!CB35/'Indices T.P. matériaux'!CB$33=0,NA(),'Indices T.P. matériaux'!CB35/'Indices T.P. matériaux'!CB$33),NA()) -> 1.001297859 | CM114: =IFERROR(IF('Indices T.P. matériaux'!CC35/'Indices T.P. matériaux'!CC$33=0,NA(),'Indices T.P. matériaux'!CC35/'Indices T.P. matériaux'!CC$33),NA()) -> 1.001298027 | CN114: =IFERROR(IF('Indices T.P. matériaux'!CD35/'Indices T.P. matériaux'!CD$33=0,NA(),'Indices T.P. matériaux'!CD35/'Indices T.P. matériaux'!CD$33),NA()) -> 0.9597750865 | CO114: =IFERROR(IF('Indices T.P. matériaux'!CE35/'Indices T.P. matériaux'!CE$33=0,NA(),'Indices T.P. matériaux'!CE35/'Indices T.P. matériaux'!CE$33),NA()) -> 0.9597750865 | CP114: =IFERROR(IF('Indices T.P. matériaux'!CF35/'Indices T.P. matériaux'!CF$33=0,NA(),'Indices T.P. matériaux'!CF35/'Indices T.P. matériaux'!CF$33),NA()) -> 0.9709086556 | CQ114: =IFERROR(IF('Indices T.P. matériaux'!CG35/'Indices T.P. matériaux'!CG$33=0,NA(),'Indices T.P. matériaux'!CG35/'Indices T.P. matériaux'!CG$33),NA()) -> 0.9707959306 | CR114: =IFERROR(IF('Indices T.P. matériaux'!CH35/'Indices T.P. matériaux'!CH$33=0,NA(),'Indices T.P. matériaux'!CH35/'Indices T.P. matériaux'!CH$33),NA()) -> 0.9782331828 | CS114: =IFERROR(IF('Indices T.P. matériaux'!CI35/'Indices T.P. matériaux'!CI$33=0,NA(),'Indices T.P. matériaux'!CI35/'Indices T.P. matériaux'!CI$33),NA()) -> 0.914036266 | CT114: =IFERROR(IF('Indices T.P. matériaux'!CJ35/'Indices T.P. matériaux'!CJ$33=0,NA(),'Indices T.P. matériaux'!CJ35/'Indices T.P. matériaux'!CJ$33),NA()) -> 0.9769894535 | CU114: =IFERROR(IF('Indices T.P. matériaux'!CK35/'Indices T.P. matériaux'!CK$33=0,NA(),'Indices T.P. matériaux'!CK35/'Indices T.P. matériaux'!CK$33),NA()) -> 0.9697329377 | CV114: =IFERROR(IF('Indices T.P. matériaux'!CL35/'Indices T.P. matériaux'!CL$33=0,NA(),'Indices T.P. matériaux'!CL35/'Indices T.P. matériaux'!CL$33),NA()) -> 1.023150958 | CW114: =IFERROR(IF('Indices T.P. matériaux'!CM35/'Indices T.P. matériaux'!CM$33=0,NA(),'Indices T.P. matériaux'!CM35/'Indices T.P. matériaux'!CM$33),NA()) -> 1.010613074 | CX114: =IFERROR(IF('Indices T.P. matériaux'!CN35/'Indices T.P. matériaux'!CN$33=0,NA(),'Indices T.P. matériaux'!CN35/'Indices T.P. matériaux'!CN$33),NA()) -> 0.9878035259 | CY114: =IFERROR(IF('Indices T.P. matériaux'!CO35/'Indices T.P. matériaux'!CO$33=0,NA(),'Indices T.P. matériaux'!CO35/'Indices T.P. matériaux'!CO$33),NA()) -> 1.003816794 | CZ114: =IFERROR(IF('Indices T.P. matériaux'!CP35/'Indices T.P. matériaux'!CP$33=0,NA(),'Indices T.P. matériaux'!CP35/'Indices T.P. matériaux'!CP$33),NA()) -> 1 | DA114: =IFERROR(IF('Indices T.P. matériaux'!CQ35/'Indices T.P. matériaux'!CQ$33=0,NA(),'Indices T.P. matériaux'!CQ35/'Indices T.P. matériaux'!CQ$33),NA()) ->  | DB114: =IFERROR(IF('Indices T.P. matériaux'!CR35/'Indices T.P. matériaux'!CR$33=0,NA(),'Indices T.P. matériaux'!CR35/'Indices T.P. matériaux'!CR$33),NA()) ->  | DC114: =IFERROR(IF('Indices T.P. matériaux'!CS35/'Indices T.P. matériaux'!CS$33=0,NA(),'Indices T.P. matériaux'!CS35/'Indices T.P. matériaux'!CS$33),NA()) ->  | DD114: =IFERROR(IF('Indices T.P. matériaux'!CT35/'Indices T.P. matériaux'!CT$33=0,NA(),'Indices T.P. matériaux'!CT35/'Indices T.P. matériaux'!CT$33),NA()) ->  | DE114: =IFERROR(IF('Indices Grymafer'!D33/'Indices Grymafer'!D$31=0,NA(),'Indices Grymafer'!D33/'Indices Grymafer'!D$31),NA()) -> 0.998459168 | DF114: =IFERROR(IF('Indices Grymafer'!E33/'Indices Grymafer'!E$31=0,NA(),'Indices Grymafer'!E33/'Indices Grymafer'!E$31),NA()) -> 1 | DG114: =IFERROR(IF('Indices Grymafer'!F33/'Indices Grymafer'!F$31=0,NA(),'Indices Grymafer'!F33/'Indices Grymafer'!F$31),NA()) -> 0.9988876529 | DH114: =IFERROR(IF('Indices Grymafer'!G33/'Indices Grymafer'!G$31=0,NA(),'Indices Grymafer'!G33/'Indices Grymafer'!G$31),NA()) -> 0.9948387097 | DI114: =IFERROR(IF('Indices T.P. matériaux'!CW35/'Indices T.P. matériaux'!CW$33=0,NA(),'Indices T.P. matériaux'!CW35/'Indices T.P. matériaux'!CW$33),NA()) -> 1.00784285 | DJ114: =IFERROR(IF('Indices T.P. matériaux'!CX35/'Indices T.P. matériaux'!CX$33=0,NA(),'Indices T.P. matériaux'!CX35/'Indices T.P. matériaux'!CX$33),NA()) -> 0.9925486087 | DK114: =IFERROR(IF('Indices T.P. matériaux'!CY35/'Indices T.P. matériaux'!CY$33=0,NA(),'Indices T.P. matériaux'!CY35/'Indices T.P. matériaux'!CY$33),NA()) -> 1.000439367 | DL114: =IFERROR(IF('Indices T.P. matériaux'!CZ35/'Indices T.P. matériaux'!CZ$33=0,NA(),'Indices T.P. matériaux'!CZ35/'Indices T.P. matériaux'!CZ$33),NA()) -> 1.002922874 | DM114: =IFERROR(IF('Indices T.P. matériaux'!DA35/'Indices T.P. matériaux'!DA$33=0,NA(),'Indices T.P. matériaux'!DA35/'Indices T.P. matériaux'!DA$33),NA()) -> 0.8128654971 | DN114: =IFERROR(IF('Indices T.P. matériaux'!DB35/'Indices T.P. matériaux'!DB$33=0,NA(),'Indices T.P. matériaux'!DB35/'Indices T.P. matériaux'!DB$33),NA()) -> 1.00319639 | DO114: =IFERROR(IF('Indices T.P. matériaux'!DC35/'Indices T.P. matériaux'!DC$33=0,NA(),'Indices T.P. matériaux'!DC35/'Indices T.P. matériaux'!DC$33),NA()) -> 1 | DP114: =IFERROR(IF('Indices T.P. matériaux'!DD35/'Indices T.P. matériaux'!DD$33=0,NA(),'Indices T.P. matériaux'!DD35/'Indices T.P. matériaux'!DD$33),NA()) -> 1.00319639 | DR114: ='Indices courants'!C31 -> 2018-03-01 | DS114: =IFERROR(IF('Indices des produits & services'!D33/'Indices des produits & services'!D$31=0,NA(),'Indices des produits & services'!D33/'Indices des produits & services'!D$31),NA()) -> 1 | DT114: =IFERROR(IF('Indices des produits & services'!E33/'Indices des produits & services'!E$31=0,NA(),'Indices des produits & services'!E33/'Indices des produits & services'!E$31),NA()) -> 1 | DU114: =IFERROR(IF('Indices des produits & services'!F33/'Indices des produits & services'!F$31=0,NA(),'Indices des produits & services'!F33/'Indices des produits & services'!F$31),NA()) -> 1 | DV114: =IFERROR(IF('Indices des produits & services'!G33/'Indices des produits & services'!G$31=0,NA(),'Indices des produits & services'!G33/'Indices des produits & services'!G$31),NA()) -> 1 | DW114: =IFERROR(IF('Indices des produits & services'!H33/'Indices des produits & services'!H$31=0,NA(),'Indices des produits & services'!H33/'Indices des produits & services'!H$31),NA()) -> 1 | DX114: =IFERROR(IF('Indices des produits & services'!I33/'Indices des produits & services'!I$31=0,NA(),'Indices des produits & services'!I33/'Indices des produits & services'!I$31),NA()) -> 1 | DY114: =IFERROR(IF('Indices des produits & services'!J33/'Indices des produits & services'!J$31=0,NA(),'Indices des produits & services'!J33/'Indices des produits & services'!J$31),NA()) -> 1 | DZ114: =IFERROR(IF('Indices des produits & services'!K33/'Indices des produits & services'!K$31=0,NA(),'Indices des produits & services'!K33/'Indices des produits & services'!K$31),NA()) -> 1 | EA114: =IFERROR(IF('Indices des produits & services'!L33/'Indices des produits & services'!L$31=0,NA(),'Indices des produits & services'!L33/'Indices des produits & services'!L$31),NA()) -> 1 | EB114: =IFERROR(IF('Indices des produits & services'!M33/'Indices des produits & services'!M$31=0,NA(),'Indices des produits & services'!M33/'Indices des produits & services'!M$31),NA()) -> 1 | EC114: =IFERROR(IF('Indices des produits & services'!N33/'Indices des produits & services'!N$31=0,NA(),'Indices des produits & services'!N33/'Indices des produits & services'!N$31),NA()) -> 1 | ED114: =IFERROR(IF('Indices des produits & services'!O33/'Indices des produits & services'!O$31=0,NA(),'Indices des produits & services'!O33/'Indices des produits & services'!O$31),NA()) -> 1 | EE114: =IFERROR(IF('Indices des produits & services'!P33/'Indices des produits & services'!P$31=0,NA(),'Indices des produits & services'!P33/'Indices des produits & services'!P$31),NA()) -> 0.9792358804 | EF114: =IFERROR(IF('Indices des produits & services'!Q33/'Indices des produits & services'!Q$31=0,NA(),'Indices des produits & services'!Q33/'Indices des produits & services'!Q$31),NA()) -> 1.007162041 | EG114: =IFERROR(IF('Indices des produits & services'!R33/'Indices des produits & services'!R$31=0,NA(),'Indices des produits & services'!R33/'Indices des produits & services'!R$31),NA()) -> 1.013220019 | EH114: =IFERROR(IF('Indices des produits & services'!S33/'Indices des produits & services'!S$31=0,NA(),'Indices des produits & services'!S33/'Indices des produits & services'!S$31),NA()) -> 1.017857143 | EI114: =IFERROR(IF('Indices des produits & services'!T33/'Indices des produits & services'!T$31=0,NA(),'Indices des produits & services'!T33/'Indices des produits & services'!T$31),NA()) -> 1.001749781 | EJ114: =IFERROR(IF('Indices des produits & services'!U33/'Indices des produits & services'!U$31=0,NA(),'Indices des produits & services'!U33/'Indices des produits & services'!U$31),NA()) -> 1.00262697 | EK114: =IFERROR(IF('Indices des produits & services'!V33/'Indices des produits & services'!V$31=0,NA(),'Indices des produits & services'!V33/'Indices des produits & services'!V$31),NA()) -> 1 | EL114: =IFERROR(IF('Indices des produits & services'!W33/'Indices des produits & services'!W$31=0,NA(),'Indices des produits & services'!W33/'Indices des produits & services'!W$31),NA()) -> 1.008006405 | EM114: =IFERROR(IF('Indices des produits & services'!X33/'Indices des produits & services'!X$31=0,NA(),'Indices des produits & services'!X33/'Indices des produits & services'!X$31),NA()) -> 1 | EN114: =IFERROR(IF('Indices des produits & services'!Y33/'Indices des produits & services'!Y$31=0,NA(),'Indices des produits & services'!Y33/'Indices des produits & services'!Y$31),NA()) -> 1.007778738 | EO114: =IFERROR(IF('Indices des produits & services'!Z33/'Indices des produits & services'!Z$31=0,NA(),'Indices des produits & services'!Z33/'Indices des produits & services'!Z$31),NA()) -> 0.9768240343 | EP114: =IFERROR(IF('Indices des produits & services'!AA33/'Indices des produits & services'!AA$31=0,NA(),'Indices des produits & services'!AA33/'Indices des produits & services'!AA$31),NA()) -> 0.8878416588 | EQ114: =IFERROR(IF('Indices des produits & services'!AB33/'Indices des produits & services'!AB$31=0,NA(),'Indices des produits & services'!AB33/'Indices des produits & services'!AB$31),NA()) -> 1.017706577 | ER114: =IFERROR(IF('Indices des produits & services'!AC33/'Indices des produits & services'!AC$31=0,NA(),'Indices des produits & services'!AC33/'Indices des produits & services'!AC$31),NA()) -> 1.017736486 | ES114: =IFERROR(IF('Indices des produits & services'!AD33/'Indices des produits & services'!AD$31=0,NA(),'Indices des produits & services'!AD33/'Indices des produits & services'!AD$31),NA()) -> 1.018596788 | ET114: =IFERROR(IF('Indices des produits & services'!AE33/'Indices des produits & services'!AE$31=0,NA(),'Indices des produits & services'!AE33/'Indices des produits & services'!AE$31),NA()) -> 1.01177394 | EU114: =IFERROR(IF('Indices des produits & services'!AF33/'Indices des produits & services'!AF$31=0,NA(),'Indices des produits & services'!AF33/'Indices des produits & services'!AF$31),NA()) -> 1.000868056 | EV114: =IFERROR(IF('Indices des produits & services'!AG33/'Indices des produits & services'!AG$31=0,NA(),'Indices des produits & services'!AG33/'Indices des produits & services'!AG$31),NA()) -> 1.005371531 | EW114: =IFERROR(IF('Indices des produits & services'!AH33/'Indices des produits & services'!AH$31=0,NA(),'Indices des produits & services'!AH33/'Indices des produits & services'!AH$31),NA()) -> 0.976702509 | EX114: =IFERROR(IF('Indices des produits & services'!AI33/'Indices des produits & services'!AI$31=0,NA(),'Indices des produits & services'!AI33/'Indices des produits & services'!AI$31),NA()) -> 0.9894921191 | EY114: =IFERROR(IF('Indices des produits & services'!AJ33/'Indices des produits & services'!AJ$31=0,NA(),'Indices des produits & services'!AJ33/'Indices des produits & services'!AJ$31),NA()) -> 0.9879414298 | EZ114: =IFERROR(IF('Indices des produits & services'!AK33/'Indices des produits & services'!AK$31=0,NA(),'Indices des produits & services'!AK33/'Indices des produits & services'!AK$31),NA()) -> 0.9517884914 | FA114: =IFERROR(IF('Indices des produits & services'!AL33/'Indices des produits & services'!AL$31=0,NA(),'Indices des produits & services'!AL33/'Indices des produits & services'!AL$31),NA()) -> 1.00483611 | FB114: =IFERROR(IF('Indices des produits & services'!AM33/'Indices des produits & services'!AM$31=0,NA(),'Indices des produits & services'!AM33/'Indices des produits & services'!AM$31),NA()) -> 1.01051709 | FC114: =IFERROR(IF('Indices des produits & services'!AN33/'Indices des produits & services'!AN$31=0,NA(),'Indices des produits & services'!AN33/'Indices des produits & services'!AN$31),NA()) -> 0.9953307393 | FD114: =IFERROR(IF('Indices des produits & services'!AO33/'Indices des produits & services'!AO$31=0,NA(),'Indices des produits & services'!AO33/'Indices des produits & services'!AO$31),NA()) -> 1.013286094 | FE114: =IFERROR(IF('Indices des produits & services'!AP33/'Indices des produits & services'!AP$31=0,NA(),'Indices des produits & services'!AP33/'Indices des produits & services'!AP$31),NA()) -> 0.9982222222 | FF114: =IFERROR(IF('Indices des produits & services'!AQ33/'Indices des produits & services'!AQ$31=0,NA(),'Indices des produits & services'!AQ33/'Indices des produits & services'!AQ$31),NA()) -> 1.015070922 | FG114: =IFERROR(IF('Indices des produits & services'!AR33/'Indices des produits & services'!AR$31=0,NA(),'Indices des produits & services'!AR33/'Indices des produits & services'!AR$31),NA()) -> 1.02955665 | FH114: =IFERROR(IF('Indices des produits & services'!AS33/'Indices des produits & services'!AS$31=0,NA(),'Indices des produits & services'!AS33/'Indices des produits & services'!AS$31),NA()) -> 1.006339144 | FI114: =IFERROR(IF('Indices des produits & services'!AT33/'Indices des produits & services'!AT$31=0,NA(),'Indices des produits & services'!AT33/'Indices des produits & services'!AT$31),NA()) -> 1.03384913 | FJ114: =IFERROR(IF('Indices des produits & services'!AU33/'Indices des produits & services'!AU$31=0,NA(),'Indices des produits & services'!AU33/'Indices des produits & services'!AU$31),NA()) -> 1.014231499 | FK114: =IFERROR(IF('Indices des produits & services'!AV33/'Indices des produits & services'!AV$31=0,NA(),'Indices des produits & services'!AV33/'Indices des produits & services'!AV$31),NA()) -> 1.026183283 | FL114: =IFERROR(IF('Indices des produits & services'!AW33/'Indices des produits & services'!AW$31=0,NA(),'Indices des produits & services'!AW33/'Indices des produits & services'!AW$31),NA()) -> 1.109550562 | FM114: =IFERROR(IF('Indices des produits & services'!AX33/'Indices des produits & services'!AX$31=0,NA(),'Indices des produits & services'!AX33/'Indices des produits & services'!AX$31),NA()) -> 1.01453958 | FN114: =IFERROR(IF('Indices des produits & services'!AY33/'Indices des produits & services'!AY$31=0,NA(),'Indices des produits & services'!AY33/'Indices des produits & services'!AY$31),NA()) -> 1.01453958 | FO114: =IFERROR(IF('Indices des produits & services'!AZ33/'Indices des produits & services'!AZ$31=0,NA(),'Indices des produits & services'!AZ33/'Indices des produits & services'!AZ$31),NA()) -> 0.9921104536 | FP114: =IFERROR(IF('Indices des produits & services'!BA33/'Indices des produits & services'!BA$31=0,NA(),'Indices des produits & services'!BA33/'Indices des produits & services'!BA$31),NA()) -> 0.9835728953 | FQ114: =IFERROR(IF('Indices des produits & services'!BB33/'Indices des produits & services'!BB$31=0,NA(),'Indices des produits & services'!BB33/'Indices des produits & services'!BB$31),NA()) -> 1.020774315 | FR114: =IFERROR(IF('Indices des produits & services'!BC33/'Indices des produits & services'!BC$31=0,NA(),'Indices des produits & services'!BC33/'Indices des produits & services'!BC$31),NA()) -> 1.025547445 | FS114: =IFERROR(IF('Indices des produits & services'!BD33/'Indices des produits & services'!BD$31=0,NA(),'Indices des produits & services'!BD33/'Indices des produits & services'!BD$31),NA()) -> 1.018518519 | FT114: =IFERROR(IF('Indices des produits & services'!BE33/'Indices des produits & services'!BE$31=0,NA(),'Indices des produits & services'!BE33/'Indices des produits & services'!BE$31),NA()) -> 1.002970297 | FU114: =IFERROR(IF('Indices des produits & services'!BF33/'Indices des produits & services'!BF$31=0,NA(),'Indices des produits & services'!BF33/'Indices des produits & services'!BF$31),NA()) -> 1 | FV114: =IFERROR(IF('Indices des produits & services'!BG33/'Indices des produits & services'!BG$31=0,NA(),'Indices des produits & services'!BG33/'Indices des produits & services'!BG$31),NA()) -> 1.012 | FW114: =IFERROR(IF('Indices des produits & services'!BH33/'Indices des produits & services'!BH$31=0,NA(),'Indices des produits & services'!BH33/'Indices des produits & services'!BH$31),NA()) -> 0.9828711256 | FX114: =IFERROR(IF('Indices des produits & services'!BI33/'Indices des produits & services'!BI$31=0,NA(),'Indices des produits & services'!BI33/'Indices des produits & services'!BI$31),NA()) -> 1.01796875 | FY114: =IFERROR(IF('Indices des produits & services'!BJ33/'Indices des produits & services'!BJ$31=0,NA(),'Indices des produits & services'!BJ33/'Indices des produits & services'!BJ$31),NA()) -> 1.012322275 | FZ114: =IFERROR(IF('Indices des produits & services'!BK33/'Indices des produits & services'!BK$31=0,NA(),'Indices des produits & services'!BK33/'Indices des produits & services'!BK$31),NA()) -> 1.013257576 | GA114: =IFERROR(IF('Indices des produits & services'!BL33/'Indices des produits & services'!BL$31=0,NA(),'Indices des produits & services'!BL33/'Indices des produits & services'!BL$31),NA()) -> 0.9589041096 | GB114: =IFERROR(IF('Indices des produits & services'!BM33/'Indices des produits & services'!BM$31=0,NA(),'Indices des produits & services'!BM33/'Indices des produits & services'!BM$31),NA()) -> 0.951754386 | GC114: =IFERROR(IF('Indices des produits & services'!BN33/'Indices des produits & services'!BN$31=0,NA(),'Indices des produits & services'!BN33/'Indices des produits & services'!BN$31),NA()) -> 1.019467213 | GD114: =IFERROR(IF('Indices des produits & services'!BO33/'Indices des produits & services'!BO$31=0,NA(),'Indices des produits & services'!BO33/'Indices des produits & services'!BO$31),NA()) -> 1.025800712 | GE114: =IFERROR(IF('Indices des produits & services'!BP33/'Indices des produits & services'!BP$31=0,NA(),'Indices des produits & services'!BP33/'Indices des produits & services'!BP$31),NA()) -> 1.025837321 | GF114: =IFERROR(IF('Indices des produits & services'!BQ33/'Indices des produits & services'!BQ$31=0,NA(),'Indices des produits & services'!BQ33/'Indices des produits & services'!BQ$31),NA()) -> 1.007194245 | GG114: =IFERROR(IF('Indices des produits & services'!BR33/'Indices des produits & services'!BR$31=0,NA(),'Indices des produits & services'!BR33/'Indices des produits & services'!BR$31),NA()) -> 1.011009174 | GH114: =IFERROR(IF('Indices des produits & services'!BS33/'Indices des produits & services'!BS$31=0,NA(),'Indices des produits & services'!BS33/'Indices des produits & services'!BS$31),NA()) -> 1.00174216 | GI114: =IFERROR(IF('Indices des produits & services'!BT33/'Indices des produits & services'!BT$31=0,NA(),'Indices des produits & services'!BT33/'Indices des produits & services'!BT$31),NA()) -> 1.010638298 | GJ114: =IFERROR(IF('Indices des produits & services'!BU33/'Indices des produits & services'!BU$31=0,NA(),'Indices des produits & services'!BU33/'Indices des produits & services'!BU$31),NA()) -> 1.010507881 | GK114: =IFERROR(IF('Indices des produits & services'!BV33/'Indices des produits & services'!BV$31=0,NA(),'Indices des produits & services'!BV33/'Indices des produits & services'!BV$31),NA()) -> 1.023674242 | GL114: =IFERROR(IF('Indices des produits & services'!BW33/'Indices des produits & services'!BW$31=0,NA(),'Indices des produits & services'!BW33/'Indices des produits & services'!BW$31),NA()) -> 1 | GM114: =IFERROR(IF('Indices des produits & services'!BX33/'Indices des produits & services'!BX$31=0,NA(),'Indices des produits & services'!BX33/'Indices des produits & services'!BX$31),NA()) -> 1.015652174 | GN114: =IFERROR(IF('Indices des produits & services'!BY33/'Indices des produits & services'!BY$31=0,NA(),'Indices des produits & services'!BY33/'Indices des produits & services'!BY$31),NA()) -> 1.002994012 | GO114: =IFERROR(IF('Indices des produits & services'!BZ33/'Indices des produits & services'!BZ$31=0,NA(),'Indices des produits & services'!BZ33/'Indices des produits & services'!BZ$31),NA()) -> 1.020462633 | GP114: =IFERROR(IF('Indices des produits & services'!CA33/'Indices des produits & services'!CA$31=0,NA(),'Indices des produits & services'!CA33/'Indices des produits & services'!CA$31),NA()) -> 1.048212801 | GQ114: =IFERROR(IF('Indices des produits & services'!CB33/'Indices des produits & services'!CB$31=0,NA(),'Indices des produits & services'!CB33/'Indices des produits & services'!CB$31),NA()) -> 1.004643963 | GR114: =IFERROR(IF('Indices des produits & services'!CC33/'Indices des produits & services'!CC$31=0,NA(),'Indices des produits & services'!CC33/'Indices des produits & services'!CC$31),NA()) -> 1.002657219 | GS114: =IFERROR(IF('Indices des produits & services'!CD33/'Indices des produits & services'!CD$31=0,NA(),'Indices des produits & services'!CD33/'Indices des produits & services'!CD$31),NA()) -> 1.010110294 | GT114: =IFERROR(IF('Indices des produits & services'!CE33/'Indices des produits & services'!CE$31=0,NA(),'Indices des produits & services'!CE33/'Indices des produits & services'!CE$31),NA()) -> 0.9990049751 | GU114: =IFERROR(IF('Indices des produits & services'!CF33/'Indices des produits & services'!CF$31=0,NA(),'Indices des produits & services'!CF33/'Indices des produits & services'!CF$31),NA()) -> 1.005267779 | GV114: =IFERROR(IF('Indices des produits & services'!CG33/'Indices des produits & services'!CG$31=0,NA(),'Indices des produits & services'!CG33/'Indices des produits & services'!CG$31),NA()) -> 1 | GW114: =IFERROR(IF('Indices des produits & services'!CH33/'Indices des produits & services'!CH$31=0,NA(),'Indices des produits & services'!CH33/'Indices des produits & services'!CH$31),NA()) -> 1.000888889 | GX114: =IFERROR(IF('Indices des produits & services'!CI33/'Indices des produits & services'!CI$31=0,NA(),'Indices des produits & services'!CI33/'Indices des produits & services'!CI$31),NA()) -> 1.003894839 | GY114: =IFERROR(IF('Indices des produits & services'!CJ33/'Indices des produits & services'!CJ$31=0,NA(),'Indices des produits & services'!CJ33/'Indices des produits & services'!CJ$31),NA()) -> 0.9968421053 | GZ114: =IFERROR(IF('Indices des produits & services'!CK33/'Indices des produits & services'!CK$31=0,NA(),'Indices des produits & services'!CK33/'Indices des produits & services'!CK$31),NA()) -> 0.9806835067 | HA114: =IFERROR(IF('Indices des produits & services'!CL33/'Indices des produits & services'!CL$31=0,NA(),'Indices des produits & services'!CL33/'Indices des produits & services'!CL$31),NA()) -> 0.9761904762 | HB114: =IFERROR(IF('Indices des produits & services'!CM33/'Indices des produits & services'!CM$31=0,NA(),'Indices des produits & services'!CM33/'Indices des produits & services'!CM$31),NA()) -> 0.9961013645 | HC114: =IFERROR(IF('Indices des produits & services'!CN33/'Indices des produits & services'!CN$31=0,NA(),'Indices des produits & services'!CN33/'Indices des produits & services'!CN$31),NA()) -> 1.00090009 | HE114: =Tableau21[[#This Row],[Période]] -> 2018-03-01 | HF114: =IFERROR(IF('Indices courants'!J31/'Indices courants'!J$29=0,NA(),'Indices courants'!J31/'Indices courants'!J$29),NA()) -> 1.000353994 | HG114: =IFERROR(IF('Indices courants'!K31/'Indices courants'!K$29=0,NA(),'Indices courants'!K31/'Indices courants'!K$29),NA()) -> 1.00031295 | HH114: =IFERROR(IF('Indices courants'!L31/'Indices courants'!L$29=0,NA(),'Indices courants'!L31/'Indices courants'!L$29),NA()) -> 1.000344299 | HI114: =IFERROR(IF('Indices courants'!M31/'Indices courants'!M$29=0,NA(),'Indices courants'!M31/'Indices courants'!M$29),NA()) -> 1.000354359 | HJ114: =IFERROR(IF('Indices courants'!N31/'Indices courants'!N$29=0,NA(),'Indices courants'!N31/'Indices courants'!N$29),NA()) -> 1.000313264 | HK114: =IFERROR(IF('Indices courants'!O31/'Indices courants'!O$29=0,NA(),'Indices courants'!O31/'Indices courants'!O$29),NA()) -> 1.000344644 | HL114: =IFERROR(IF('Indices courants'!P31/'Indices courants'!P$29=0,NA(),'Indices courants'!P31/'Indices courants'!P$29),NA()) -> 1.000361973 | HM114: =IFERROR(IF('Indices courants'!Q31/'Indices courants'!Q$29=0,NA(),'Indices courants'!Q31/'Indices courants'!Q$29),NA()) -> 1.000319806 | HN114: =IFERROR(IF('Indices courants'!R31/'Indices courants'!R$29=0,NA(),'Indices courants'!R31/'Indices courants'!R$29),NA()) -> 1.000351842 | HO114: =IFERROR(IF('Indices courants'!S31/'Indices courants'!S$29=0,NA(),'Indices courants'!S31/'Indices courants'!S$29),NA()) -> 1.000367955 | HP114: =IFERROR(IF('Indices courants'!T31/'Indices courants'!T$29=0,NA(),'Indices courants'!T31/'Indices courants'!T$29),NA()) -> 1.000357433 | HQ114: =IFERROR(IF('Indices courants'!U31/'Indices courants'!U$29=0,NA(),'Indices courants'!U31/'Indices courants'!U$29),NA()) -> 1.000357491 | HR114: =IFERROR(IF('Indices courants'!V31/'Indices courants'!V$29=0,NA(),'Indices courants'!V31/'Indices courants'!V$29),NA()) -> 1.000795355 | HS114: =IFERROR(IF('Indices courants'!W31/'Indices courants'!W$29=0,NA(),'Indices courants'!W31/'Indices courants'!W$29),NA()) -> 1.000747737 | HT114: =IFERROR(IF('Indices courants'!X31/'Indices courants'!X$29=0,NA(),'Indices courants'!X31/'Indices courants'!X$29),NA()) -> 0.9886140558 | HU114: =IFERROR(IF('Indices courants'!Y31/'Indices courants'!Y$29=0,NA(),'Indices courants'!Y31/'Indices courants'!Y$29),NA()) -> 0.9863441922 | HV114: =IFERROR(IF('Indices courants'!Z31/'Indices courants'!Z$29=0,NA(),'Indices courants'!Z31/'Indices courants'!Z$29),NA()) -> 0.9907197827 | HW114: =IFERROR(IF('Indices courants'!AA31/'Indices courants'!AA$29=0,NA(),'Indices courants'!AA31/'Indices courants'!AA$29),NA()) -> 0.9875948898 | HX114: =IFERROR(IF('Indices courants'!AB31/'Indices courants'!AB$29=0,NA(),'Indices courants'!AB31/'Indices courants'!AB$29),NA()) -> 0.9900061817 | HY114: =IFERROR(IF('Indices courants'!AC31/'Indices courants'!AC$29=0,NA(),'Indices courants'!AC31/'Indices courants'!AC$29),NA()) -> 0.9843867185 | HZ114: =Tableau21[[#This Row],[Evolution des prix selon formule de révision - indice i 2021]] -> 1.00385 | IA114: =Tableau21[[#This Row],[Evolution des prix selon formule de révision - indice i]] -> 1.00071 | IB114: =Tableau21[[#This Row],[Augmentation mois par mois - selon indice i 2021]] -> 1.00385 | IC114: =Tableau21[[#This Row],[Augmentation mois par mois - selon indice i ]] -> 1.00071 | ID114: =IFERROR(IF('Indexations des salaires par CP'!BY40/'Indexations des salaires par CP'!BY$38=0,NA(),'Indexations des salaires par CP'!BY40/'Indexations des salaires par CP'!BY$38),NA()) -> 1 | IE114: =IFERROR(IF('Indexations des salaires par CP'!BZ40/'Indexations des salaires par CP'!BZ$38=0,NA(),'Indexations des salaires par CP'!BZ40/'Indexations des salaires par CP'!BZ$38),NA()) -> 1 | IF114: =IFERROR(IF('Indexations des salaires par CP'!CA40/'Indexations des salaires par CP'!CA$38=0,NA(),'Indexations des salaires par CP'!CA40/'Indexations des salaires par CP'!CA$38),NA()) -> 1 | IG114: =IFERROR(IF('Indexations des salaires par CP'!CB40/'Indexations des salaires par CP'!CB$38=0,NA(),'Indexations des salaires par CP'!CB40/'Indexations des salaires par CP'!CB$38),NA()) -> 1 | IH114: =IFERROR(IF('Indexations des salaires par CP'!CC40/'Indexations des salaires par CP'!CC$38=0,NA(),'Indexations des salaires par CP'!CC40/'Indexations des salaires par CP'!CC$38),NA()) -> 1 | II114: =IFERROR(IF('Indexations des salaires par CP'!CD40/'Indexations des salaires par CP'!CD$38=0,NA(),'Indexations des salaires par CP'!CD40/'Indexations des salaires par CP'!CD$38),NA()) -> 1 | IJ114: =IFERROR(IF('Indexations des salaires par CP'!CE40/'Indexations des salaires par CP'!CE$38=0,NA(),'Indexations des salaires par CP'!CE40/'Indexations des salaires par CP'!CE$38),NA()) -> 1 | IK114: =IFERROR(IF('Indexations des salaires par CP'!CF40/'Indexations des salaires par CP'!CF$38=0,NA(),'Indexations des salaires par CP'!CF40/'Indexations des salaires par CP'!CF$38),NA()) -> 1 | IL114: =IFERROR(IF('Indexations des salaires par CP'!CG40/'Indexations des salaires par CP'!CG$38=0,NA(),'Indexations des salaires par CP'!CG40/'Indexations des salaires par CP'!CG$38),NA()) -> 1 | IM114: =IFERROR(IF('Indexations des salaires par CP'!CH40/'Indexations des salaires par CP'!CH$38=0,NA(),'Indexations des salaires par CP'!CH40/'Indexations des salaires par CP'!CH$38),NA()) -> 1
B115: ='Indices courants'!C32 -> 2018-04-01 | C115: =IFERROR(IF('Indices courants'!D32/'Indices courants'!D$29=0,NA(),'Indices courants'!D32/'Indices courants'!D$29),NA()) -> 0.9914963828 | D115: =IFERROR(IF('Indices courants'!E32/'Indices courants'!E$29=0,NA(),'Indices courants'!E32/'Indices courants'!E$29),NA()) -> 1.012197643 | E115: =IFERROR(IF('Indices courants'!F32/'Indices courants'!F$29=0,NA(),'Indices courants'!F32/'Indices courants'!F$29),NA()) -> 1.000628141 | F115: =IFERROR(IF('Indices courants'!G32/'Indices courants'!G$29=0,NA(),'Indices courants'!G32/'Indices courants'!G$29),NA()) -> 0.9993870671 | G115: =IFERROR(IF('Indices courants'!H32/'Indices courants'!H$29=0,NA(),'Indices courants'!H32/'Indices courants'!H$29),NA()) -> 0.9923470182 | H115: =IFERROR(IF('Indices courants'!I32/'Indices courants'!I$29=0,NA(),'Indices courants'!I32/'Indices courants'!I$29),NA()) -> 1.026494387 | I115: =IF('Indices courants'!E31=0,NA(),IF('Indices courants'!J32=0,NA(),IFERROR(ROUND(((('Formule de révision courante'!$E$27*('Indices courants'!E31/'Indices courants'!E30)+'Formule de révision courante'!$E$21*('Indices courants'!J32/'Indices courants'!J31)+'Formule de révision courante'!$E$33))*'Graphique évolution des indices'!I114),5),NA()))) -> 1.00239 | J115: =IF('Indices courants'!D31=0,NA(),IF('Indices courants'!J32=0,NA(),IFERROR(ROUND(((('Formule de révision courante'!$E$27*('Indices courants'!D31/'Indices courants'!D30)+'Formule de révision courante'!$E$21*('Indices courants'!J32/'Indices courants'!J31)+'Formule de révision courante'!$E$33))*'Graphique évolution des indices'!I114),5),NA()))) -> 0.99727 | K115: =IF('Indices courants'!E31=0,NA(),IF('Indices courants'!J32=0,NA(),IFERROR(ROUND(((('Formule de révision courante'!$E$27*('Indices courants'!E31/'Indices courants'!E30)+'Formule de révision courante'!$E$21*('Indices courants'!J32/'Indices courants'!J31)+'Formule de révision courante'!$E$33))),5),NA()))) -> 0.99855 | L115: =IF('Indices courants'!D31=0,NA(),IF('Indices courants'!J32=0,NA(),IFERROR(ROUND(((('Formule de révision courante'!$E$27*('Indices courants'!D31/'Indices courants'!D30)+'Formule de révision courante'!$E$21*('Indices courants'!J32/'Indices courants'!J31)+'Formule de révision courante'!$E$33))),5),NA()))) -> 0.99345 | M115: =IFERROR(IF('Indices T.P. matériaux'!C36/'Indices T.P. matériaux'!C$33=0,NA(),'Indices T.P. matériaux'!C36/'Indices T.P. matériaux'!C$33),NA()) -> 1 | N115: =IFERROR(IF('Indices T.P. matériaux'!D36/'Indices T.P. matériaux'!D$33=0,NA(),'Indices T.P. matériaux'!D36/'Indices T.P. matériaux'!D$33),NA()) -> 1 | O115: =IFERROR(IF('Indices T.P. matériaux'!E36/'Indices T.P. matériaux'!E$33=0,NA(),'Indices T.P. matériaux'!E36/'Indices T.P. matériaux'!E$33),NA()) -> 1 | P115: =IFERROR(IF('Indices T.P. matériaux'!F36/'Indices T.P. matériaux'!F$33=0,NA(),'Indices T.P. matériaux'!F36/'Indices T.P. matériaux'!F$33),NA()) -> 1 | Q115: =IFERROR(IF('Indices T.P. matériaux'!G36/'Indices T.P. matériaux'!G$33=0,NA(),'Indices T.P. matériaux'!G36/'Indices T.P. matériaux'!G$33),NA()) -> 1 | R115: =IFERROR(IF('Indices T.P. matériaux'!H36/'Indices T.P. matériaux'!H$33=0,NA(),'Indices T.P. matériaux'!H36/'Indices T.P. matériaux'!H$33),NA()) -> 1 | S115: =IFERROR(IF('Indices T.P. matériaux'!I36/'Indices T.P. matériaux'!I$33=0,NA(),'Indices T.P. matériaux'!I36/'Indices T.P. matériaux'!I$33),NA()) -> 1 | T115: =IFERROR(IF('Indices T.P. matériaux'!J36/'Indices T.P. matériaux'!J$33=0,NA(),'Indices T.P. matériaux'!J36/'Indices T.P. matériaux'!J$33),NA()) -> 1 | U115: =IFERROR(IF('Indices T.P. matériaux'!K36/'Indices T.P. matériaux'!K$33=0,NA(),'Indices T.P. matériaux'!K36/'Indices T.P. matériaux'!K$33),NA()) -> 1 | V115: =IFERROR(IF('Indices T.P. matériaux'!L36/'Indices T.P. matériaux'!L$33=0,NA(),'Indices T.P. matériaux'!L36/'Indices T.P. matériaux'!L$33),NA()) -> 1 | W115: =IFERROR(IF('Indices T.P. matériaux'!M36/'Indices T.P. matériaux'!M$33=0,NA(),'Indices T.P. matériaux'!M36/'Indices T.P. matériaux'!M$33),NA()) -> 1 | X115: =IFERROR(IF('Indices T.P. matériaux'!N36/'Indices T.P. matériaux'!N$33=0,NA(),'Indices T.P. matériaux'!N36/'Indices T.P. matériaux'!N$33),NA()) -> 1 | Y115: =IFERROR(IF('Indices T.P. matériaux'!O36/'Indices T.P. matériaux'!O$33=0,NA(),'Indices T.P. matériaux'!O36/'Indices T.P. matériaux'!O$33),NA()) -> 1 | Z115: =IFERROR(IF('Indices T.P. matériaux'!P36/'Indices T.P. matériaux'!P$33=0,NA(),'Indices T.P. matériaux'!P36/'Indices T.P. matériaux'!P$33),NA()) -> 1 | AA115: =IFERROR(IF('Indices T.P. matériaux'!Q36/'Indices T.P. matériaux'!Q$33=0,NA(),'Indices T.P. matériaux'!Q36/'Indices T.P. matériaux'!Q$33),NA()) -> 1 | AB115: =IFERROR(IF('Indices T.P. matériaux'!R36/'Indices T.P. matériaux'!R$33=0,NA(),'Indices T.P. matériaux'!R36/'Indices T.P. matériaux'!R$33),NA()) -> 1 | AC115: =IFERROR(IF('Indices T.P. matériaux'!S36/'Indices T.P. matériaux'!S$33=0,NA(),'Indices T.P. matériaux'!S36/'Indices T.P. matériaux'!S$33),NA()) -> 1 | AD115: =IFERROR(IF('Indices T.P. matériaux'!T36/'Indices T.P. matériaux'!T$33=0,NA(),'Indices T.P. matériaux'!T36/'Indices T.P. matériaux'!T$33),NA()) -> 1 | AE115: =IFERROR(IF('Indices T.P. matériaux'!U36/'Indices T.P. matériaux'!U$33=0,NA(),'Indices T.P. matériaux'!U36/'Indices T.P. matériaux'!U$33),NA()) -> 1 | AF115: =IFERROR(IF('Indices T.P. matériaux'!V36/'Indices T.P. matériaux'!V$33=0,NA(),'Indices T.P. matériaux'!V36/'Indices T.P. matériaux'!V$33),NA()) -> 1 | AG115: =IFERROR(IF('Indices T.P. matériaux'!W36/'Indices T.P. matériaux'!W$33=0,NA(),'Indices T.P. matériaux'!W36/'Indices T.P. matériaux'!W$33),NA()) -> 1.052212931 | AH115: =IFERROR(IF('Indices T.P. matériaux'!X36/'Indices T.P. matériaux'!X$33=0,NA(),'Indices T.P. matériaux'!X36/'Indices T.P. matériaux'!X$33),NA()) -> 1.061061947 | AI115: =IFERROR(IF('Indices T.P. matériaux'!Y36/'Indices T.P. matériaux'!Y$33=0,NA(),'Indices T.P. matériaux'!Y36/'Indices T.P. matériaux'!Y$33),NA()) -> 1.060232393 | AJ115: =IFERROR(IF('Indices T.P. matériaux'!Z36/'Indices T.P. matériaux'!Z$33=0,NA(),'Indices T.P. matériaux'!Z36/'Indices T.P. matériaux'!Z$33),NA()) -> 1.06848965 | AK115: =IFERROR(IF('Indices T.P. matériaux'!AA36/'Indices T.P. matériaux'!AA$33=0,NA(),'Indices T.P. matériaux'!AA36/'Indices T.P. matériaux'!AA$33),NA()) -> 1.040326633 | AL115: =IFERROR(IF('Indices T.P. matériaux'!AB36/'Indices T.P. matériaux'!AB$33=0,NA(),'Indices T.P. matériaux'!AB36/'Indices T.P. matériaux'!AB$33),NA()) -> 1.017927086 | AM115: =IFERROR(IF('Indices T.P. matériaux'!AC36/'Indices T.P. matériaux'!AC$33=0,NA(),'Indices T.P. matériaux'!AC36/'Indices T.P. matériaux'!AC$33),NA()) -> 1.011700349 | AN115: =IFERROR(IF('Indices T.P. matériaux'!AD36/'Indices T.P. matériaux'!AD$33=0,NA(),'Indices T.P. matériaux'!AD36/'Indices T.P. matériaux'!AD$33),NA()) -> 1.030272109 | AO115: =IFERROR(IF('Indices T.P. matériaux'!AE36/'Indices T.P. matériaux'!AE$33=0,NA(),'Indices T.P. matériaux'!AE36/'Indices T.P. matériaux'!AE$33),NA()) -> 1.017954134 | AP115: =IFERROR(IF('Indices T.P. matériaux'!AF36/'Indices T.P. matériaux'!AF$33=0,NA(),'Indices T.P. matériaux'!AF36/'Indices T.P. matériaux'!AF$33),NA()) -> 1.030777079 | AQ115: =IFERROR(IF('Indices T.P. matériaux'!AG36/'Indices T.P. matériaux'!AG$33=0,NA(),'Indices T.P. matériaux'!AG36/'Indices T.P. matériaux'!AG$33),NA()) -> 1.013954915 | AR115: =IFERROR(IF('Indices T.P. matériaux'!AH36/'Indices T.P. matériaux'!AH$33=0,NA(),'Indices T.P. matériaux'!AH36/'Indices T.P. matériaux'!AH$33),NA()) -> 1.017954134 | AS115: =IFERROR(IF('Indices T.P. matériaux'!AI36/'Indices T.P. matériaux'!AI$33=0,NA(),'Indices T.P. matériaux'!AI36/'Indices T.P. matériaux'!AI$33),NA()) -> 0.9884719956 | AT115: =IFERROR(IF('Indices T.P. matériaux'!AJ36/'Indices T.P. matériaux'!AJ$33=0,NA(),'Indices T.P. matériaux'!AJ36/'Indices T.P. matériaux'!AJ$33),NA()) -> 1.01216545 | AU115: =IFERROR(IF('Indices T.P. matériaux'!AK36/'Indices T.P. matériaux'!AK$33=0,NA(),'Indices T.P. matériaux'!AK36/'Indices T.P. matériaux'!AK$33),NA()) -> 1.030266961 | AV115: =IFERROR(IF('Indices T.P. matériaux'!AL36/'Indices T.P. matériaux'!AL$33=0,NA(),'Indices T.P. matériaux'!AL36/'Indices T.P. matériaux'!AL$33),NA()) -> 1.035328602 | AW115: =IFERROR(IF('Indices T.P. matériaux'!AM36/'Indices T.P. matériaux'!AM$33=0,NA(),'Indices T.P. matériaux'!AM36/'Indices T.P. matériaux'!AM$33),NA()) -> 1.035379172 | AX115: =IFERROR(IF('Indices T.P. matériaux'!AN36/'Indices T.P. matériaux'!AN$33=0,NA(),'Indices T.P. matériaux'!AN36/'Indices T.P. matériaux'!AN$33),NA()) -> 1.035571297 | AY115: =IFERROR(IF('Indices T.P. matériaux'!AO36/'Indices T.P. matériaux'!AO$33=0,NA(),'Indices T.P. matériaux'!AO36/'Indices T.P. matériaux'!AO$33),NA()) -> 0.9914812054 | AZ115: =IFERROR(IF('Indices T.P. matériaux'!AP36/'Indices T.P. matériaux'!AP$33=0,NA(),'Indices T.P. matériaux'!AP36/'Indices T.P. matériaux'!AP$33),NA()) -> 1.025 | BA115: =IFERROR(IF('Indices T.P. matériaux'!AQ36/'Indices T.P. matériaux'!AQ$33=0,NA(),'Indices T.P. matériaux'!AQ36/'Indices T.P. matériaux'!AQ$33),NA()) -> 1.008574642 | BB115: =IFERROR(IF('Indices T.P. matériaux'!AR36/'Indices T.P. matériaux'!AR$33=0,NA(),'Indices T.P. matériaux'!AR36/'Indices T.P. matériaux'!AR$33),NA()) ->  | BC115: =IFERROR(IF('Indices T.P. matériaux'!AS36/'Indices T.P. matériaux'!AS$33=0,NA(),'Indices T.P. matériaux'!AS36/'Indices T.P. matériaux'!AS$33),NA()) ->  | BD115: =IFERROR(IF('Indices T.P. matériaux'!AT36/'Indices T.P. matériaux'!AT$33=0,NA(),'Indices T.P. matériaux'!AT36/'Indices T.P. matériaux'!AT$33),NA()) ->  | BE115: =IFERROR(IF('Indices T.P. matériaux'!AU36/'Indices T.P. matériaux'!AU$33=0,NA(),'Indices T.P. matériaux'!AU36/'Indices T.P. matériaux'!AU$33),NA()) ->  | BF115: =IFERROR(IF('Indices T.P. matériaux'!AV36/'Indices T.P. matériaux'!AV$33=0,NA(),'Indices T.P. matériaux'!AV36/'Indices T.P. matériaux'!AV$33),NA()) ->  | BG115: =IFERROR(IF('Indices T.P. matériaux'!AW36/'Indices T.P. matériaux'!AW$33=0,NA(),'Indices T.P. matériaux'!AW36/'Indices T.P. matériaux'!AW$33),NA()) ->  | BH115: =IFERROR(IF('Indices T.P. matériaux'!AX36/'Indices T.P. matériaux'!AX$33=0,NA(),'Indices T.P. matériaux'!AX36/'Indices T.P. matériaux'!AX$33),NA()) ->  | BI115: =IFERROR(IF('Indices T.P. matériaux'!AY36/'Indices T.P. matériaux'!AY$33=0,NA(),'Indices T.P. matériaux'!AY36/'Indices T.P. matériaux'!AY$33),NA()) -> 0.9044602798 | BJ115: =IFERROR(IF('Indices T.P. matériaux'!AZ36/'Indices T.P. matériaux'!AZ$33=0,NA(),'Indices T.P. matériaux'!AZ36/'Indices T.P. matériaux'!AZ$33),NA()) -> 0.9596816976 | BK115: =IFERROR(IF('Indices T.P. matériaux'!BA36/'Indices T.P. matériaux'!BA$33=0,NA(),'Indices T.P. matériaux'!BA36/'Indices T.P. matériaux'!BA$33),NA()) -> 0.9596816976 | BL115: =IFERROR(IF('Indices T.P. matériaux'!BB36/'Indices T.P. matériaux'!BB$33=0,NA(),'Indices T.P. matériaux'!BB36/'Indices T.P. matériaux'!BB$33),NA()) -> 0.9206167904 | BM115: =IFERROR(IF('Indices T.P. matériaux'!BC36/'Indices T.P. matériaux'!BC$33=0,NA(),'Indices T.P. matériaux'!BC36/'Indices T.P. matériaux'!BC$33),NA()) -> 0.9199480393 | BN115: =IFERROR(IF('Indices T.P. matériaux'!BD36/'Indices T.P. matériaux'!BD$33=0,NA(),'Indices T.P. matériaux'!BD36/'Indices T.P. matériaux'!BD$33),NA()) -> 1.018946396 | BO115: =IFERROR(IF('Indices T.P. matériaux'!BE36/'Indices T.P. matériaux'!BE$33=0,NA(),'Indices T.P. matériaux'!BE36/'Indices T.P. matériaux'!BE$33),NA()) -> 1.007907743 | BP115: =IFERROR(IF('Indices T.P. matériaux'!BF36/'Indices T.P. matériaux'!BF$33=0,NA(),'Indices T.P. matériaux'!BF36/'Indices T.P. matériaux'!BF$33),NA()) ->  | BQ115: =IFERROR(IF('Indices T.P. matériaux'!BG36/'Indices T.P. matériaux'!BG$33=0,NA(),'Indices T.P. matériaux'!BG36/'Indices T.P. matériaux'!BG$33),NA()) -> 1.075334662 | BR115: =IFERROR(IF('Indices T.P. matériaux'!BH36/'Indices T.P. matériaux'!BH$33=0,NA(),'Indices T.P. matériaux'!BH36/'Indices T.P. matériaux'!BH$33),NA()) -> 0.9864777849 | BS115: =IFERROR(IF('Indices T.P. matériaux'!BI36/'Indices T.P. matériaux'!BI$33=0,NA(),'Indices T.P. matériaux'!BI36/'Indices T.P. matériaux'!BI$33),NA()) -> 0.9844407601 | BT115: =IFERROR(IF('Indices T.P. matériaux'!BJ36/'Indices T.P. matériaux'!BJ$33=0,NA(),'Indices T.P. matériaux'!BJ36/'Indices T.P. matériaux'!BJ$33),NA()) -> 0.9924728802 | BU115: =IFERROR(IF('Indices T.P. matériaux'!BK36/'Indices T.P. matériaux'!BK$33=0,NA(),'Indices T.P. matériaux'!BK36/'Indices T.P. matériaux'!BK$33),NA()) -> 1.013582966 | BV115: =IFERROR(IF('Indices T.P. matériaux'!BL36/'Indices T.P. matériaux'!BL$33=0,NA(),'Indices T.P. matériaux'!BL36/'Indices T.P. matériaux'!BL$33),NA()) -> 1 | BW115: =IFERROR(IF('Indices T.P. matériaux'!BM36/'Indices T.P. matériaux'!BM$33=0,NA(),'Indices T.P. matériaux'!BM36/'Indices T.P. matériaux'!BM$33),NA()) -> 1 | BX115: =IFERROR(IF('Indices T.P. matériaux'!BN36/'Indices T.P. matériaux'!BN$33=0,NA(),'Indices T.P. matériaux'!BN36/'Indices T.P. matériaux'!BN$33),NA()) -> 1 | BY115: =IFERROR(IF('Indices T.P. matériaux'!BO36/'Indices T.P. matériaux'!BO$33=0,NA(),'Indices T.P. matériaux'!BO36/'Indices T.P. matériaux'!BO$33),NA()) -> 1 | BZ115: =IFERROR(IF('Indices T.P. matériaux'!BP36/'Indices T.P. matériaux'!BP$33=0,NA(),'Indices T.P. matériaux'!BP36/'Indices T.P. matériaux'!BP$33),NA()) -> 0.9906636899 | CA115: =IFERROR(IF('Indices T.P. matériaux'!BQ36/'Indices T.P. matériaux'!BQ$33=0,NA(),'Indices T.P. matériaux'!BQ36/'Indices T.P. matériaux'!BQ$33),NA()) -> 0.9908462164 | CB115: =IFERROR(IF('Indices T.P. matériaux'!BR36/'Indices T.P. matériaux'!BR$33=0,NA(),'Indices T.P. matériaux'!BR36/'Indices T.P. matériaux'!BR$33),NA()) -> 0.9906275469 | CC115: =IFERROR(IF('Indices T.P. matériaux'!BS36/'Indices T.P. matériaux'!BS$33=0,NA(),'Indices T.P. matériaux'!BS36/'Indices T.P. matériaux'!BS$33),NA()) -> 0.9906389906 | CD115: =IFERROR(IF('Indices T.P. matériaux'!BT36/'Indices T.P. matériaux'!BT$33=0,NA(),'Indices T.P. matériaux'!BT36/'Indices T.P. matériaux'!BT$33),NA()) -> 1 | CE115: =IFERROR(IF('Indices T.P. matériaux'!BU36/'Indices T.P. matériaux'!BU$33=0,NA(),'Indices T.P. matériaux'!BU36/'Indices T.P. matériaux'!BU$33),NA()) -> 1 | CF115: =IFERROR(IF('Indices T.P. matériaux'!BV36/'Indices T.P. matériaux'!BV$33=0,NA(),'Indices T.P. matériaux'!BV36/'Indices T.P. matériaux'!BV$33),NA()) -> 1 | CG115: =IFERROR(IF('Indices T.P. matériaux'!BW36/'Indices T.P. matériaux'!BW$33=0,NA(),'Indices T.P. matériaux'!BW36/'Indices T.P. matériaux'!BW$33),NA()) -> 1 | CH115: =IFERROR(IF('Indices T.P. matériaux'!BX36/'Indices T.P. matériaux'!BX$33=0,NA(),'Indices T.P. matériaux'!BX36/'Indices T.P. matériaux'!BX$33),NA()) -> 1 | CI115: =IFERROR(IF('Indices T.P. matériaux'!BY36/'Indices T.P. matériaux'!BY$33=0,NA(),'Indices T.P. matériaux'!BY36/'Indices T.P. matériaux'!BY$33),NA()) -> 1 | CJ115: =IFERROR(IF('Indices T.P. matériaux'!BZ36/'Indices T.P. matériaux'!BZ$33=0,NA(),'Indices T.P. matériaux'!BZ36/'Indices T.P. matériaux'!BZ$33),NA()) -> 1 | CK115: =IFERROR(IF('Indices T.P. matériaux'!CA36/'Indices T.P. matériaux'!CA$33=0,NA(),'Indices T.P. matériaux'!CA36/'Indices T.P. matériaux'!CA$33),NA()) -> 1.03076324 | CL115: =IFERROR(IF('Indices T.P. matériaux'!CB36/'Indices T.P. matériaux'!CB$33=0,NA(),'Indices T.P. matériaux'!CB36/'Indices T.P. matériaux'!CB$33),NA()) -> 1.030629461 | CM115: =IFERROR(IF('Indices T.P. matériaux'!CC36/'Indices T.P. matériaux'!CC$33=0,NA(),'Indices T.P. matériaux'!CC36/'Indices T.P. matériaux'!CC$33),NA()) -> 1.030633437 | CN115: =IFERROR(IF('Indices T.P. matériaux'!CD36/'Indices T.P. matériaux'!CD$33=0,NA(),'Indices T.P. matériaux'!CD36/'Indices T.P. matériaux'!CD$33),NA()) -> 1.022923875 | CO115: =IFERROR(IF('Indices T.P. matériaux'!CE36/'Indices T.P. matériaux'!CE$33=0,NA(),'Indices T.P. matériaux'!CE36/'Indices T.P. matériaux'!CE$33),NA()) -> 1.022923875 | CP115: =IFERROR(IF('Indices T.P. matériaux'!CF36/'Indices T.P. matériaux'!CF$33=0,NA(),'Indices T.P. matériaux'!CF36/'Indices T.P. matériaux'!CF$33),NA()) -> 1.015204118 | CQ115: =IFERROR(IF('Indices T.P. matériaux'!CG36/'Indices T.P. matériaux'!CG$33=0,NA(),'Indices T.P. matériaux'!CG36/'Indices T.P. matériaux'!CG$33),NA()) -> 1.01508079 | CR115: =IFERROR(IF('Indices T.P. matériaux'!CH36/'Indices T.P. matériaux'!CH$33=0,NA(),'Indices T.P. matériaux'!CH36/'Indices T.P. matériaux'!CH$33),NA()) -> 1.017714484 | CS115: =IFERROR(IF('Indices T.P. matériaux'!CI36/'Indices T.P. matériaux'!CI$33=0,NA(),'Indices T.P. matériaux'!CI36/'Indices T.P. matériaux'!CI$33),NA()) -> 0.9485560779 | CT115: =IFERROR(IF('Indices T.P. matériaux'!CJ36/'Indices T.P. matériaux'!CJ$33=0,NA(),'Indices T.P. matériaux'!CJ36/'Indices T.P. matériaux'!CJ$33),NA()) -> 0.9731543624 | CU115: =IFERROR(IF('Indices T.P. matériaux'!CK36/'Indices T.P. matériaux'!CK$33=0,NA(),'Indices T.P. matériaux'!CK36/'Indices T.P. matériaux'!CK$33),NA()) -> 0.9648367953 | CV115: =IFERROR(IF('Indices T.P. matériaux'!CL36/'Indices T.P. matériaux'!CL$33=0,NA(),'Indices T.P. matériaux'!CL36/'Indices T.P. matériaux'!CL$33),NA()) -> 1.020029481 | CW115: =IFERROR(IF('Indices T.P. matériaux'!CM36/'Indices T.P. matériaux'!CM$33=0,NA(),'Indices T.P. matériaux'!CM36/'Indices T.P. matériaux'!CM$33),NA()) -> 1.017613187 | CX115: =IFERROR(IF('Indices T.P. matériaux'!CN36/'Indices T.P. matériaux'!CN$33=0,NA(),'Indices T.P. matériaux'!CN36/'Indices T.P. matériaux'!CN$33),NA()) -> 0.9817052888 | CY115: =IFERROR(IF('Indices T.P. matériaux'!CO36/'Indices T.P. matériaux'!CO$33=0,NA(),'Indices T.P. matériaux'!CO36/'Indices T.P. matériaux'!CO$33),NA()) -> 1.026717557 | CZ115: =IFERROR(IF('Indices T.P. matériaux'!CP36/'Indices T.P. matériaux'!CP$33=0,NA(),'Indices T.P. matériaux'!CP36/'Indices T.P. matériaux'!CP$33),NA()) -> 1.041056074 | DA115: =IFERROR(IF('Indices T.P. matériaux'!CQ36/'Indices T.P. matériaux'!CQ$33=0,NA(),'Indices T.P. matériaux'!CQ36/'Indices T.P. matériaux'!CQ$33),NA()) ->  | DB115: =IFERROR(IF('Indices T.P. matériaux'!CR36/'Indices T.P. matériaux'!CR$33=0,NA(),'Indices T.P. matériaux'!CR36/'Indices T.P. matériaux'!CR$33),NA()) ->  | DC115: =IFERROR(IF('Indices T.P. matériaux'!CS36/'Indices T.P. matériaux'!CS$33=0,NA(),'Indices T.P. matériaux'!CS36/'Indices T.P. matériaux'!CS$33),NA()) ->  | DD115: =IFERROR(IF('Indices T.P. matériaux'!CT36/'Indices T.P. matériaux'!CT$33=0,NA(),'Indices T.P. matériaux'!CT36/'Indices T.P. matériaux'!CT$33),NA()) ->  | DE115: =IFERROR(IF('Indices Grymafer'!D34/'Indices Grymafer'!D$31=0,NA(),'Indices Grymafer'!D34/'Indices Grymafer'!D$31),NA()) -> 0.9861325116 | DF115: =IFERROR(IF('Indices Grymafer'!E34/'Indices Grymafer'!E$31=0,NA(),'Indices Grymafer'!E34/'Indices Grymafer'!E$31),NA()) -> 0.9896103896 | DG115: =IFERROR(IF('Indices Grymafer'!F34/'Indices Grymafer'!F$31=0,NA(),'Indices Grymafer'!F34/'Indices Grymafer'!F$31),NA()) -> 0.9899888765 | DH115: =IFERROR(IF('Indices Grymafer'!G34/'Indices Grymafer'!G$31=0,NA(),'Indices Grymafer'!G34/'Indices Grymafer'!G$31),NA()) -> 0.9858064516 | DI115: =IFERROR(IF('Indices T.P. matériaux'!CW36/'Indices T.P. matériaux'!CW$33=0,NA(),'Indices T.P. matériaux'!CW36/'Indices T.P. matériaux'!CW$33),NA()) -> 0.9920105549 | DJ115: =IFERROR(IF('Indices T.P. matériaux'!CX36/'Indices T.P. matériaux'!CX$33=0,NA(),'Indices T.P. matériaux'!CX36/'Indices T.P. matériaux'!CX$33),NA()) -> 0.9841657935 | DK115: =IFERROR(IF('Indices T.P. matériaux'!CY36/'Indices T.P. matériaux'!CY$33=0,NA(),'Indices T.P. matériaux'!CY36/'Indices T.P. matériaux'!CY$33),NA()) -> 1.000439367 | DL115: =IFERROR(IF('Indices T.P. matériaux'!CZ36/'Indices T.P. matériaux'!CZ$33=0,NA(),'Indices T.P. matériaux'!CZ36/'Indices T.P. matériaux'!CZ$33),NA()) -> 1.005940034 | DM115: =IFERROR(IF('Indices T.P. matériaux'!DA36/'Indices T.P. matériaux'!DA$33=0,NA(),'Indices T.P. matériaux'!DA36/'Indices T.P. matériaux'!DA$33),NA()) -> 0.8888888889 | DN115: =IFERROR(IF('Indices T.P. matériaux'!DB36/'Indices T.P. matériaux'!DB$33=0,NA(),'Indices T.P. matériaux'!DB36/'Indices T.P. matériaux'!DB$33),NA()) -> 1.004888596 | DO115: =IFERROR(IF('Indices T.P. matériaux'!DC36/'Indices T.P. matériaux'!DC$33=0,NA(),'Indices T.P. matériaux'!DC36/'Indices T.P. matériaux'!DC$33),NA()) -> 1.002868069 | DP115: =IFERROR(IF('Indices T.P. matériaux'!DD36/'Indices T.P. matériaux'!DD$33=0,NA(),'Indices T.P. matériaux'!DD36/'Indices T.P. matériaux'!DD$33),NA()) -> 1.004888596 | DR115: ='Indices courants'!C32 -> 2018-04-01 | DS115: =IFERROR(IF('Indices des produits & services'!D34/'Indices des produits & services'!D$31=0,NA(),'Indices des produits & services'!D34/'Indices des produits & services'!D$31),NA()) -> 1.00619469 | DT115: =IFERROR(IF('Indices des produits & services'!E34/'Indices des produits & services'!E$31=0,NA(),'Indices des produits & services'!E34/'Indices des produits & services'!E$31),NA()) -> 1.05861244 | DU115: =IFERROR(IF('Indices des produits & services'!F34/'Indices des produits & services'!F$31=0,NA(),'Indices des produits & services'!F34/'Indices des produits & services'!F$31),NA()) -> 1.023430178 | DV115: =IFERROR(IF('Indices des produits & services'!G34/'Indices des produits & services'!G$31=0,NA(),'Indices des produits & services'!G34/'Indices des produits & services'!G$31),NA()) -> 0.9990740741 | DW115: =IFERROR(IF('Indices des produits & services'!H34/'Indices des produits & services'!H$31=0,NA(),'Indices des produits & services'!H34/'Indices des produits & services'!H$31),NA()) -> 1.00170503 | DX115: =IFERROR(IF('Indices des produits & services'!I34/'Indices des produits & services'!I$31=0,NA(),'Indices des produits & services'!I34/'Indices des produits & services'!I$31),NA()) -> 0.9680111266 | DY115: =IFERROR(IF('Indices des produits & services'!J34/'Indices des produits & services'!J$31=0,NA(),'Indices des produits & services'!J34/'Indices des produits & services'!J$31),NA()) -> 1.003676471 | DZ115: =IFERROR(IF('Indices des produits & services'!K34/'Indices des produits & services'!K$31=0,NA(),'Indices des produits & services'!K34/'Indices des produits & services'!K$31),NA()) -> 0.9955357143 | EA115: =IFERROR(IF('Indices des produits & services'!L34/'Indices des produits & services'!L$31=0,NA(),'Indices des produits & services'!L34/'Indices des produits & services'!L$31),NA()) -> 1 | EB115: =IFERROR(IF('Indices des produits & services'!M34/'Indices des produits & services'!M$31=0,NA(),'Indices des produits & services'!M34/'Indices des produits & services'!M$31),NA()) -> 1.006161972 | EC115: =IFERROR(IF('Indices des produits & services'!N34/'Indices des produits & services'!N$31=0,NA(),'Indices des produits & services'!N34/'Indices des produits & services'!N$31),NA()) -> 1.004052685 | ED115: =IFERROR(IF('Indices des produits & services'!O34/'Indices des produits & services'!O$31=0,NA(),'Indices des produits & services'!O34/'Indices des produits & services'!O$31),NA()) -> 1 | EE115: =IFERROR(IF('Indices des produits & services'!P34/'Indices des produits & services'!P$31=0,NA(),'Indices des produits & services'!P34/'Indices des produits & services'!P$31),NA()) -> 0.976744186 | EF115: =IFERROR(IF('Indices des produits & services'!Q34/'Indices des produits & services'!Q$31=0,NA(),'Indices des produits & services'!Q34/'Indices des produits & services'!Q$31),NA()) -> 1.012533572 | EG115: =IFERROR(IF('Indices des produits & services'!R34/'Indices des produits & services'!R$31=0,NA(),'Indices des produits & services'!R34/'Indices des produits & services'!R$31),NA()) -> 1.013220019 | EH115: =IFERROR(IF('Indices des produits & services'!S34/'Indices des produits & services'!S$31=0,NA(),'Indices des produits & services'!S34/'Indices des produits & services'!S$31),NA()) -> 1.015178571 | EI115: =IFERROR(IF('Indices des produits & services'!T34/'Indices des produits & services'!T$31=0,NA(),'Indices des produits & services'!T34/'Indices des produits & services'!T$31),NA()) -> 1.015748031 | EJ115: =IFERROR(IF('Indices des produits & services'!U34/'Indices des produits & services'!U$31=0,NA(),'Indices des produits & services'!U34/'Indices des produits & services'!U$31),NA()) -> 1.020140105 | EK115: =IFERROR(IF('Indices des produits & services'!V34/'Indices des produits & services'!V$31=0,NA(),'Indices des produits & services'!V34/'Indices des produits & services'!V$31),NA()) -> 1.025069638 | EL115: =IFERROR(IF('Indices des produits & services'!W34/'Indices des produits & services'!W$31=0,NA(),'Indices des produits & services'!W34/'Indices des produits & services'!W$31),NA()) -> 1.008807046 | EM115: =IFERROR(IF('Indices des produits & services'!X34/'Indices des produits & services'!X$31=0,NA(),'Indices des produits & services'!X34/'Indices des produits & services'!X$31),NA()) -> 1.009495982 | EN115: =IFERROR(IF('Indices des produits & services'!Y34/'Indices des produits & services'!Y$31=0,NA(),'Indices des produits & services'!Y34/'Indices des produits & services'!Y$31),NA()) -> 1.007778738 | EO115: =IFERROR(IF('Indices des produits & services'!Z34/'Indices des produits & services'!Z$31=0,NA(),'Indices des produits & services'!Z34/'Indices des produits & services'!Z$31),NA()) -> 0.9802575107 | EP115: =IFERROR(IF('Indices des produits & services'!AA34/'Indices des produits & services'!AA$31=0,NA(),'Indices des produits & services'!AA34/'Indices des produits & services'!AA$31),NA()) -> 0.8878416588 | EQ115: =IFERROR(IF('Indices des produits & services'!AB34/'Indices des produits & services'!AB$31=0,NA(),'Indices des produits & services'!AB34/'Indices des produits & services'!AB$31),NA()) -> 1.019392917 | ER115: =IFERROR(IF('Indices des produits & services'!AC34/'Indices des produits & services'!AC$31=0,NA(),'Indices des produits & services'!AC34/'Indices des produits & services'!AC$31),NA()) -> 1.027027027 | ES115: =IFERROR(IF('Indices des produits & services'!AD34/'Indices des produits & services'!AD$31=0,NA(),'Indices des produits & services'!AD34/'Indices des produits & services'!AD$31),NA()) -> 1.017751479 | ET115: =IFERROR(IF('Indices des produits & services'!AE34/'Indices des produits & services'!AE$31=0,NA(),'Indices des produits & services'!AE34/'Indices des produits & services'!AE$31),NA()) -> 1.007849294 | EU115: =IFERROR(IF('Indices des produits & services'!AF34/'Indices des produits & services'!AF$31=0,NA(),'Indices des produits & services'!AF34/'Indices des produits & services'!AF$31),NA()) -> 1.000868056 | EV115: =IFERROR(IF('Indices des produits & services'!AG34/'Indices des produits & services'!AG$31=0,NA(),'Indices des produits & services'!AG34/'Indices des produits & services'!AG$31),NA()) -> 1.017905103 | EW115: =IFERROR(IF('Indices des produits & services'!AH34/'Indices des produits & services'!AH$31=0,NA(),'Indices des produits & services'!AH34/'Indices des produits & services'!AH$31),NA()) -> 1.028673835 | EX115: =IFERROR(IF('Indices des produits & services'!AI34/'Indices des produits & services'!AI$31=0,NA(),'Indices des produits & services'!AI34/'Indices des produits & services'!AI$31),NA()) -> 0.9868651489 | EY115: =IFERROR(IF('Indices des produits & services'!AJ34/'Indices des produits & services'!AJ$31=0,NA(),'Indices des produits & services'!AJ34/'Indices des produits & services'!AJ$31),NA()) -> 0.992248062 | EZ115: =IFERROR(IF('Indices des produits & services'!AK34/'Indices des produits & services'!AK$31=0,NA(),'Indices des produits & services'!AK34/'Indices des produits & services'!AK$31),NA()) -> 0.9533437014 | FA115: =IFERROR(IF('Indices des produits & services'!AL34/'Indices des produits & services'!AL$31=0,NA(),'Indices des produits & services'!AL34/'Indices des produits & services'!AL$31),NA()) -> 0.9994626545 | FB115: =IFERROR(IF('Indices des produits & services'!AM34/'Indices des produits & services'!AM$31=0,NA(),'Indices des produits & services'!AM34/'Indices des produits & services'!AM$31),NA()) -> 1.031551271 | FC115: =IFERROR(IF('Indices des produits & services'!AN34/'Indices des produits & services'!AN$31=0,NA(),'Indices des produits & services'!AN34/'Indices des produits & services'!AN$31),NA()) -> 1.004669261 | FD115: =IFERROR(IF('Indices des produits & services'!AO34/'Indices des produits & services'!AO$31=0,NA(),'Indices des produits & services'!AO34/'Indices des produits & services'!AO$31),NA()) -> 1.005314438 | FE115: =IFERROR(IF('Indices des produits & services'!AP34/'Indices des produits & services'!AP$31=0,NA(),'Indices des produits & services'!AP34/'Indices des produits & services'!AP$31),NA()) -> 0.9982222222 | FF115: =IFERROR(IF('Indices des produits & services'!AQ34/'Indices des produits & services'!AQ$31=0,NA(),'Indices des produits & services'!AQ34/'Indices des produits & services'!AQ$31),NA()) -> 1.006205674 | FG115: =IFERROR(IF('Indices des produits & services'!AR34/'Indices des produits & services'!AR$31=0,NA(),'Indices des produits & services'!AR34/'Indices des produits & services'!AR$31),NA()) -> 0.9950738916 | FH115: =IFERROR(IF('Indices des produits & services'!AS34/'Indices des produits & services'!AS$31=0,NA(),'Indices des produits & services'!AS34/'Indices des produits & services'!AS$31),NA()) -> 1.006339144 | FI115: =IFERROR(IF('Indices des produits & services'!AT34/'Indices des produits & services'!AT$31=0,NA(),'Indices des produits & services'!AT34/'Indices des produits & services'!AT$31),NA()) -> 1.034816248 | FJ115: =IFERROR(IF('Indices des produits & services'!AU34/'Indices des produits & services'!AU$31=0,NA(),'Indices des produits & services'!AU34/'Indices des produits & services'!AU$31),NA()) -> 1.019924099 | FK115: =IFERROR(IF('Indices des produits & services'!AV34/'Indices des produits & services'!AV$31=0,NA(),'Indices des produits & services'!AV34/'Indices des produits & services'!AV$31),NA()) -> 1.036253776 | FL115: =IFERROR(IF('Indices des produits & services'!AW34/'Indices des produits & services'!AW$31=0,NA(),'Indices des produits & services'!AW34/'Indices des produits & services'!AW$31),NA()) -> 1.102996255 | FM115: =IFERROR(IF('Indices des produits & services'!AX34/'Indices des produits & services'!AX$31=0,NA(),'Indices des produits & services'!AX34/'Indices des produits & services'!AX$31),NA()) -> 1.01453958 | FN115: =IFERROR(IF('Indices des produits & services'!AY34/'Indices des produits & services'!AY$31=0,NA(),'Indices des produits & services'!AY34/'Indices des produits & services'!AY$31),NA()) -> 1.01453958 | FO115: =IFERROR(IF('Indices des produits & services'!AZ34/'Indices des produits & services'!AZ$31=0,NA(),'Indices des produits & services'!AZ34/'Indices des produits & services'!AZ$31),NA()) -> 1.003944773 | FP115: =IFERROR(IF('Indices des produits & services'!BA34/'Indices des produits & services'!BA$31=0,NA(),'Indices des produits & services'!BA34/'Indices des produits & services'!BA$31),NA()) -> 1.003080082 | FQ115: =IFERROR(IF('Indices des produits & services'!BB34/'Indices des produits & services'!BB$31=0,NA(),'Indices des produits & services'!BB34/'Indices des produits & services'!BB$31),NA()) -> 1.021718602 | FR115: =IFERROR(IF('Indices des produits & services'!BC34/'Indices des produits & services'!BC$31=0,NA(),'Indices des produits & services'!BC34/'Indices des produits & services'!BC$31),NA()) -> 1.027372263 | FS115: =IFERROR(IF('Indices des produits & services'!BD34/'Indices des produits & services'!BD$31=0,NA(),'Indices des produits & services'!BD34/'Indices des produits & services'!BD$31),NA()) -> 1.019547325 | FT115: =IFERROR(IF('Indices des produits & services'!BE34/'Indices des produits & services'!BE$31=0,NA(),'Indices des produits & services'!BE34/'Indices des produits & services'!BE$31),NA()) -> 0.996039604 | FU115: =IFERROR(IF('Indices des produits & services'!BF34/'Indices des produits & services'!BF$31=0,NA(),'Indices des produits & services'!BF34/'Indices des produits & services'!BF$31),NA()) -> 1.00280112 | FV115: =IFERROR(IF('Indices des produits & services'!BG34/'Indices des produits & services'!BG$31=0,NA(),'Indices des produits & services'!BG34/'Indices des produits & services'!BG$31),NA()) -> 1.0168 | FW115: =IFERROR(IF('Indices des produits & services'!BH34/'Indices des produits & services'!BH$31=0,NA(),'Indices des produits & services'!BH34/'Indices des produits & services'!BH$31),NA()) -> 0.9959216966 | FX115: =IFERROR(IF('Indices des produits & services'!BI34/'Indices des produits & services'!BI$31=0,NA(),'Indices des produits & services'!BI34/'Indices des produits & services'!BI$31),NA()) -> 1.03046875 | FY115: =IFERROR(IF('Indices des produits & services'!BJ34/'Indices des produits & services'!BJ$31=0,NA(),'Indices des produits & services'!BJ34/'Indices des produits & services'!BJ$31),NA()) -> 1.002843602 | FZ115: =IFERROR(IF('Indices des produits & services'!BK34/'Indices des produits & services'!BK$31=0,NA(),'Indices des produits & services'!BK34/'Indices des produits & services'!BK$31),NA()) -> 1.001893939 | GA115: =IFERROR(IF('Indices des produits & services'!BL34/'Indices des produits & services'!BL$31=0,NA(),'Indices des produits & services'!BL34/'Indices des produits & services'!BL$31),NA()) -> 0.9760273973 | GB115: =IFERROR(IF('Indices des produits & services'!BM34/'Indices des produits & services'!BM$31=0,NA(),'Indices des produits & services'!BM34/'Indices des produits & services'!BM$31),NA()) -> 0.9807017544 | GC115: =IFERROR(IF('Indices des produits & services'!BN34/'Indices des produits & services'!BN$31=0,NA(),'Indices des produits & services'!BN34/'Indices des produits & services'!BN$31),NA()) -> 1.019467213 | GD115: =IFERROR(IF('Indices des produits & services'!BO34/'Indices des produits & services'!BO$31=0,NA(),'Indices des produits & services'!BO34/'Indices des produits & services'!BO$31),NA()) -> 1.025800712 | GE115: =IFERROR(IF('Indices des produits & services'!BP34/'Indices des produits & services'!BP$31=0,NA(),'Indices des produits & services'!BP34/'Indices des produits & services'!BP$31),NA()) -> 1.023923445 | GF115: =IFERROR(IF('Indices des produits & services'!BQ34/'Indices des produits & services'!BQ$31=0,NA(),'Indices des produits & services'!BQ34/'Indices des produits & services'!BQ$31),NA()) -> 1.008992806 | GG115: =IFERROR(IF('Indices des produits & services'!BR34/'Indices des produits & services'!BR$31=0,NA(),'Indices des produits & services'!BR34/'Indices des produits & services'!BR$31),NA()) -> 1.012844037 | GH115: =IFERROR(IF('Indices des produits & services'!BS34/'Indices des produits & services'!BS$31=0,NA(),'Indices des produits & services'!BS34/'Indices des produits & services'!BS$31),NA()) -> 1.00174216 | GI115: =IFERROR(IF('Indices des produits & services'!BT34/'Indices des produits & services'!BT$31=0,NA(),'Indices des produits & services'!BT34/'Indices des produits & services'!BT$31),NA()) -> 1.011456628 | GJ115: =IFERROR(IF('Indices des produits & services'!BU34/'Indices des produits & services'!BU$31=0,NA(),'Indices des produits & services'!BU34/'Indices des produits & services'!BU$31),NA()) -> 1.010507881 | GK115: =IFERROR(IF('Indices des produits & services'!BV34/'Indices des produits & services'!BV$31=0,NA(),'Indices des produits & services'!BV34/'Indices des produits & services'!BV$31),NA()) -> 1.023674242 | GL115: =IFERROR(IF('Indices des produits & services'!BW34/'Indices des produits & services'!BW$31=0,NA(),'Indices des produits & services'!BW34/'Indices des produits & services'!BW$31),NA()) -> 1 | GM115: =IFERROR(IF('Indices des produits & services'!BX34/'Indices des produits & services'!BX$31=0,NA(),'Indices des produits & services'!BX34/'Indices des produits & services'!BX$31),NA()) -> 1.011304348 | GN115: =IFERROR(IF('Indices des produits & services'!BY34/'Indices des produits & services'!BY$31=0,NA(),'Indices des produits & services'!BY34/'Indices des produits & services'!BY$31),NA()) -> 0.9842814371 | GO115: =IFERROR(IF('Indices des produits & services'!BZ34/'Indices des produits & services'!BZ$31=0,NA(),'Indices des produits & services'!BZ34/'Indices des produits & services'!BZ$31),NA()) -> 1.019572954 | GP115: =IFERROR(IF('Indices des produits & services'!CA34/'Indices des produits & services'!CA$31=0,NA(),'Indices des produits & services'!CA34/'Indices des produits & services'!CA$31),NA()) -> 1.059019119 | GQ115: =IFERROR(IF('Indices des produits & services'!CB34/'Indices des produits & services'!CB$31=0,NA(),'Indices des produits & services'!CB34/'Indices des produits & services'!CB$31),NA()) -> 1.004643963 | GR115: =IFERROR(IF('Indices des produits & services'!CC34/'Indices des produits & services'!CC$31=0,NA(),'Indices des produits & services'!CC34/'Indices des produits & services'!CC$31),NA()) -> 1.00088574 | GS115: =IFERROR(IF('Indices des produits & services'!CD34/'Indices des produits & services'!CD$31=0,NA(),'Indices des produits & services'!CD34/'Indices des produits & services'!CD$31),NA()) -> 1.010110294 | GT115: =IFERROR(IF('Indices des produits & services'!CE34/'Indices des produits & services'!CE$31=0,NA(),'Indices des produits & services'!CE34/'Indices des produits & services'!CE$31),NA()) -> 1.00199005 | GU115: =IFERROR(IF('Indices des produits & services'!CF34/'Indices des produits & services'!CF$31=0,NA(),'Indices des produits & services'!CF34/'Indices des produits & services'!CF$31),NA()) -> 1.005267779 | GV115: =IFERROR(IF('Indices des produits & services'!CG34/'Indices des produits & services'!CG$31=0,NA(),'Indices des produits & services'!CG34/'Indices des produits & services'!CG$31),NA()) -> 1 | GW115: =IFERROR(IF('Indices des produits & services'!CH34/'Indices des produits & services'!CH$31=0,NA(),'Indices des produits & services'!CH34/'Indices des produits & services'!CH$31),NA()) -> 1.000888889 | GX115: =IFERROR(IF('Indices des produits & services'!CI34/'Indices des produits & services'!CI$31=0,NA(),'Indices des produits & services'!CI34/'Indices des produits & services'!CI$31),NA()) -> 1.009737098 | GY115: =IFERROR(IF('Indices des produits & services'!CJ34/'Indices des produits & services'!CJ$31=0,NA(),'Indices des produits & services'!CJ34/'Indices des produits & services'!CJ$31),NA()) -> 0.9936842105 | GZ115: =IFERROR(IF('Indices des produits & services'!CK34/'Indices des produits & services'!CK$31=0,NA(),'Indices des produits & services'!CK34/'Indices des produits & services'!CK$31),NA()) -> 0.9494799406 | HA115: =IFERROR(IF('Indices des produits & services'!CL34/'Indices des produits & services'!CL$31=0,NA(),'Indices des produits & services'!CL34/'Indices des produits & services'!CL$31),NA()) -> 0.9530812325 | HB115: =IFERROR(IF('Indices des produits & services'!CM34/'Indices des produits & services'!CM$31=0,NA(),'Indices des produits & services'!CM34/'Indices des produits & services'!CM$31),NA()) -> 0.9385964912 | HC115: =IFERROR(IF('Indices des produits & services'!CN34/'Indices des produits & services'!CN$31=0,NA(),'Indices des produits & services'!CN34/'Indices des produits & services'!CN$31),NA()) -> 1.00090009 | HE115: =Tableau21[[#This Row],[Période]] -> 2018-04-01 | HF115: =IFERROR(IF('Indices courants'!J32/'Indices courants'!J$29=0,NA(),'Indices courants'!J32/'Indices courants'!J$29),NA()) -> 0.9954946257 | HG115: =IFERROR(IF('Indices courants'!K32/'Indices courants'!K$29=0,NA(),'Indices courants'!K32/'Indices courants'!K$29),NA()) -> 0.9956812919 | HH115: =IFERROR(IF('Indices courants'!L32/'Indices courants'!L$29=0,NA(),'Indices courants'!L32/'Indices courants'!L$29),NA()) -> 0.9957119159 | HI115: =IFERROR(IF('Indices courants'!M32/'Indices courants'!M$29=0,NA(),'Indices courants'!M32/'Indices courants'!M$29),NA()) -> 0.9954899813 | HJ115: =IFERROR(IF('Indices courants'!N32/'Indices courants'!N$29=0,NA(),'Indices courants'!N32/'Indices courants'!N$29),NA()) -> 0.9956769626 | HK115: =IFERROR(IF('Indices courants'!O32/'Indices courants'!O$29=0,NA(),'Indices courants'!O32/'Indices courants'!O$29),NA()) -> 0.9956762854 | HL115: =IFERROR(IF('Indices courants'!P32/'Indices courants'!P$29=0,NA(),'Indices courants'!P32/'Indices courants'!P$29),NA()) -> 0.9952943499 | HM115: =IFERROR(IF('Indices courants'!Q32/'Indices courants'!Q$29=0,NA(),'Indices courants'!Q32/'Indices courants'!Q$29),NA()) -> 0.9954907416 | HN115: =IFERROR(IF('Indices courants'!R32/'Indices courants'!R$29=0,NA(),'Indices courants'!R32/'Indices courants'!R$29),NA()) -> 0.9954900205 | HO115: =IFERROR(IF('Indices courants'!S32/'Indices courants'!S$29=0,NA(),'Indices courants'!S32/'Indices courants'!S$29),NA()) -> 0.995183141 | HP115: =IFERROR(IF('Indices courants'!T32/'Indices courants'!T$29=0,NA(),'Indices courants'!T32/'Indices courants'!T$29),NA()) -> 0.9953858652 | HQ115: =IFERROR(IF('Indices courants'!U32/'Indices courants'!U$29=0,NA(),'Indices courants'!U32/'Indices courants'!U$29),NA()) -> 0.9953851154 | HR115: =IFERROR(IF('Indices courants'!V32/'Indices courants'!V$29=0,NA(),'Indices courants'!V32/'Indices courants'!V$29),NA()) -> 1.000795355 | HS115: =IFERROR(IF('Indices courants'!W32/'Indices courants'!W$29=0,NA(),'Indices courants'!W32/'Indices courants'!W$29),NA()) -> 1.000747737 | HT115: =IFERROR(IF('Indices courants'!X32/'Indices courants'!X$29=0,NA(),'Indices courants'!X32/'Indices courants'!X$29),NA()) -> 0.992343934 | HU115: =IFERROR(IF('Indices courants'!Y32/'Indices courants'!Y$29=0,NA(),'Indices courants'!Y32/'Indices courants'!Y$29),NA()) -> 0.9886475814 | HV115: =IFERROR(IF('Indices courants'!Z32/'Indices courants'!Z$29=0,NA(),'Indices courants'!Z32/'Indices courants'!Z$29),NA()) -> 0.9959257583 | HW115: =IFERROR(IF('Indices courants'!AA32/'Indices courants'!AA$29=0,NA(),'Indices courants'!AA32/'Indices courants'!AA$29),NA()) -> 0.9907424551 | HX115: =IFERROR(IF('Indices courants'!AB32/'Indices courants'!AB$29=0,NA(),'Indices courants'!AB32/'Indices courants'!AB$29),NA()) -> 0.9938697713 | HY115: =IFERROR(IF('Indices courants'!AC32/'Indices courants'!AC$29=0,NA(),'Indices courants'!AC32/'Indices courants'!AC$29),NA()) -> 0.9910002045 | HZ115: =Tableau21[[#This Row],[Evolution des prix selon formule de révision - indice i 2021]] -> 1.00239 | IA115: =Tableau21[[#This Row],[Evolution des prix selon formule de révision - indice i]] -> 0.99727 | IB115: =Tableau21[[#This Row],[Augmentation mois par mois - selon indice i 2021]] -> 0.99855 | IC115: =Tableau21[[#This Row],[Augmentation mois par mois - selon indice i ]] -> 0.99345 | ID115: =IFERROR(IF('Indexations des salaires par CP'!BY41/'Indexations des salaires par CP'!BY$38=0,NA(),'Indexations des salaires par CP'!BY41/'Indexations des salaires par CP'!BY$38),NA()) -> 1.004216093 | IE115: =IFERROR(IF('Indexations des salaires par CP'!BZ41/'Indexations des salaires par CP'!BZ$38=0,NA(),'Indexations des salaires par CP'!BZ41/'Indexations des salaires par CP'!BZ$38),NA()) -> 1 | IF115: =IFERROR(IF('Indexations des salaires par CP'!CA41/'Indexations des salaires par CP'!CA$38=0,NA(),'Indexations des salaires par CP'!CA41/'Indexations des salaires par CP'!CA$38),NA()) -> 1 | IG115: =IFERROR(IF('Indexations des salaires par CP'!CB41/'Indexations des salaires par CP'!CB$38=0,NA(),'Indexations des salaires par CP'!CB41/'Indexations des salaires par CP'!CB$38),NA()) -> 1.019855596 | IH115: =IFERROR(IF('Indexations des salaires par CP'!CC41/'Indexations des salaires par CP'!CC$38=0,NA(),'Indexations des salaires par CP'!CC41/'Indexations des salaires par CP'!CC$38),NA()) -> 1 | II115: =IFERROR(IF('Indexations des salaires par CP'!CD41/'Indexations des salaires par CP'!CD$38=0,NA(),'Indexations des salaires par CP'!CD41/'Indexations des salaires par CP'!CD$38),NA()) -> 1 | IJ115: =IFERROR(IF('Indexations des salaires par CP'!CE41/'Indexations des salaires par CP'!CE$38=0,NA(),'Indexations des salaires par CP'!CE41/'Indexations des salaires par CP'!CE$38),NA()) -> 1 | IK115: =IFERROR(IF('Indexations des salaires par CP'!CF41/'Indexations des salaires par CP'!CF$38=0,NA(),'Indexations des salaires par CP'!CF41/'Indexations des salaires par CP'!CF$38),NA()) -> 1.008928571 | IL115: =IFERROR(IF('Indexations des salaires par CP'!CG41/'Indexations des salaires par CP'!CG$38=0,NA(),'Indexations des salaires par CP'!CG41/'Indexations des salaires par CP'!CG$38),NA()) -> 1 | IM115: =IFERROR(IF('Indexations des salaires par CP'!CH41/'Indexations des salaires par CP'!CH$38=0,NA(),'Indexations des salaires par CP'!CH41/'Indexations des salaires par CP'!CH$38),NA()) -> 1
B116: ='Indices courants'!C33 -> 2018-05-01 | C116: =IFERROR(IF('Indices courants'!D33/'Indices courants'!D$29=0,NA(),'Indices courants'!D33/'Indices courants'!D$29),NA()) -> 1.00380759 | D116: =IFERROR(IF('Indices courants'!E33/'Indices courants'!E$29=0,NA(),'Indices courants'!E33/'Indices courants'!E$29),NA()) -> 1.015712218 | E116: =IFERROR(IF('Indices courants'!F33/'Indices courants'!F$29=0,NA(),'Indices courants'!F33/'Indices courants'!F$29),NA()) -> 1.022298995 | F116: =IFERROR(IF('Indices courants'!G33/'Indices courants'!G$29=0,NA(),'Indices courants'!G33/'Indices courants'!G$29),NA()) -> 1.01379099 | G116: =IFERROR(IF('Indices courants'!H33/'Indices courants'!H$29=0,NA(),'Indices courants'!H33/'Indices courants'!H$29),NA()) -> 1.019689106 | H116: =IFERROR(IF('Indices courants'!I33/'Indices courants'!I$29=0,NA(),'Indices courants'!I33/'Indices courants'!I$29),NA()) -> 1.02545242 | I116: =IF('Indices courants'!E32=0,NA(),IF('Indices courants'!J33=0,NA(),IFERROR(ROUND(((('Formule de révision courante'!$E$27*('Indices courants'!E32/'Indices courants'!E31)+'Formule de révision courante'!$E$21*('Indices courants'!J33/'Indices courants'!J32)+'Formule de révision courante'!$E$33))*'Graphique évolution des indices'!I115),5),NA()))) -> 1.00292 | J116: =IF('Indices courants'!D32=0,NA(),IF('Indices courants'!J33=0,NA(),IFERROR(ROUND(((('Formule de révision courante'!$E$27*('Indices courants'!D32/'Indices courants'!D31)+'Formule de révision courante'!$E$21*('Indices courants'!J33/'Indices courants'!J32)+'Formule de révision courante'!$E$33))*'Graphique évolution des indices'!I115),5),NA()))) -> 1.0029 | K116: =IF('Indices courants'!E32=0,NA(),IF('Indices courants'!J33=0,NA(),IFERROR(ROUND(((('Formule de révision courante'!$E$27*('Indices courants'!E32/'Indices courants'!E31)+'Formule de révision courante'!$E$21*('Indices courants'!J33/'Indices courants'!J32)+'Formule de révision courante'!$E$33))),5),NA()))) -> 1.00053 | L116: =IF('Indices courants'!D32=0,NA(),IF('Indices courants'!J33=0,NA(),IFERROR(ROUND(((('Formule de révision courante'!$E$27*('Indices courants'!D32/'Indices courants'!D31)+'Formule de révision courante'!$E$21*('Indices courants'!J33/'Indices courants'!J32)+'Formule de révision courante'!$E$33))),5),NA()))) -> 1.00051 | M116: =IFERROR(IF('Indices T.P. matériaux'!C37/'Indices T.P. matériaux'!C$33=0,NA(),'Indices T.P. matériaux'!C37/'Indices T.P. matériaux'!C$33),NA()) -> 1 | N116: =IFERROR(IF('Indices T.P. matériaux'!D37/'Indices T.P. matériaux'!D$33=0,NA(),'Indices T.P. matériaux'!D37/'Indices T.P. matériaux'!D$33),NA()) -> 1 | O116: =IFERROR(IF('Indices T.P. matériaux'!E37/'Indices T.P. matériaux'!E$33=0,NA(),'Indices T.P. matériaux'!E37/'Indices T.P. matériaux'!E$33),NA()) -> 1 | P116: =IFERROR(IF('Indices T.P. matériaux'!F37/'Indices T.P. matériaux'!F$33=0,NA(),'Indices T.P. matériaux'!F37/'Indices T.P. matériaux'!F$33),NA()) -> 1 | Q116: =IFERROR(IF('Indices T.P. matériaux'!G37/'Indices T.P. matériaux'!G$33=0,NA(),'Indices T.P. matériaux'!G37/'Indices T.P. matériaux'!G$33),NA()) -> 1 | R116: =IFERROR(IF('Indices T.P. matériaux'!H37/'Indices T.P. matériaux'!H$33=0,NA(),'Indices T.P. matériaux'!H37/'Indices T.P. matériaux'!H$33),NA()) -> 1 | S116: =IFERROR(IF('Indices T.P. matériaux'!I37/'Indices T.P. matériaux'!I$33=0,NA(),'Indices T.P. matériaux'!I37/'Indices T.P. matériaux'!I$33),NA()) -> 1 | T116: =IFERROR(IF('Indices T.P. matériaux'!J37/'Indices T.P. matériaux'!J$33=0,NA(),'Indices T.P. matériaux'!J37/'Indices T.P. matériaux'!J$33),NA()) -> 1 | U116: =IFERROR(IF('Indices T.P. matériaux'!K37/'Indices T.P. matériaux'!K$33=0,NA(),'Indices T.P. matériaux'!K37/'Indices T.P. matériaux'!K$33),NA()) -> 1 | V116: =IFERROR(IF('Indices T.P. matériaux'!L37/'Indices T.P. matériaux'!L$33=0,NA(),'Indices T.P. matériaux'!L37/'Indices T.P. matériaux'!L$33),NA()) -> 1 | W116: =IFERROR(IF('Indices T.P. matériaux'!M37/'Indices T.P. matériaux'!M$33=0,NA(),'Indices T.P. matériaux'!M37/'Indices T.P. matériaux'!M$33),NA()) -> 1 | X116: =IFERROR(IF('Indices T.P. matériaux'!N37/'Indices T.P. matériaux'!N$33=0,NA(),'Indices T.P. matériaux'!N37/'Indices T.P. matériaux'!N$33),NA()) -> 1 | Y116: =IFERROR(IF('Indices T.P. matériaux'!O37/'Indices T.P. matériaux'!O$33=0,NA(),'Indices T.P. matériaux'!O37/'Indices T.P. matériaux'!O$33),NA()) -> 1 | Z116: =IFERROR(IF('Indices T.P. matériaux'!P37/'Indices T.P. matériaux'!P$33=0,NA(),'Indices T.P. matériaux'!P37/'Indices T.P. matériaux'!P$33),NA()) -> 1 | AA116: =IFERROR(IF('Indices T.P. matériaux'!Q37/'Indices T.P. matériaux'!Q$33=0,NA(),'Indices T.P. matériaux'!Q37/'Indices T.P. matériaux'!Q$33),NA()) -> 1 | AB116: =IFERROR(IF('Indices T.P. matériaux'!R37/'Indices T.P. matériaux'!R$33=0,NA(),'Indices T.P. matériaux'!R37/'Indices T.P. matériaux'!R$33),NA()) -> 1 | AC116: =IFERROR(IF('Indices T.P. matériaux'!S37/'Indices T.P. matériaux'!S$33=0,NA(),'Indices T.P. matériaux'!S37/'Indices T.P. matériaux'!S$33),NA()) -> 1 | AD116: =IFERROR(IF('Indices T.P. matériaux'!T37/'Indices T.P. matériaux'!T$33=0,NA(),'Indices T.P. matériaux'!T37/'Indices T.P. matériaux'!T$33),NA()) -> 1 | AE116: =IFERROR(IF('Indices T.P. matériaux'!U37/'Indices T.P. matériaux'!U$33=0,NA(),'Indices T.P. matériaux'!U37/'Indices T.P. matériaux'!U$33),NA()) -> 1 | AF116: =IFERROR(IF('Indices T.P. matériaux'!V37/'Indices T.P. matériaux'!V$33=0,NA(),'Indices T.P. matériaux'!V37/'Indices T.P. matériaux'!V$33),NA()) -> 1 | AG116: =IFERROR(IF('Indices T.P. matériaux'!W37/'Indices T.P. matériaux'!W$33=0,NA(),'Indices T.P. matériaux'!W37/'Indices T.P. matériaux'!W$33),NA()) -> 1.052212931 | AH116: =IFERROR(IF('Indices T.P. matériaux'!X37/'Indices T.P. matériaux'!X$33=0,NA(),'Indices T.P. matériaux'!X37/'Indices T.P. matériaux'!X$33),NA()) -> 1.061061947 | AI116: =IFERROR(IF('Indices T.P. matériaux'!Y37/'Indices T.P. matériaux'!Y$33=0,NA(),'Indices T.P. matériaux'!Y37/'Indices T.P. matériaux'!Y$33),NA()) -> 1.060232393 | AJ116: =IFERROR(IF('Indices T.P. matériaux'!Z37/'Indices T.P. matériaux'!Z$33=0,NA(),'Indices T.P. matériaux'!Z37/'Indices T.P. matériaux'!Z$33),NA()) -> 1.06848965 | AK116: =IFERROR(IF('Indices T.P. matériaux'!AA37/'Indices T.P. matériaux'!AA$33=0,NA(),'Indices T.P. matériaux'!AA37/'Indices T.P. matériaux'!AA$33),NA()) -> 1.033668342 | AL116: =IFERROR(IF('Indices T.P. matériaux'!AB37/'Indices T.P. matériaux'!AB$33=0,NA(),'Indices T.P. matériaux'!AB37/'Indices T.P. matériaux'!AB$33),NA()) -> 1.01566737 | AM116: =IFERROR(IF('Indices T.P. matériaux'!AC37/'Indices T.P. matériaux'!AC$33=0,NA(),'Indices T.P. matériaux'!AC37/'Indices T.P. matériaux'!AC$33),NA()) -> 1.011700349 | AN116: =IFERROR(IF('Indices T.P. matériaux'!AD37/'Indices T.P. matériaux'!AD$33=0,NA(),'Indices T.P. matériaux'!AD37/'Indices T.P. matériaux'!AD$33),NA()) -> 1.030272109 | AO116: =IFERROR(IF('Indices T.P. matériaux'!AE37/'Indices T.P. matériaux'!AE$33=0,NA(),'Indices T.P. matériaux'!AE37/'Indices T.P. matériaux'!AE$33),NA()) -> 1.015992758 | AP116: =IFERROR(IF('Indices T.P. matériaux'!AF37/'Indices T.P. matériaux'!AF$33=0,NA(),'Indices T.P. matériaux'!AF37/'Indices T.P. matériaux'!AF$33),NA()) -> 1.030777079 | AQ116: =IFERROR(IF('Indices T.P. matériaux'!AG37/'Indices T.P. matériaux'!AG$33=0,NA(),'Indices T.P. matériaux'!AG37/'Indices T.P. matériaux'!AG$33),NA()) -> 1.013954915 | AR116: =IFERROR(IF('Indices T.P. matériaux'!AH37/'Indices T.P. matériaux'!AH$33=0,NA(),'Indices T.P. matériaux'!AH37/'Indices T.P. matériaux'!AH$33),NA()) -> 1.015992758 | AS116: =IFERROR(IF('Indices T.P. matériaux'!AI37/'Indices T.P. matériaux'!AI$33=0,NA(),'Indices T.P. matériaux'!AI37/'Indices T.P. matériaux'!AI$33),NA()) -> 0.9768352365 | AT116: =IFERROR(IF('Indices T.P. matériaux'!AJ37/'Indices T.P. matériaux'!AJ$33=0,NA(),'Indices T.P. matériaux'!AJ37/'Indices T.P. matériaux'!AJ$33),NA()) -> 1.01216545 | AU116: =IFERROR(IF('Indices T.P. matériaux'!AK37/'Indices T.P. matériaux'!AK$33=0,NA(),'Indices T.P. matériaux'!AK37/'Indices T.P. matériaux'!AK$33),NA()) -> 1.030266961 | AV116: =IFERROR(IF('Indices T.P. matériaux'!AL37/'Indices T.P. matériaux'!AL$33=0,NA(),'Indices T.P. matériaux'!AL37/'Indices T.P. matériaux'!AL$33),NA()) -> 1.031163221 | AW116: =IFERROR(IF('Indices T.P. matériaux'!AM37/'Indices T.P. matériaux'!AM$33=0,NA(),'Indices T.P. matériaux'!AM37/'Indices T.P. matériaux'!AM$33),NA()) -> 1.031072143 | AX116: =IFERROR(IF('Indices T.P. matériaux'!AN37/'Indices T.P. matériaux'!AN$33=0,NA(),'Indices T.P. matériaux'!AN37/'Indices T.P. matériaux'!AN$33),NA()) -> 1.031105636 | AY116: =IFERROR(IF('Indices T.P. matériaux'!AO37/'Indices T.P. matériaux'!AO$33=0,NA(),'Indices T.P. matériaux'!AO37/'Indices T.P. matériaux'!AO$33),NA()) -> 0.9828559259 | AZ116: =IFERROR(IF('Indices T.P. matériaux'!AP37/'Indices T.P. matériaux'!AP$33=0,NA(),'Indices T.P. matériaux'!AP37/'Indices T.P. matériaux'!AP$33),NA()) -> 1.035044643 | BA116: =IFERROR(IF('Indices T.P. matériaux'!AQ37/'Indices T.P. matériaux'!AQ$33=0,NA(),'Indices T.P. matériaux'!AQ37/'Indices T.P. matériaux'!AQ$33),NA()) -> 1.008574642 | BB116: =IFERROR(IF('Indices T.P. matériaux'!AR37/'Indices T.P. matériaux'!AR$33=0,NA(),'Indices T.P. matériaux'!AR37/'Indices T.P. matériaux'!AR$33),NA()) ->  | BC116: =IFERROR(IF('Indices T.P. matériaux'!AS37/'Indices T.P. matériaux'!AS$33=0,NA(),'Indices T.P. matériaux'!AS37/'Indices T.P. matériaux'!AS$33),NA()) ->  | BD116: =IFERROR(IF('Indices T.P. matériaux'!AT37/'Indices T.P. matériaux'!AT$33=0,NA(),'Indices T.P. matériaux'!AT37/'Indices T.P. matériaux'!AT$33),NA()) ->  | BE116: =IFERROR(IF('Indices T.P. matériaux'!AU37/'Indices T.P. matériaux'!AU$33=0,NA(),'Indices T.P. matériaux'!AU37/'Indices T.P. matériaux'!AU$33),NA()) ->  | BF116: =IFERROR(IF('Indices T.P. matériaux'!AV37/'Indices T.P. matériaux'!AV$33=0,NA(),'Indices T.P. matériaux'!AV37/'Indices T.P. matériaux'!AV$33),NA()) ->  | BG116: =IFERROR(IF('Indices T.P. matériaux'!AW37/'Indices T.P. matériaux'!AW$33=0,NA(),'Indices T.P. matériaux'!AW37/'Indices T.P. matériaux'!AW$33),NA()) ->  | BH116: =IFERROR(IF('Indices T.P. matériaux'!AX37/'Indices T.P. matériaux'!AX$33=0,NA(),'Indices T.P. matériaux'!AX37/'Indices T.P. matériaux'!AX$33),NA()) ->  | BI116: =IFERROR(IF('Indices T.P. matériaux'!AY37/'Indices T.P. matériaux'!AY$33=0,NA(),'Indices T.P. matériaux'!AY37/'Indices T.P. matériaux'!AY$33),NA()) -> 0.9415852908 | BJ116: =IFERROR(IF('Indices T.P. matériaux'!AZ37/'Indices T.P. matériaux'!AZ$33=0,NA(),'Indices T.P. matériaux'!AZ37/'Indices T.P. matériaux'!AZ$33),NA()) -> 0.9936339523 | BK116: =IFERROR(IF('Indices T.P. matériaux'!BA37/'Indices T.P. matériaux'!BA$33=0,NA(),'Indices T.P. matériaux'!BA37/'Indices T.P. matériaux'!BA$33),NA()) -> 0.9936339523 | BL116: =IFERROR(IF('Indices T.P. matériaux'!BB37/'Indices T.P. matériaux'!BB$33=0,NA(),'Indices T.P. matériaux'!BB37/'Indices T.P. matériaux'!BB$33),NA()) -> 0.9161295586 | BM116: =IFERROR(IF('Indices T.P. matériaux'!BC37/'Indices T.P. matériaux'!BC$33=0,NA(),'Indices T.P. matériaux'!BC37/'Indices T.P. matériaux'!BC$33),NA()) -> 0.9150767232 | BN116: =IFERROR(IF('Indices T.P. matériaux'!BD37/'Indices T.P. matériaux'!BD$33=0,NA(),'Indices T.P. matériaux'!BD37/'Indices T.P. matériaux'!BD$33),NA()) -> 1.094616451 | BO116: =IFERROR(IF('Indices T.P. matériaux'!BE37/'Indices T.P. matériaux'!BE$33=0,NA(),'Indices T.P. matériaux'!BE37/'Indices T.P. matériaux'!BE$33),NA()) -> 1.066776496 | BP116: =IFERROR(IF('Indices T.P. matériaux'!BF37/'Indices T.P. matériaux'!BF$33=0,NA(),'Indices T.P. matériaux'!BF37/'Indices T.P. matériaux'!BF$33),NA()) ->  | BQ116: =IFERROR(IF('Indices T.P. matériaux'!BG37/'Indices T.P. matériaux'!BG$33=0,NA(),'Indices T.P. matériaux'!BG37/'Indices T.P. matériaux'!BG$33),NA()) -> 1.150242096 | BR116: =IFERROR(IF('Indices T.P. matériaux'!BH37/'Indices T.P. matériaux'!BH$33=0,NA(),'Indices T.P. matériaux'!BH37/'Indices T.P. matériaux'!BH$33),NA()) -> 1.029834728 | BS116: =IFERROR(IF('Indices T.P. matériaux'!BI37/'Indices T.P. matériaux'!BI$33=0,NA(),'Indices T.P. matériaux'!BI37/'Indices T.P. matériaux'!BI$33),NA()) -> 1.033414105 | BT116: =IFERROR(IF('Indices T.P. matériaux'!BJ37/'Indices T.P. matériaux'!BJ$33=0,NA(),'Indices T.P. matériaux'!BJ37/'Indices T.P. matériaux'!BJ$33),NA()) -> 1.05877795 | BU116: =IFERROR(IF('Indices T.P. matériaux'!BK37/'Indices T.P. matériaux'!BK$33=0,NA(),'Indices T.P. matériaux'!BK37/'Indices T.P. matériaux'!BK$33),NA()) -> 1.053108174 | BV116: =IFERROR(IF('Indices T.P. matériaux'!BL37/'Indices T.P. matériaux'!BL$33=0,NA(),'Indices T.P. matériaux'!BL37/'Indices T.P. matériaux'!BL$33),NA()) -> 1 | BW116: =IFERROR(IF('Indices T.P. matériaux'!BM37/'Indices T.P. matériaux'!BM$33=0,NA(),'Indices T.P. matériaux'!BM37/'Indices T.P. matériaux'!BM$33),NA()) -> 1 | BX116: =IFERROR(IF('Indices T.P. matériaux'!BN37/'Indices T.P. matériaux'!BN$33=0,NA(),'Indices T.P. matériaux'!BN37/'Indices T.P. matériaux'!BN$33),NA()) -> 1 | BY116: =IFERROR(IF('Indices T.P. matériaux'!BO37/'Indices T.P. matériaux'!BO$33=0,NA(),'Indices T.P. matériaux'!BO37/'Indices T.P. matériaux'!BO$33),NA()) -> 1 | BZ116: =IFERROR(IF('Indices T.P. matériaux'!BP37/'Indices T.P. matériaux'!BP$33=0,NA(),'Indices T.P. matériaux'!BP37/'Indices T.P. matériaux'!BP$33),NA()) -> 1.010148163 | CA116: =IFERROR(IF('Indices T.P. matériaux'!BQ37/'Indices T.P. matériaux'!BQ$33=0,NA(),'Indices T.P. matériaux'!BQ37/'Indices T.P. matériaux'!BQ$33),NA()) -> 1.010170871 | CB116: =IFERROR(IF('Indices T.P. matériaux'!BR37/'Indices T.P. matériaux'!BR$33=0,NA(),'Indices T.P. matériaux'!BR37/'Indices T.P. matériaux'!BR$33),NA()) -> 1.0099837 | CC116: =IFERROR(IF('Indices T.P. matériaux'!BS37/'Indices T.P. matériaux'!BS$33=0,NA(),'Indices T.P. matériaux'!BS37/'Indices T.P. matériaux'!BS$33),NA()) -> 1.01017501 | CD116: =IFERROR(IF('Indices T.P. matériaux'!BT37/'Indices T.P. matériaux'!BT$33=0,NA(),'Indices T.P. matériaux'!BT37/'Indices T.P. matériaux'!BT$33),NA()) -> 1 | CE116: =IFERROR(IF('Indices T.P. matériaux'!BU37/'Indices T.P. matériaux'!BU$33=0,NA(),'Indices T.P. matériaux'!BU37/'Indices T.P. matériaux'!BU$33),NA()) -> 1 | CF116: =IFERROR(IF('Indices T.P. matériaux'!BV37/'Indices T.P. matériaux'!BV$33=0,NA(),'Indices T.P. matériaux'!BV37/'Indices T.P. matériaux'!BV$33),NA()) -> 1 | CG116: =IFERROR(IF('Indices T.P. matériaux'!BW37/'Indices T.P. matériaux'!BW$33=0,NA(),'Indices T.P. matériaux'!BW37/'Indices T.P. matériaux'!BW$33),NA()) -> 1 | CH116: =IFERROR(IF('Indices T.P. matériaux'!BX37/'Indices T.P. matériaux'!BX$33=0,NA(),'Indices T.P. matériaux'!BX37/'Indices T.P. matériaux'!BX$33),NA()) -> 1 | CI116: =IFERROR(IF('Indices T.P. matériaux'!BY37/'Indices T.P. matériaux'!BY$33=0,NA(),'Indices T.P. matériaux'!BY37/'Indices T.P. matériaux'!BY$33),NA()) -> 1 | CJ116: =IFERROR(IF('Indices T.P. matériaux'!BZ37/'Indices T.P. matériaux'!BZ$33=0,NA(),'Indices T.P. matériaux'!BZ37/'Indices T.P. matériaux'!BZ$33),NA()) -> 1 | CK116: =IFERROR(IF('Indices T.P. matériaux'!CA37/'Indices T.P. matériaux'!CA$33=0,NA(),'Indices T.P. matériaux'!CA37/'Indices T.P. matériaux'!CA$33),NA()) -> 1.074766355 | CL116: =IFERROR(IF('Indices T.P. matériaux'!CB37/'Indices T.P. matériaux'!CB$33=0,NA(),'Indices T.P. matériaux'!CB37/'Indices T.P. matériaux'!CB$33),NA()) -> 1.074626866 | CM116: =IFERROR(IF('Indices T.P. matériaux'!CC37/'Indices T.P. matériaux'!CC$33=0,NA(),'Indices T.P. matériaux'!CC37/'Indices T.P. matériaux'!CC$33),NA()) -> 1.074636552 | CN116: =IFERROR(IF('Indices T.P. matériaux'!CD37/'Indices T.P. matériaux'!CD$33=0,NA(),'Indices T.P. matériaux'!CD37/'Indices T.P. matériaux'!CD$33),NA()) -> 1.100490196 | CO116: =IFERROR(IF('Indices T.P. matériaux'!CE37/'Indices T.P. matériaux'!CE$33=0,NA(),'Indices T.P. matériaux'!CE37/'Indices T.P. matériaux'!CE$33),NA()) -> 1.100346021 | CP116: =IFERROR(IF('Indices T.P. matériaux'!CF37/'Indices T.P. matériaux'!CF$33=0,NA(),'Indices T.P. matériaux'!CF37/'Indices T.P. matériaux'!CF$33),NA()) -> 1.050640488 | CQ116: =IFERROR(IF('Indices T.P. matériaux'!CG37/'Indices T.P. matériaux'!CG$33=0,NA(),'Indices T.P. matériaux'!CG37/'Indices T.P. matériaux'!CG$33),NA()) -> 1.050508677 | CR116: =IFERROR(IF('Indices T.P. matériaux'!CH37/'Indices T.P. matériaux'!CH$33=0,NA(),'Indices T.P. matériaux'!CH37/'Indices T.P. matériaux'!CH$33),NA()) -> 1.043302072 | CS116: =IFERROR(IF('Indices T.P. matériaux'!CI37/'Indices T.P. matériaux'!CI$33=0,NA(),'Indices T.P. matériaux'!CI37/'Indices T.P. matériaux'!CI$33),NA()) -> 1.004163868 | CT116: =IFERROR(IF('Indices T.P. matériaux'!CJ37/'Indices T.P. matériaux'!CJ$33=0,NA(),'Indices T.P. matériaux'!CJ37/'Indices T.P. matériaux'!CJ$33),NA()) -> 1.01671004 | CU116: =IFERROR(IF('Indices T.P. matériaux'!CK37/'Indices T.P. matériaux'!CK$33=0,NA(),'Indices T.P. matériaux'!CK37/'Indices T.P. matériaux'!CK$33),NA()) -> 1.021810089 | CV116: =IFERROR(IF('Indices T.P. matériaux'!CL37/'Indices T.P. matériaux'!CL$33=0,NA(),'Indices T.P. matériaux'!CL37/'Indices T.P. matériaux'!CL$33),NA()) -> 1.014913726 | CW116: =IFERROR(IF('Indices T.P. matériaux'!CM37/'Indices T.P. matériaux'!CM$33=0,NA(),'Indices T.P. matériaux'!CM37/'Indices T.P. matériaux'!CM$33),NA()) -> 1.017613187 | CX116: =IFERROR(IF('Indices T.P. matériaux'!CN37/'Indices T.P. matériaux'!CN$33=0,NA(),'Indices T.P. matériaux'!CN37/'Indices T.P. matériaux'!CN$33),NA()) -> 0.9888014192 | CY116: =IFERROR(IF('Indices T.P. matériaux'!CO37/'Indices T.P. matériaux'!CO$33=0,NA(),'Indices T.P. matériaux'!CO37/'Indices T.P. matériaux'!CO$33),NA()) -> 1.041984733 | CZ116: =IFERROR(IF('Indices T.P. matériaux'!CP37/'Indices T.P. matériaux'!CP$33=0,NA(),'Indices T.P. matériaux'!CP37/'Indices T.P. matériaux'!CP$33),NA()) -> 1.063219087 | DA116: =IFERROR(IF('Indices T.P. matériaux'!CQ37/'Indices T.P. matériaux'!CQ$33=0,NA(),'Indices T.P. matériaux'!CQ37/'Indices T.P. matériaux'!CQ$33),NA()) ->  | DB116: =IFERROR(IF('Indices T.P. matériaux'!CR37/'Indices T.P. matériaux'!CR$33=0,NA(),'Indices T.P. matériaux'!CR37/'Indices T.P. matériaux'!CR$33),NA()) ->  | DC116: =IFERROR(IF('Indices T.P. matériaux'!CS37/'Indices T.P. matériaux'!CS$33=0,NA(),'Indices T.P. matériaux'!CS37/'Indices T.P. matériaux'!CS$33),NA()) ->  | DD116: =IFERROR(IF('Indices T.P. matériaux'!CT37/'Indices T.P. matériaux'!CT$33=0,NA(),'Indices T.P. matériaux'!CT37/'Indices T.P. matériaux'!CT$33),NA()) ->  | DE116: =IFERROR(IF('Indices Grymafer'!D35/'Indices Grymafer'!D$31=0,NA(),'Indices Grymafer'!D35/'Indices Grymafer'!D$31),NA()) -> 0.9707241911 | DF116: =IFERROR(IF('Indices Grymafer'!E35/'Indices Grymafer'!E$31=0,NA(),'Indices Grymafer'!E35/'Indices Grymafer'!E$31),NA()) -> 0.9805194805 | DG116: =IFERROR(IF('Indices Grymafer'!F35/'Indices Grymafer'!F$31=0,NA(),'Indices Grymafer'!F35/'Indices Grymafer'!F$31),NA()) -> 0.9799777531 | DH116: =IFERROR(IF('Indices Grymafer'!G35/'Indices Grymafer'!G$31=0,NA(),'Indices Grymafer'!G35/'Indices Grymafer'!G$31),NA()) -> 0.975483871 | DI116: =IFERROR(IF('Indices T.P. matériaux'!CW37/'Indices T.P. matériaux'!CW$33=0,NA(),'Indices T.P. matériaux'!CW37/'Indices T.P. matériaux'!CW$33),NA()) -> 0.9989005351 | DJ116: =IFERROR(IF('Indices T.P. matériaux'!CX37/'Indices T.P. matériaux'!CX$33=0,NA(),'Indices T.P. matériaux'!CX37/'Indices T.P. matériaux'!CX$33),NA()) -> 0.9924321807 | DK116: =IFERROR(IF('Indices T.P. matériaux'!CY37/'Indices T.P. matériaux'!CY$33=0,NA(),'Indices T.P. matériaux'!CY37/'Indices T.P. matériaux'!CY$33),NA()) -> 1.000439367 | DL116: =IFERROR(IF('Indices T.P. matériaux'!CZ37/'Indices T.P. matériaux'!CZ$33=0,NA(),'Indices T.P. matériaux'!CZ37/'Indices T.P. matériaux'!CZ$33),NA()) -> 1.008014332 | DM116: =IFERROR(IF('Indices T.P. matériaux'!DA37/'Indices T.P. matériaux'!DA$33=0,NA(),'Indices T.P. matériaux'!DA37/'Indices T.P. matériaux'!DA$33),NA()) -> 1.064327485 | DN116: =IFERROR(IF('Indices T.P. matériaux'!DB37/'Indices T.P. matériaux'!DB$33=0,NA(),'Indices T.P. matériaux'!DB37/'Indices T.P. matériaux'!DB$33),NA()) -> 1.005828711 | DO116: =IFERROR(IF('Indices T.P. matériaux'!DC37/'Indices T.P. matériaux'!DC$33=0,NA(),'Indices T.P. matériaux'!DC37/'Indices T.P. matériaux'!DC$33),NA()) -> 1.002868069 | DP116: =IFERROR(IF('Indices T.P. matériaux'!DD37/'Indices T.P. matériaux'!DD$33=0,NA(),'Indices T.P. matériaux'!DD37/'Indices T.P. matériaux'!DD$33),NA()) -> 1.005828711 | DR116: ='Indices courants'!C33 -> 2018-05-01 | DS116: =IFERROR(IF('Indices des produits & services'!D35/'Indices des produits & services'!D$31=0,NA(),'Indices des produits & services'!D35/'Indices des produits & services'!D$31),NA()) -> 1.00619469 | DT116: =IFERROR(IF('Indices des produits & services'!E35/'Indices des produits & services'!E$31=0,NA(),'Indices des produits & services'!E35/'Indices des produits & services'!E$31),NA()) -> 1.05861244 | DU116: =IFERROR(IF('Indices des produits & services'!F35/'Indices des produits & services'!F$31=0,NA(),'Indices des produits & services'!F35/'Indices des produits & services'!F$31),NA()) -> 1.023430178 | DV116: =IFERROR(IF('Indices des produits & services'!G35/'Indices des produits & services'!G$31=0,NA(),'Indices des produits & services'!G35/'Indices des produits & services'!G$31),NA()) -> 0.9990740741 | DW116: =IFERROR(IF('Indices des produits & services'!H35/'Indices des produits & services'!H$31=0,NA(),'Indices des produits & services'!H35/'Indices des produits & services'!H$31),NA()) -> 1.00170503 | DX116: =IFERROR(IF('Indices des produits & services'!I35/'Indices des produits & services'!I$31=0,NA(),'Indices des produits & services'!I35/'Indices des produits & services'!I$31),NA()) -> 0.9680111266 | DY116: =IFERROR(IF('Indices des produits & services'!J35/'Indices des produits & services'!J$31=0,NA(),'Indices des produits & services'!J35/'Indices des produits & services'!J$31),NA()) -> 1.003676471 | DZ116: =IFERROR(IF('Indices des produits & services'!K35/'Indices des produits & services'!K$31=0,NA(),'Indices des produits & services'!K35/'Indices des produits & services'!K$31),NA()) -> 0.9955357143 | EA116: =IFERROR(IF('Indices des produits & services'!L35/'Indices des produits & services'!L$31=0,NA(),'Indices des produits & services'!L35/'Indices des produits & services'!L$31),NA()) -> 1 | EB116: =IFERROR(IF('Indices des produits & services'!M35/'Indices des produits & services'!M$31=0,NA(),'Indices des produits & services'!M35/'Indices des produits & services'!M$31),NA()) -> 1.006161972 | EC116: =IFERROR(IF('Indices des produits & services'!N35/'Indices des produits & services'!N$31=0,NA(),'Indices des produits & services'!N35/'Indices des produits & services'!N$31),NA()) -> 1.004052685 | ED116: =IFERROR(IF('Indices des produits & services'!O35/'Indices des produits & services'!O$31=0,NA(),'Indices des produits & services'!O35/'Indices des produits & services'!O$31),NA()) -> 1 | EE116: =IFERROR(IF('Indices des produits & services'!P35/'Indices des produits & services'!P$31=0,NA(),'Indices des produits & services'!P35/'Indices des produits & services'!P$31),NA()) -> 1.004983389 | EF116: =IFERROR(IF('Indices des produits & services'!Q35/'Indices des produits & services'!Q$31=0,NA(),'Indices des produits & services'!Q35/'Indices des produits & services'!Q$31),NA()) -> 1.014324082 | EG116: =IFERROR(IF('Indices des produits & services'!R35/'Indices des produits & services'!R$31=0,NA(),'Indices des produits & services'!R35/'Indices des produits & services'!R$31),NA()) -> 1.015108593 | EH116: =IFERROR(IF('Indices des produits & services'!S35/'Indices des produits & services'!S$31=0,NA(),'Indices des produits & services'!S35/'Indices des produits & services'!S$31),NA()) -> 1.017857143 | EI116: =IFERROR(IF('Indices des produits & services'!T35/'Indices des produits & services'!T$31=0,NA(),'Indices des produits & services'!T35/'Indices des produits & services'!T$31),NA()) -> 1.028871391 | EJ116: =IFERROR(IF('Indices des produits & services'!U35/'Indices des produits & services'!U$31=0,NA(),'Indices des produits & services'!U35/'Indices des produits & services'!U$31),NA()) -> 1.036777583 | EK116: =IFERROR(IF('Indices des produits & services'!V35/'Indices des produits & services'!V$31=0,NA(),'Indices des produits & services'!V35/'Indices des produits & services'!V$31),NA()) -> 1.050139276 | EL116: =IFERROR(IF('Indices des produits & services'!W35/'Indices des produits & services'!W$31=0,NA(),'Indices des produits & services'!W35/'Indices des produits & services'!W$31),NA()) -> 1.008006405 | EM116: =IFERROR(IF('Indices des produits & services'!X35/'Indices des produits & services'!X$31=0,NA(),'Indices des produits & services'!X35/'Indices des produits & services'!X$31),NA()) -> 1.069393718 | EN116: =IFERROR(IF('Indices des produits & services'!Y35/'Indices des produits & services'!Y$31=0,NA(),'Indices des produits & services'!Y35/'Indices des produits & services'!Y$31),NA()) -> 1.007778738 | EO116: =IFERROR(IF('Indices des produits & services'!Z35/'Indices des produits & services'!Z$31=0,NA(),'Indices des produits & services'!Z35/'Indices des produits & services'!Z$31),NA()) -> 0.9811158798 | EP116: =IFERROR(IF('Indices des produits & services'!AA35/'Indices des produits & services'!AA$31=0,NA(),'Indices des produits & services'!AA35/'Indices des produits & services'!AA$31),NA()) -> 0.8878416588 | EQ116: =IFERROR(IF('Indices des produits & services'!AB35/'Indices des produits & services'!AB$31=0,NA(),'Indices des produits & services'!AB35/'Indices des produits & services'!AB$31),NA()) -> 1.024451939 | ER116: =IFERROR(IF('Indices des produits & services'!AC35/'Indices des produits & services'!AC$31=0,NA(),'Indices des produits & services'!AC35/'Indices des produits & services'!AC$31),NA()) -> 1.032939189 | ES116: =IFERROR(IF('Indices des produits & services'!AD35/'Indices des produits & services'!AD$31=0,NA(),'Indices des produits & services'!AD35/'Indices des produits & services'!AD$31),NA()) -> 1.022823331 | ET116: =IFERROR(IF('Indices des produits & services'!AE35/'Indices des produits & services'!AE$31=0,NA(),'Indices des produits & services'!AE35/'Indices des produits & services'!AE$31),NA()) -> 1.023547881 | EU116: =IFERROR(IF('Indices des produits & services'!AF35/'Indices des produits & services'!AF$31=0,NA(),'Indices des produits & services'!AF35/'Indices des produits & services'!AF$31),NA()) -> 1.000868056 | EV116: =IFERROR(IF('Indices des produits & services'!AG35/'Indices des produits & services'!AG$31=0,NA(),'Indices des produits & services'!AG35/'Indices des produits & services'!AG$31),NA()) -> 1.023276634 | EW116: =IFERROR(IF('Indices des produits & services'!AH35/'Indices des produits & services'!AH$31=0,NA(),'Indices des produits & services'!AH35/'Indices des produits & services'!AH$31),NA()) -> 1.099462366 | EX116: =IFERROR(IF('Indices des produits & services'!AI35/'Indices des produits & services'!AI$31=0,NA(),'Indices des produits & services'!AI35/'Indices des produits & services'!AI$31),NA()) -> 0.9947460595 | EY116: =IFERROR(IF('Indices des produits & services'!AJ35/'Indices des produits & services'!AJ$31=0,NA(),'Indices des produits & services'!AJ35/'Indices des produits & services'!AJ$31),NA()) -> 1.002583979 | EZ116: =IFERROR(IF('Indices des produits & services'!AK35/'Indices des produits & services'!AK$31=0,NA(),'Indices des produits & services'!AK35/'Indices des produits & services'!AK$31),NA()) -> 0.9525660964 | FA116: =IFERROR(IF('Indices des produits & services'!AL35/'Indices des produits & services'!AL$31=0,NA(),'Indices des produits & services'!AL35/'Indices des produits & services'!AL$31),NA()) -> 0.9951638904 | FB116: =IFERROR(IF('Indices des produits & services'!AM35/'Indices des produits & services'!AM$31=0,NA(),'Indices des produits & services'!AM35/'Indices des produits & services'!AM$31),NA()) -> 1.02716915 | FC116: =IFERROR(IF('Indices des produits & services'!AN35/'Indices des produits & services'!AN$31=0,NA(),'Indices des produits & services'!AN35/'Indices des produits & services'!AN$31),NA()) -> 1.00233463 | FD116: =IFERROR(IF('Indices des produits & services'!AO35/'Indices des produits & services'!AO$31=0,NA(),'Indices des produits & services'!AO35/'Indices des produits & services'!AO$31),NA()) -> 1.003542958 | FE116: =IFERROR(IF('Indices des produits & services'!AP35/'Indices des produits & services'!AP$31=0,NA(),'Indices des produits & services'!AP35/'Indices des produits & services'!AP$31),NA()) -> 0.9982222222 | FF116: =IFERROR(IF('Indices des produits & services'!AQ35/'Indices des produits & services'!AQ$31=0,NA(),'Indices des produits & services'!AQ35/'Indices des produits & services'!AQ$31),NA()) -> 1.004432624 | FG116: =IFERROR(IF('Indices des produits & services'!AR35/'Indices des produits & services'!AR$31=0,NA(),'Indices des produits & services'!AR35/'Indices des produits & services'!AR$31),NA()) -> 0.9990147783 | FH116: =IFERROR(IF('Indices des produits & services'!AS35/'Indices des produits & services'!AS$31=0,NA(),'Indices des produits & services'!AS35/'Indices des produits & services'!AS$31),NA()) -> 1.007131537 | FI116: =IFERROR(IF('Indices des produits & services'!AT35/'Indices des produits & services'!AT$31=0,NA(),'Indices des produits & services'!AT35/'Indices des produits & services'!AT$31),NA()) -> 1.026112186 | FJ116: =IFERROR(IF('Indices des produits & services'!AU35/'Indices des produits & services'!AU$31=0,NA(),'Indices des produits & services'!AU35/'Indices des produits & services'!AU$31),NA()) -> 1.024667932 | FK116: =IFERROR(IF('Indices des produits & services'!AV35/'Indices des produits & services'!AV$31=0,NA(),'Indices des produits & services'!AV35/'Indices des produits & services'!AV$31),NA()) -> 1.032225579 | FL116: =IFERROR(IF('Indices des produits & services'!AW35/'Indices des produits & services'!AW$31=0,NA(),'Indices des produits & services'!AW35/'Indices des produits & services'!AW$31),NA()) -> 1.073033708 | FM116: =IFERROR(IF('Indices des produits & services'!AX35/'Indices des produits & services'!AX$31=0,NA(),'Indices des produits & services'!AX35/'Indices des produits & services'!AX$31),NA()) -> 1.01453958 | FN116: =IFERROR(IF('Indices des produits & services'!AY35/'Indices des produits & services'!AY$31=0,NA(),'Indices des produits & services'!AY35/'Indices des produits & services'!AY$31),NA()) -> 1.01453958 | FO116: =IFERROR(IF('Indices des produits & services'!AZ35/'Indices des produits & services'!AZ$31=0,NA(),'Indices des produits & services'!AZ35/'Indices des produits & services'!AZ$31),NA()) -> 1.032544379 | FP116: =IFERROR(IF('Indices des produits & services'!BA35/'Indices des produits & services'!BA$31=0,NA(),'Indices des produits & services'!BA35/'Indices des produits & services'!BA$31),NA()) -> 1.047227926 | FQ116: =IFERROR(IF('Indices des produits & services'!BB35/'Indices des produits & services'!BB$31=0,NA(),'Indices des produits & services'!BB35/'Indices des produits & services'!BB$31),NA()) -> 1.02266289 | FR116: =IFERROR(IF('Indices des produits & services'!BC35/'Indices des produits & services'!BC$31=0,NA(),'Indices des produits & services'!BC35/'Indices des produits & services'!BC$31),NA()) -> 1.028284672 | FS116: =IFERROR(IF('Indices des produits & services'!BD35/'Indices des produits & services'!BD$31=0,NA(),'Indices des produits & services'!BD35/'Indices des produits & services'!BD$31),NA()) -> 1.019547325 | FT116: =IFERROR(IF('Indices des produits & services'!BE35/'Indices des produits & services'!BE$31=0,NA(),'Indices des produits & services'!BE35/'Indices des produits & services'!BE$31),NA()) -> 0.998019802 | FU116: =IFERROR(IF('Indices des produits & services'!BF35/'Indices des produits & services'!BF$31=0,NA(),'Indices des produits & services'!BF35/'Indices des produits & services'!BF$31),NA()) -> 1.00280112 | FV116: =IFERROR(IF('Indices des produits & services'!BG35/'Indices des produits & services'!BG$31=0,NA(),'Indices des produits & services'!BG35/'Indices des produits & services'!BG$31),NA()) -> 1.0256 | FW116: =IFERROR(IF('Indices des produits & services'!BH35/'Indices des produits & services'!BH$31=0,NA(),'Indices des produits & services'!BH35/'Indices des produits & services'!BH$31),NA()) -> 0.9959216966 | FX116: =IFERROR(IF('Indices des produits & services'!BI35/'Indices des produits & services'!BI$31=0,NA(),'Indices des produits & services'!BI35/'Indices des produits & services'!BI$31),NA()) -> 1.02890625 | FY116: =IFERROR(IF('Indices des produits & services'!BJ35/'Indices des produits & services'!BJ$31=0,NA(),'Indices des produits & services'!BJ35/'Indices des produits & services'!BJ$31),NA()) -> 0.9867298578 | FZ116: =IFERROR(IF('Indices des produits & services'!BK35/'Indices des produits & services'!BK$31=0,NA(),'Indices des produits & services'!BK35/'Indices des produits & services'!BK$31),NA()) -> 0.9848484848 | GA116: =IFERROR(IF('Indices des produits & services'!BL35/'Indices des produits & services'!BL$31=0,NA(),'Indices des produits & services'!BL35/'Indices des produits & services'!BL$31),NA()) -> 0.9794520548 | GB116: =IFERROR(IF('Indices des produits & services'!BM35/'Indices des produits & services'!BM$31=0,NA(),'Indices des produits & services'!BM35/'Indices des produits & services'!BM$31),NA()) -> 0.9903508772 | GC116: =IFERROR(IF('Indices des produits & services'!BN35/'Indices des produits & services'!BN$31=0,NA(),'Indices des produits & services'!BN35/'Indices des produits & services'!BN$31),NA()) -> 1.018442623 | GD116: =IFERROR(IF('Indices des produits & services'!BO35/'Indices des produits & services'!BO$31=0,NA(),'Indices des produits & services'!BO35/'Indices des produits & services'!BO$31),NA()) -> 1.024021352 | GE116: =IFERROR(IF('Indices des produits & services'!BP35/'Indices des produits & services'!BP$31=0,NA(),'Indices des produits & services'!BP35/'Indices des produits & services'!BP$31),NA()) -> 1.026794258 | GF116: =IFERROR(IF('Indices des produits & services'!BQ35/'Indices des produits & services'!BQ$31=0,NA(),'Indices des produits & services'!BQ35/'Indices des produits & services'!BQ$31),NA()) -> 1.008093525 | GG116: =IFERROR(IF('Indices des produits & services'!BR35/'Indices des produits & services'!BR$31=0,NA(),'Indices des produits & services'!BR35/'Indices des produits & services'!BR$31),NA()) -> 1.011926606 | GH116: =IFERROR(IF('Indices des produits & services'!BS35/'Indices des produits & services'!BS$31=0,NA(),'Indices des produits & services'!BS35/'Indices des produits & services'!BS$31),NA()) -> 1.00174216 | GI116: =IFERROR(IF('Indices des produits & services'!BT35/'Indices des produits & services'!BT$31=0,NA(),'Indices des produits & services'!BT35/'Indices des produits & services'!BT$31),NA()) -> 1.022913257 | GJ116: =IFERROR(IF('Indices des produits & services'!BU35/'Indices des produits & services'!BU$31=0,NA(),'Indices des produits & services'!BU35/'Indices des produits & services'!BU$31),NA()) -> 1.038528897 | GK116: =IFERROR(IF('Indices des produits & services'!BV35/'Indices des produits & services'!BV$31=0,NA(),'Indices des produits & services'!BV35/'Indices des produits & services'!BV$31),NA()) -> 1.023674242 | GL116: =IFERROR(IF('Indices des produits & services'!BW35/'Indices des produits & services'!BW$31=0,NA(),'Indices des produits & services'!BW35/'Indices des produits & services'!BW$31),NA()) -> 1 | GM116: =IFERROR(IF('Indices des produits & services'!BX35/'Indices des produits & services'!BX$31=0,NA(),'Indices des produits & services'!BX35/'Indices des produits & services'!BX$31),NA()) -> 1.015652174 | GN116: =IFERROR(IF('Indices des produits & services'!BY35/'Indices des produits & services'!BY$31=0,NA(),'Indices des produits & services'!BY35/'Indices des produits & services'!BY$31),NA()) -> 0.998502994 | GO116: =IFERROR(IF('Indices des produits & services'!BZ35/'Indices des produits & services'!BZ$31=0,NA(),'Indices des produits & services'!BZ35/'Indices des produits & services'!BZ$31),NA()) -> 1.019572954 | GP116: =IFERROR(IF('Indices des produits & services'!CA35/'Indices des produits & services'!CA$31=0,NA(),'Indices des produits & services'!CA35/'Indices des produits & services'!CA$31),NA()) -> 1.058187864 | GQ116: =IFERROR(IF('Indices des produits & services'!CB35/'Indices des produits & services'!CB$31=0,NA(),'Indices des produits & services'!CB35/'Indices des produits & services'!CB$31),NA()) -> 1.004643963 | GR116: =IFERROR(IF('Indices des produits & services'!CC35/'Indices des produits & services'!CC$31=0,NA(),'Indices des produits & services'!CC35/'Indices des produits & services'!CC$31),NA()) -> 1.005314438 | GS116: =IFERROR(IF('Indices des produits & services'!CD35/'Indices des produits & services'!CD$31=0,NA(),'Indices des produits & services'!CD35/'Indices des produits & services'!CD$31),NA()) -> 1.011948529 | GT116: =IFERROR(IF('Indices des produits & services'!CE35/'Indices des produits & services'!CE$31=0,NA(),'Indices des produits & services'!CE35/'Indices des produits & services'!CE$31),NA()) -> 1.00199005 | GU116: =IFERROR(IF('Indices des produits & services'!CF35/'Indices des produits & services'!CF$31=0,NA(),'Indices des produits & services'!CF35/'Indices des produits & services'!CF$31),NA()) -> 1.006145742 | GV116: =IFERROR(IF('Indices des produits & services'!CG35/'Indices des produits & services'!CG$31=0,NA(),'Indices des produits & services'!CG35/'Indices des produits & services'!CG$31),NA()) -> 1 | GW116: =IFERROR(IF('Indices des produits & services'!CH35/'Indices des produits & services'!CH$31=0,NA(),'Indices des produits & services'!CH35/'Indices des produits & services'!CH$31),NA()) -> 1.004444444 | GX116: =IFERROR(IF('Indices des produits & services'!CI35/'Indices des produits & services'!CI$31=0,NA(),'Indices des produits & services'!CI35/'Indices des produits & services'!CI$31),NA()) -> 1.009737098 | GY116: =IFERROR(IF('Indices des produits & services'!CJ35/'Indices des produits & services'!CJ$31=0,NA(),'Indices des produits & services'!CJ35/'Indices des produits & services'!CJ$31),NA()) -> 0.9968421053 | GZ116: =IFERROR(IF('Indices des produits & services'!CK35/'Indices des produits & services'!CK$31=0,NA(),'Indices des produits & services'!CK35/'Indices des produits & services'!CK$31),NA()) -> 0.9569093611 | HA116: =IFERROR(IF('Indices des produits & services'!CL35/'Indices des produits & services'!CL$31=0,NA(),'Indices des produits & services'!CL35/'Indices des produits & services'!CL$31),NA()) -> 0.9628851541 | HB116: =IFERROR(IF('Indices des produits & services'!CM35/'Indices des produits & services'!CM$31=0,NA(),'Indices des produits & services'!CM35/'Indices des produits & services'!CM$31),NA()) -> 0.9395711501 | HC116: =IFERROR(IF('Indices des produits & services'!CN35/'Indices des produits & services'!CN$31=0,NA(),'Indices des produits & services'!CN35/'Indices des produits & services'!CN$31),NA()) -> 1.00090009 | HE116: =Tableau21[[#This Row],[Période]] -> 2018-05-01 | HF116: =IFERROR(IF('Indices courants'!J33/'Indices courants'!J$29=0,NA(),'Indices courants'!J33/'Indices courants'!J$29),NA()) -> 0.9954946257 | HG116: =IFERROR(IF('Indices courants'!K33/'Indices courants'!K$29=0,NA(),'Indices courants'!K33/'Indices courants'!K$29),NA()) -> 0.9956812919 | HH116: =IFERROR(IF('Indices courants'!L33/'Indices courants'!L$29=0,NA(),'Indices courants'!L33/'Indices courants'!L$29),NA()) -> 0.9957119159 | HI116: =IFERROR(IF('Indices courants'!M33/'Indices courants'!M$29=0,NA(),'Indices courants'!M33/'Indices courants'!M$29),NA()) -> 0.9954899813 | HJ116: =IFERROR(IF('Indices courants'!N33/'Indices courants'!N$29=0,NA(),'Indices courants'!N33/'Indices courants'!N$29),NA()) -> 0.9956769626 | HK116: =IFERROR(IF('Indices courants'!O33/'Indices courants'!O$29=0,NA(),'Indices courants'!O33/'Indices courants'!O$29),NA()) -> 0.9956762854 | HL116: =IFERROR(IF('Indices courants'!P33/'Indices courants'!P$29=0,NA(),'Indices courants'!P33/'Indices courants'!P$29),NA()) -> 0.9952943499 | HM116: =IFERROR(IF('Indices courants'!Q33/'Indices courants'!Q$29=0,NA(),'Indices courants'!Q33/'Indices courants'!Q$29),NA()) -> 0.9954907416 | HN116: =IFERROR(IF('Indices courants'!R33/'Indices courants'!R$29=0,NA(),'Indices courants'!R33/'Indices courants'!R$29),NA()) -> 0.9954900205 | HO116: =IFERROR(IF('Indices courants'!S33/'Indices courants'!S$29=0,NA(),'Indices courants'!S33/'Indices courants'!S$29),NA()) -> 0.995183141 | HP116: =IFERROR(IF('Indices courants'!T33/'Indices courants'!T$29=0,NA(),'Indices courants'!T33/'Indices courants'!T$29),NA()) -> 0.9953858652 | HQ116: =IFERROR(IF('Indices courants'!U33/'Indices courants'!U$29=0,NA(),'Indices courants'!U33/'Indices courants'!U$29),NA()) -> 0.9953851154 | HR116: =IFERROR(IF('Indices courants'!V33/'Indices courants'!V$29=0,NA(),'Indices courants'!V33/'Indices courants'!V$29),NA()) -> 1.000795355 | HS116: =IFERROR(IF('Indices courants'!W33/'Indices courants'!W$29=0,NA(),'Indices courants'!W33/'Indices courants'!W$29),NA()) -> 1.000747737 | HT116: =IFERROR(IF('Indices courants'!X33/'Indices courants'!X$29=0,NA(),'Indices courants'!X33/'Indices courants'!X$29),NA()) -> 1.014330585 | HU116: =IFERROR(IF('Indices courants'!Y33/'Indices courants'!Y$29=0,NA(),'Indices courants'!Y33/'Indices courants'!Y$29),NA()) -> 1.014807502 | HV116: =IFERROR(IF('Indices courants'!Z33/'Indices courants'!Z$29=0,NA(),'Indices courants'!Z33/'Indices courants'!Z$29),NA()) -> 1.013807153 | HW116: =IFERROR(IF('Indices courants'!AA33/'Indices courants'!AA$29=0,NA(),'Indices courants'!AA33/'Indices courants'!AA$29),NA()) -> 1.01444177 | HX116: =IFERROR(IF('Indices courants'!AB33/'Indices courants'!AB$29=0,NA(),'Indices courants'!AB33/'Indices courants'!AB$29),NA()) -> 1.013342263 | HY116: =IFERROR(IF('Indices courants'!AC33/'Indices courants'!AC$29=0,NA(),'Indices courants'!AC33/'Indices courants'!AC$29),NA()) -> 1.020863162 | HZ116: =Tableau21[[#This Row],[Evolution des prix selon formule de révision - indice i 2021]] -> 1.00292 | IA116: =Tableau21[[#This Row],[Evolution des prix selon formule de révision - indice i]] -> 1.0029 | IB116: =Tableau21[[#This Row],[Augmentation mois par mois - selon indice i 2021]] -> 1.00053 | IC116: =Tableau21[[#This Row],[Augmentation mois par mois - selon indice i ]] -> 1.00051 | ID116: =IFERROR(IF('Indexations des salaires par CP'!BY42/'Indexations des salaires par CP'!BY$38=0,NA(),'Indexations des salaires par CP'!BY42/'Indexations des salaires par CP'!BY$38),NA()) -> 1.004216093 | IE116: =IFERROR(IF('Indexations des salaires par CP'!BZ42/'Indexations des salaires par CP'!BZ$38=0,NA(),'Indexations des salaires par CP'!BZ42/'Indexations des salaires par CP'!BZ$38),NA()) -> 1 | IF116: =IFERROR(IF('Indexations des salaires par CP'!CA42/'Indexations des salaires par CP'!CA$38=0,NA(),'Indexations des salaires par CP'!CA42/'Indexations des salaires par CP'!CA$38),NA()) -> 1 | IG116: =IFERROR(IF('Indexations des salaires par CP'!CB42/'Indexations des salaires par CP'!CB$38=0,NA(),'Indexations des salaires par CP'!CB42/'Indexations des salaires par CP'!CB$38),NA()) -> 1.019855596 | IH116: =IFERROR(IF('Indexations des salaires par CP'!CC42/'Indexations des salaires par CP'!CC$38=0,NA(),'Indexations des salaires par CP'!CC42/'Indexations des salaires par CP'!CC$38),NA()) -> 1 | II116: =IFERROR(IF('Indexations des salaires par CP'!CD42/'Indexations des salaires par CP'!CD$38=0,NA(),'Indexations des salaires par CP'!CD42/'Indexations des salaires par CP'!CD$38),NA()) -> 1 | IJ116: =IFERROR(IF('Indexations des salaires par CP'!CE42/'Indexations des salaires par CP'!CE$38=0,NA(),'Indexations des salaires par CP'!CE42/'Indexations des salaires par CP'!CE$38),NA()) -> 1 | IK116: =IFERROR(IF('Indexations des salaires par CP'!CF42/'Indexations des salaires par CP'!CF$38=0,NA(),'Indexations des salaires par CP'!CF42/'Indexations des salaires par CP'!CF$38),NA()) -> 1.008928571 | IL116: =IFERROR(IF('Indexations des salaires par CP'!CG42/'Indexations des salaires par CP'!CG$38=0,NA(),'Indexations des salaires par CP'!CG42/'Indexations des salaires par CP'!CG$38),NA()) -> 1 | IM116: =IFERROR(IF('Indexations des salaires par CP'!CH42/'Indexations des salaires par CP'!CH$38=0,NA(),'Indexations des salaires par CP'!CH42/'Indexations des salaires par CP'!CH$38),NA()) -> 1
B117: ='Indices courants'!C34 -> 2018-06-01 | C117: =IFERROR(IF('Indices courants'!D34/'Indices courants'!D$29=0,NA(),'Indices courants'!D34/'Indices courants'!D$29),NA()) -> 1.019291788 | D117: =IFERROR(IF('Indices courants'!E34/'Indices courants'!E$29=0,NA(),'Indices courants'!E34/'Indices courants'!E$29),NA()) -> 1.018606574 | E117: =IFERROR(IF('Indices courants'!F34/'Indices courants'!F$29=0,NA(),'Indices courants'!F34/'Indices courants'!F$29),NA()) -> 1.048366834 | F117: =IFERROR(IF('Indices courants'!G34/'Indices courants'!G$29=0,NA(),'Indices courants'!G34/'Indices courants'!G$29),NA()) -> 1.033711309 | G117: =IFERROR(IF('Indices courants'!H34/'Indices courants'!H$29=0,NA(),'Indices courants'!H34/'Indices courants'!H$29),NA()) -> 1.038576322 | H117: =IFERROR(IF('Indices courants'!I34/'Indices courants'!I$29=0,NA(),'Indices courants'!I34/'Indices courants'!I$29),NA()) -> 1.023869374 | I117: =IF('Indices courants'!E33=0,NA(),IF('Indices courants'!J34=0,NA(),IFERROR(ROUND(((('Formule de révision courante'!$E$27*('Indices courants'!E33/'Indices courants'!E32)+'Formule de révision courante'!$E$21*('Indices courants'!J34/'Indices courants'!J33)+'Formule de révision courante'!$E$33))*'Graphique évolution des indices'!I116),5),NA()))) -> 1.00431 | J117: =IF('Indices courants'!D33=0,NA(),IF('Indices courants'!J34=0,NA(),IFERROR(ROUND(((('Formule de révision courante'!$E$27*('Indices courants'!D33/'Indices courants'!D32)+'Formule de révision courante'!$E$21*('Indices courants'!J34/'Indices courants'!J33)+'Formule de révision courante'!$E$33))*'Graphique évolution des indices'!I116),5),NA()))) -> 1.0079 | K117: =IF('Indices courants'!E33=0,NA(),IF('Indices courants'!J34=0,NA(),IFERROR(ROUND(((('Formule de révision courante'!$E$27*('Indices courants'!E33/'Indices courants'!E32)+'Formule de révision courante'!$E$21*('Indices courants'!J34/'Indices courants'!J33)+'Formule de révision courante'!$E$33))),5),NA()))) -> 1.00139 | L117: =IF('Indices courants'!D33=0,NA(),IF('Indices courants'!J34=0,NA(),IFERROR(ROUND(((('Formule de révision courante'!$E$27*('Indices courants'!D33/'Indices courants'!D32)+'Formule de révision courante'!$E$21*('Indices courants'!J34/'Indices courants'!J33)+'Formule de révision courante'!$E$33))),5),NA()))) -> 1.00497 | M117: =IFERROR(IF('Indices T.P. matériaux'!C38/'Indices T.P. matériaux'!C$33=0,NA(),'Indices T.P. matériaux'!C38/'Indices T.P. matériaux'!C$33),NA()) -> 1 | N117: =IFERROR(IF('Indices T.P. matériaux'!D38/'Indices T.P. matériaux'!D$33=0,NA(),'Indices T.P. matériaux'!D38/'Indices T.P. matériaux'!D$33),NA()) -> 1 | O117: =IFERROR(IF('Indices T.P. matériaux'!E38/'Indices T.P. matériaux'!E$33=0,NA(),'Indices T.P. matériaux'!E38/'Indices T.P. matériaux'!E$33),NA()) -> 1 | P117: =IFERROR(IF('Indices T.P. matériaux'!F38/'Indices T.P. matériaux'!F$33=0,NA(),'Indices T.P. matériaux'!F38/'Indices T.P. matériaux'!F$33),NA()) -> 1 | Q117: =IFERROR(IF('Indices T.P. matériaux'!G38/'Indices T.P. matériaux'!G$33=0,NA(),'Indices T.P. matériaux'!G38/'Indices T.P. matériaux'!G$33),NA()) -> 1 | R117: =IFERROR(IF('Indices T.P. matériaux'!H38/'Indices T.P. matériaux'!H$33=0,NA(),'Indices T.P. matériaux'!H38/'Indices T.P. matériaux'!H$33),NA()) -> 1 | S117: =IFERROR(IF('Indices T.P. matériaux'!I38/'Indices T.P. matériaux'!I$33=0,NA(),'Indices T.P. matériaux'!I38/'Indices T.P. matériaux'!I$33),NA()) -> 1 | T117: =IFERROR(IF('Indices T.P. matériaux'!J38/'Indices T.P. matériaux'!J$33=0,NA(),'Indices T.P. matériaux'!J38/'Indices T.P. matériaux'!J$33),NA()) -> 1 | U117: =IFERROR(IF('Indices T.P. matériaux'!K38/'Indices T.P. matériaux'!K$33=0,NA(),'Indices T.P. matériaux'!K38/'Indices T.P. matériaux'!K$33),NA()) -> 1 | V117: =IFERROR(IF('Indices T.P. matériaux'!L38/'Indices T.P. matériaux'!L$33=0,NA(),'Indices T.P. matériaux'!L38/'Indices T.P. matériaux'!L$33),NA()) -> 1 | W117: =IFERROR(IF('Indices T.P. matériaux'!M38/'Indices T.P. matériaux'!M$33=0,NA(),'Indices T.P. matériaux'!M38/'Indices T.P. matériaux'!M$33),NA()) -> 1 | X117: =IFERROR(IF('Indices T.P. matériaux'!N38/'Indices T.P. matériaux'!N$33=0,NA(),'Indices T.P. matériaux'!N38/'Indices T.P. matériaux'!N$33),NA()) -> 1 | Y117: =IFERROR(IF('Indices T.P. matériaux'!O38/'Indices T.P. matériaux'!O$33=0,NA(),'Indices T.P. matériaux'!O38/'Indices T.P. matériaux'!O$33),NA()) -> 1 | Z117: =IFERROR(IF('Indices T.P. matériaux'!P38/'Indices T.P. matériaux'!P$33=0,NA(),'Indices T.P. matériaux'!P38/'Indices T.P. matériaux'!P$33),NA()) -> 1 | AA117: =IFERROR(IF('Indices T.P. matériaux'!Q38/'Indices T.P. matériaux'!Q$33=0,NA(),'Indices T.P. matériaux'!Q38/'Indices T.P. matériaux'!Q$33),NA()) -> 1 | AB117: =IFERROR(IF('Indices T.P. matériaux'!R38/'Indices T.P. matériaux'!R$33=0,NA(),'Indices T.P. matériaux'!R38/'Indices T.P. matériaux'!R$33),NA()) -> 1 | AC117: =IFERROR(IF('Indices T.P. matériaux'!S38/'Indices T.P. matériaux'!S$33=0,NA(),'Indices T.P. matériaux'!S38/'Indices T.P. matériaux'!S$33),NA()) -> 1 | AD117: =IFERROR(IF('Indices T.P. matériaux'!T38/'Indices T.P. matériaux'!T$33=0,NA(),'Indices T.P. matériaux'!T38/'Indices T.P. matériaux'!T$33),NA()) -> 1 | AE117: =IFERROR(IF('Indices T.P. matériaux'!U38/'Indices T.P. matériaux'!U$33=0,NA(),'Indices T.P. matériaux'!U38/'Indices T.P. matériaux'!U$33),NA()) -> 1 | AF117: =IFERROR(IF('Indices T.P. matériaux'!V38/'Indices T.P. matériaux'!V$33=0,NA(),'Indices T.P. matériaux'!V38/'Indices T.P. matériaux'!V$33),NA()) -> 1 | AG117: =IFERROR(IF('Indices T.P. matériaux'!W38/'Indices T.P. matériaux'!W$33=0,NA(),'Indices T.P. matériaux'!W38/'Indices T.P. matériaux'!W$33),NA()) -> 1.052212931 | AH117: =IFERROR(IF('Indices T.P. matériaux'!X38/'Indices T.P. matériaux'!X$33=0,NA(),'Indices T.P. matériaux'!X38/'Indices T.P. matériaux'!X$33),NA()) -> 1.061061947 | AI117: =IFERROR(IF('Indices T.P. matériaux'!Y38/'Indices T.P. matériaux'!Y$33=0,NA(),'Indices T.P. matériaux'!Y38/'Indices T.P. matériaux'!Y$33),NA()) -> 1.060232393 | AJ117: =IFERROR(IF('Indices T.P. matériaux'!Z38/'Indices T.P. matériaux'!Z$33=0,NA(),'Indices T.P. matériaux'!Z38/'Indices T.P. matériaux'!Z$33),NA()) -> 1.06848965 | AK117: =IFERROR(IF('Indices T.P. matériaux'!AA38/'Indices T.P. matériaux'!AA$33=0,NA(),'Indices T.P. matériaux'!AA38/'Indices T.P. matériaux'!AA$33),NA()) -> 1.033668342 | AL117: =IFERROR(IF('Indices T.P. matériaux'!AB38/'Indices T.P. matériaux'!AB$33=0,NA(),'Indices T.P. matériaux'!AB38/'Indices T.P. matériaux'!AB$33),NA()) -> 1.012051823 | AM117: =IFERROR(IF('Indices T.P. matériaux'!AC38/'Indices T.P. matériaux'!AC$33=0,NA(),'Indices T.P. matériaux'!AC38/'Indices T.P. matériaux'!AC$33),NA()) -> 1.014587449 | AN117: =IFERROR(IF('Indices T.P. matériaux'!AD38/'Indices T.P. matériaux'!AD$33=0,NA(),'Indices T.P. matériaux'!AD38/'Indices T.P. matériaux'!AD$33),NA()) -> 1.032312925 | AO117: =IFERROR(IF('Indices T.P. matériaux'!AE38/'Indices T.P. matériaux'!AE$33=0,NA(),'Indices T.P. matériaux'!AE38/'Indices T.P. matériaux'!AE$33),NA()) -> 1.012070006 | AP117: =IFERROR(IF('Indices T.P. matériaux'!AF38/'Indices T.P. matériaux'!AF$33=0,NA(),'Indices T.P. matériaux'!AF38/'Indices T.P. matériaux'!AF$33),NA()) -> 1.032817548 | AQ117: =IFERROR(IF('Indices T.P. matériaux'!AG38/'Indices T.P. matériaux'!AG$33=0,NA(),'Indices T.P. matériaux'!AG38/'Indices T.P. matériaux'!AG$33),NA()) -> 1.015795123 | AR117: =IFERROR(IF('Indices T.P. matériaux'!AH38/'Indices T.P. matériaux'!AH$33=0,NA(),'Indices T.P. matériaux'!AH38/'Indices T.P. matériaux'!AH$33),NA()) -> 1.012070006 | AS117: =IFERROR(IF('Indices T.P. matériaux'!AI38/'Indices T.P. matériaux'!AI$33=0,NA(),'Indices T.P. matériaux'!AI38/'Indices T.P. matériaux'!AI$33),NA()) -> 0.9704187058 | AT117: =IFERROR(IF('Indices T.P. matériaux'!AJ38/'Indices T.P. matériaux'!AJ$33=0,NA(),'Indices T.P. matériaux'!AJ38/'Indices T.P. matériaux'!AJ$33),NA()) -> 1.014902676 | AU117: =IFERROR(IF('Indices T.P. matériaux'!AK38/'Indices T.P. matériaux'!AK$33=0,NA(),'Indices T.P. matériaux'!AK38/'Indices T.P. matériaux'!AK$33),NA()) -> 1.03247747 | AV117: =IFERROR(IF('Indices T.P. matériaux'!AL38/'Indices T.P. matériaux'!AL$33=0,NA(),'Indices T.P. matériaux'!AL38/'Indices T.P. matériaux'!AL$33),NA()) -> 1.026226473 | AW117: =IFERROR(IF('Indices T.P. matériaux'!AM38/'Indices T.P. matériaux'!AM$33=0,NA(),'Indices T.P. matériaux'!AM38/'Indices T.P. matériaux'!AM$33),NA()) -> 1.026149823 | AX117: =IFERROR(IF('Indices T.P. matériaux'!AN38/'Indices T.P. matériaux'!AN$33=0,NA(),'Indices T.P. matériaux'!AN38/'Indices T.P. matériaux'!AN$33),NA()) -> 1.02617801 | AY117: =IFERROR(IF('Indices T.P. matériaux'!AO38/'Indices T.P. matériaux'!AO$33=0,NA(),'Indices T.P. matériaux'!AO38/'Indices T.P. matériaux'!AO$33),NA()) -> 0.9781705889 | AZ117: =IFERROR(IF('Indices T.P. matériaux'!AP38/'Indices T.P. matériaux'!AP$33=0,NA(),'Indices T.P. matériaux'!AP38/'Indices T.P. matériaux'!AP$33),NA()) -> 1.050446429 | BA117: =IFERROR(IF('Indices T.P. matériaux'!AQ38/'Indices T.P. matériaux'!AQ$33=0,NA(),'Indices T.P. matériaux'!AQ38/'Indices T.P. matériaux'!AQ$33),NA()) -> 1 | BB117: =IFERROR(IF('Indices T.P. matériaux'!AR38/'Indices T.P. matériaux'!AR$33=0,NA(),'Indices T.P. matériaux'!AR38/'Indices T.P. matériaux'!AR$33),NA()) ->  | BC117: =IFERROR(IF('Indices T.P. matériaux'!AS38/'Indices T.P. matériaux'!AS$33=0,NA(),'Indices T.P. matériaux'!AS38/'Indices T.P. matériaux'!AS$33),NA()) ->  | BD117: =IFERROR(IF('Indices T.P. matériaux'!AT38/'Indices T.P. matériaux'!AT$33=0,NA(),'Indices T.P. matériaux'!AT38/'Indices T.P. matériaux'!AT$33),NA()) ->  | BE117: =IFERROR(IF('Indices T.P. matériaux'!AU38/'Indices T.P. matériaux'!AU$33=0,NA(),'Indices T.P. matériaux'!AU38/'Indices T.P. matériaux'!AU$33),NA()) ->  | BF117: =IFERROR(IF('Indices T.P. matériaux'!AV38/'Indices T.P. matériaux'!AV$33=0,NA(),'Indices T.P. matériaux'!AV38/'Indices T.P. matériaux'!AV$33),NA()) ->  | BG117: =IFERROR(IF('Indices T.P. matériaux'!AW38/'Indices T.P. matériaux'!AW$33=0,NA(),'Indices T.P. matériaux'!AW38/'Indices T.P. matériaux'!AW$33),NA()) ->  | BH117: =IFERROR(IF('Indices T.P. matériaux'!AX38/'Indices T.P. matériaux'!AX$33=0,NA(),'Indices T.P. matériaux'!AX38/'Indices T.P. matériaux'!AX$33),NA()) ->  | BI117: =IFERROR(IF('Indices T.P. matériaux'!AY38/'Indices T.P. matériaux'!AY$33=0,NA(),'Indices T.P. matériaux'!AY38/'Indices T.P. matériaux'!AY$33),NA()) -> 0.9843406352 | BJ117: =IFERROR(IF('Indices T.P. matériaux'!AZ38/'Indices T.P. matériaux'!AZ$33=0,NA(),'Indices T.P. matériaux'!AZ38/'Indices T.P. matériaux'!AZ$33),NA()) -> 1.025862069 | BK117: =IFERROR(IF('Indices T.P. matériaux'!BA38/'Indices T.P. matériaux'!BA$33=0,NA(),'Indices T.P. matériaux'!BA38/'Indices T.P. matériaux'!BA$33),NA()) -> 1.025862069 | BL117: =IFERROR(IF('Indices T.P. matériaux'!BB38/'Indices T.P. matériaux'!BB$33=0,NA(),'Indices T.P. matériaux'!BB38/'Indices T.P. matériaux'!BB$33),NA()) -> 0.9386473036 | BM117: =IFERROR(IF('Indices T.P. matériaux'!BC38/'Indices T.P. matériaux'!BC$33=0,NA(),'Indices T.P. matériaux'!BC38/'Indices T.P. matériaux'!BC$33),NA()) -> 0.9368352683 | BN117: =IFERROR(IF('Indices T.P. matériaux'!BD38/'Indices T.P. matériaux'!BD$33=0,NA(),'Indices T.P. matériaux'!BD38/'Indices T.P. matériaux'!BD$33),NA()) -> 1.094616451 | BO117: =IFERROR(IF('Indices T.P. matériaux'!BE38/'Indices T.P. matériaux'!BE$33=0,NA(),'Indices T.P. matériaux'!BE38/'Indices T.P. matériaux'!BE$33),NA()) -> 1.056672158 | BP117: =IFERROR(IF('Indices T.P. matériaux'!BF38/'Indices T.P. matériaux'!BF$33=0,NA(),'Indices T.P. matériaux'!BF38/'Indices T.P. matériaux'!BF$33),NA()) ->  | BQ117: =IFERROR(IF('Indices T.P. matériaux'!BG38/'Indices T.P. matériaux'!BG$33=0,NA(),'Indices T.P. matériaux'!BG38/'Indices T.P. matériaux'!BG$33),NA()) -> 1.225719168 | BR117: =IFERROR(IF('Indices T.P. matériaux'!BH38/'Indices T.P. matériaux'!BH$33=0,NA(),'Indices T.P. matériaux'!BH38/'Indices T.P. matériaux'!BH$33),NA()) -> 0.9946340416 | BS117: =IFERROR(IF('Indices T.P. matériaux'!BI38/'Indices T.P. matériaux'!BI$33=0,NA(),'Indices T.P. matériaux'!BI38/'Indices T.P. matériaux'!BI$33),NA()) -> 1.001275348 | BT117: =IFERROR(IF('Indices T.P. matériaux'!BJ38/'Indices T.P. matériaux'!BJ$33=0,NA(),'Indices T.P. matériaux'!BJ38/'Indices T.P. matériaux'!BJ$33),NA()) -> 1.03464689 | BU117: =IFERROR(IF('Indices T.P. matériaux'!BK38/'Indices T.P. matériaux'!BK$33=0,NA(),'Indices T.P. matériaux'!BK38/'Indices T.P. matériaux'!BK$33),NA()) -> 1.013582966 | BV117: =IFERROR(IF('Indices T.P. matériaux'!BL38/'Indices T.P. matériaux'!BL$33=0,NA(),'Indices T.P. matériaux'!BL38/'Indices T.P. matériaux'!BL$33),NA()) -> 1 | BW117: =IFERROR(IF('Indices T.P. matériaux'!BM38/'Indices T.P. matériaux'!BM$33=0,NA(),'Indices T.P. matériaux'!BM38/'Indices T.P. matériaux'!BM$33),NA()) -> 1 | BX117: =IFERROR(IF('Indices T.P. matériaux'!BN38/'Indices T.P. matériaux'!BN$33=0,NA(),'Indices T.P. matériaux'!BN38/'Indices T.P. matériaux'!BN$33),NA()) -> 1 | BY117: =IFERROR(IF('Indices T.P. matériaux'!BO38/'Indices T.P. matériaux'!BO$33=0,NA(),'Indices T.P. matériaux'!BO38/'Indices T.P. matériaux'!BO$33),NA()) -> 1 | BZ117: =IFERROR(IF('Indices T.P. matériaux'!BP38/'Indices T.P. matériaux'!BP$33=0,NA(),'Indices T.P. matériaux'!BP38/'Indices T.P. matériaux'!BP$33),NA()) -> 1.055003044 | CA117: =IFERROR(IF('Indices T.P. matériaux'!BQ38/'Indices T.P. matériaux'!BQ$33=0,NA(),'Indices T.P. matériaux'!BQ38/'Indices T.P. matériaux'!BQ$33),NA()) -> 1.054922701 | CB117: =IFERROR(IF('Indices T.P. matériaux'!BR38/'Indices T.P. matériaux'!BR$33=0,NA(),'Indices T.P. matériaux'!BR38/'Indices T.P. matériaux'!BR$33),NA()) -> 1.054808476 | CC117: =IFERROR(IF('Indices T.P. matériaux'!BS38/'Indices T.P. matériaux'!BS$33=0,NA(),'Indices T.P. matériaux'!BS38/'Indices T.P. matériaux'!BS$33),NA()) -> 1.054945055 | CD117: =IFERROR(IF('Indices T.P. matériaux'!BT38/'Indices T.P. matériaux'!BT$33=0,NA(),'Indices T.P. matériaux'!BT38/'Indices T.P. matériaux'!BT$33),NA()) -> 1 | CE117: =IFERROR(IF('Indices T.P. matériaux'!BU38/'Indices T.P. matériaux'!BU$33=0,NA(),'Indices T.P. matériaux'!BU38/'Indices T.P. matériaux'!BU$33),NA()) -> 1 | CF117: =IFERROR(IF('Indices T.P. matériaux'!BV38/'Indices T.P. matériaux'!BV$33=0,NA(),'Indices T.P. matériaux'!BV38/'Indices T.P. matériaux'!BV$33),NA()) -> 1 | CG117: =IFERROR(IF('Indices T.P. matériaux'!BW38/'Indices T.P. matériaux'!BW$33=0,NA(),'Indices T.P. matériaux'!BW38/'Indices T.P. matériaux'!BW$33),NA()) -> 1 | CH117: =IFERROR(IF('Indices T.P. matériaux'!BX38/'Indices T.P. matériaux'!BX$33=0,NA(),'Indices T.P. matériaux'!BX38/'Indices T.P. matériaux'!BX$33),NA()) -> 1 | CI117: =IFERROR(IF('Indices T.P. matériaux'!BY38/'Indices T.P. matériaux'!BY$33=0,NA(),'Indices T.P. matériaux'!BY38/'Indices T.P. matériaux'!BY$33),NA()) -> 1 | CJ117: =IFERROR(IF('Indices T.P. matériaux'!BZ38/'Indices T.P. matériaux'!BZ$33=0,NA(),'Indices T.P. matériaux'!BZ38/'Indices T.P. matériaux'!BZ$33),NA()) -> 1 | CK117: =IFERROR(IF('Indices T.P. matériaux'!CA38/'Indices T.P. matériaux'!CA$33=0,NA(),'Indices T.P. matériaux'!CA38/'Indices T.P. matériaux'!CA$33),NA()) -> 1.08605919 | CL117: =IFERROR(IF('Indices T.P. matériaux'!CB38/'Indices T.P. matériaux'!CB$33=0,NA(),'Indices T.P. matériaux'!CB38/'Indices T.P. matériaux'!CB$33),NA()) -> 1.085918235 | CM117: =IFERROR(IF('Indices T.P. matériaux'!CC38/'Indices T.P. matériaux'!CC$33=0,NA(),'Indices T.P. matériaux'!CC38/'Indices T.P. matériaux'!CC$33),NA()) -> 1.085929387 | CN117: =IFERROR(IF('Indices T.P. matériaux'!CD38/'Indices T.P. matériaux'!CD$33=0,NA(),'Indices T.P. matériaux'!CD38/'Indices T.P. matériaux'!CD$33),NA()) -> 1.110005767 | CO117: =IFERROR(IF('Indices T.P. matériaux'!CE38/'Indices T.P. matériaux'!CE$33=0,NA(),'Indices T.P. matériaux'!CE38/'Indices T.P. matériaux'!CE$33),NA()) -> 1.109861592 | CP117: =IFERROR(IF('Indices T.P. matériaux'!CF38/'Indices T.P. matériaux'!CF$33=0,NA(),'Indices T.P. matériaux'!CF38/'Indices T.P. matériaux'!CF$33),NA()) -> 1.057823536 | CQ117: =IFERROR(IF('Indices T.P. matériaux'!CG38/'Indices T.P. matériaux'!CG$33=0,NA(),'Indices T.P. matériaux'!CG38/'Indices T.P. matériaux'!CG$33),NA()) -> 1.057690006 | CR117: =IFERROR(IF('Indices T.P. matériaux'!CH38/'Indices T.P. matériaux'!CH$33=0,NA(),'Indices T.P. matériaux'!CH38/'Indices T.P. matériaux'!CH$33),NA()) -> 1.05036471 | CS117: =IFERROR(IF('Indices T.P. matériaux'!CI38/'Indices T.P. matériaux'!CI$33=0,NA(),'Indices T.P. matériaux'!CI38/'Indices T.P. matériaux'!CI$33),NA()) -> 1.002149093 | CT117: =IFERROR(IF('Indices T.P. matériaux'!CJ38/'Indices T.P. matériaux'!CJ$33=0,NA(),'Indices T.P. matériaux'!CJ38/'Indices T.P. matériaux'!CJ$33),NA()) -> 1.133132448 | CU117: =IFERROR(IF('Indices T.P. matériaux'!CK38/'Indices T.P. matériaux'!CK$33=0,NA(),'Indices T.P. matériaux'!CK38/'Indices T.P. matériaux'!CK$33),NA()) -> 1.174183976 | CV117: =IFERROR(IF('Indices T.P. matériaux'!CL38/'Indices T.P. matériaux'!CL$33=0,NA(),'Indices T.P. matériaux'!CL38/'Indices T.P. matériaux'!CL$33),NA()) -> 1.030000867 | CW117: =IFERROR(IF('Indices T.P. matériaux'!CM38/'Indices T.P. matériaux'!CM$33=0,NA(),'Indices T.P. matériaux'!CM38/'Indices T.P. matériaux'!CM$33),NA()) -> 1.027548831 | CX117: =IFERROR(IF('Indices T.P. matériaux'!CN38/'Indices T.P. matériaux'!CN$33=0,NA(),'Indices T.P. matériaux'!CN38/'Indices T.P. matériaux'!CN$33),NA()) -> 1.023395055 | CY117: =IFERROR(IF('Indices T.P. matériaux'!CO38/'Indices T.P. matériaux'!CO$33=0,NA(),'Indices T.P. matériaux'!CO38/'Indices T.P. matériaux'!CO$33),NA()) -> 1.072056442 | CZ117: =IFERROR(IF('Indices T.P. matériaux'!CP38/'Indices T.P. matériaux'!CP$33=0,NA(),'Indices T.P. matériaux'!CP38/'Indices T.P. matériaux'!CP$33),NA()) -> 1.09301199 | DA117: =IFERROR(IF('Indices T.P. matériaux'!CQ38/'Indices T.P. matériaux'!CQ$33=0,NA(),'Indices T.P. matériaux'!CQ38/'Indices T.P. matériaux'!CQ$33),NA()) ->  | DB117: =IFERROR(IF('Indices T.P. matériaux'!CR38/'Indices T.P. matériaux'!CR$33=0,NA(),'Indices T.P. matériaux'!CR38/'Indices T.P. matériaux'!CR$33),NA()) ->  | DC117: =IFERROR(IF('Indices T.P. matériaux'!CS38/'Indices T.P. matériaux'!CS$33=0,NA(),'Indices T.P. matériaux'!CS38/'Indices T.P. matériaux'!CS$33),NA()) ->  | DD117: =IFERROR(IF('Indices T.P. matériaux'!CT38/'Indices T.P. matériaux'!CT$33=0,NA(),'Indices T.P. matériaux'!CT38/'Indices T.P. matériaux'!CT$33),NA()) ->  | DE117: =IFERROR(IF('Indices Grymafer'!D36/'Indices Grymafer'!D$31=0,NA(),'Indices Grymafer'!D36/'Indices Grymafer'!D$31),NA()) -> 0.9614791988 | DF117: =IFERROR(IF('Indices Grymafer'!E36/'Indices Grymafer'!E$31=0,NA(),'Indices Grymafer'!E36/'Indices Grymafer'!E$31),NA()) -> 0.9675324675 | DG117: =IFERROR(IF('Indices Grymafer'!F36/'Indices Grymafer'!F$31=0,NA(),'Indices Grymafer'!F36/'Indices Grymafer'!F$31),NA()) -> 0.9721913237 | DH117: =IFERROR(IF('Indices Grymafer'!G36/'Indices Grymafer'!G$31=0,NA(),'Indices Grymafer'!G36/'Indices Grymafer'!G$31),NA()) -> 0.975483871 | DI117: =IFERROR(IF('Indices T.P. matériaux'!CW38/'Indices T.P. matériaux'!CW$33=0,NA(),'Indices T.P. matériaux'!CW38/'Indices T.P. matériaux'!CW$33),NA()) -> 1.007256469 | DJ117: =IFERROR(IF('Indices T.P. matériaux'!CX38/'Indices T.P. matériaux'!CX$33=0,NA(),'Indices T.P. matériaux'!CX38/'Indices T.P. matériaux'!CX$33),NA()) -> 1.011409943 | DK117: =IFERROR(IF('Indices T.P. matériaux'!CY38/'Indices T.P. matériaux'!CY$33=0,NA(),'Indices T.P. matériaux'!CY38/'Indices T.P. matériaux'!CY$33),NA()) -> 1.000439367 | DL117: =IFERROR(IF('Indices T.P. matériaux'!CZ38/'Indices T.P. matériaux'!CZ$33=0,NA(),'Indices T.P. matériaux'!CZ38/'Indices T.P. matériaux'!CZ$33),NA()) -> 1.00905148 | DM117: =IFERROR(IF('Indices T.P. matériaux'!DA38/'Indices T.P. matériaux'!DA$33=0,NA(),'Indices T.P. matériaux'!DA38/'Indices T.P. matériaux'!DA$33),NA()) -> 1.216374269 | DN117: =IFERROR(IF('Indices T.P. matériaux'!DB38/'Indices T.P. matériaux'!DB$33=0,NA(),'Indices T.P. matériaux'!DB38/'Indices T.P. matériaux'!DB$33),NA()) -> 1.006016734 | DO117: =IFERROR(IF('Indices T.P. matériaux'!DC38/'Indices T.P. matériaux'!DC$33=0,NA(),'Indices T.P. matériaux'!DC38/'Indices T.P. matériaux'!DC$33),NA()) -> 1.002868069 | DP117: =IFERROR(IF('Indices T.P. matériaux'!DD38/'Indices T.P. matériaux'!DD$33=0,NA(),'Indices T.P. matériaux'!DD38/'Indices T.P. matériaux'!DD$33),NA()) -> 1.006016734 | DR117: ='Indices courants'!C34 -> 2018-06-01 | DS117: =IFERROR(IF('Indices des produits & services'!D36/'Indices des produits & services'!D$31=0,NA(),'Indices des produits & services'!D36/'Indices des produits & services'!D$31),NA()) -> 1.00619469 | DT117: =IFERROR(IF('Indices des produits & services'!E36/'Indices des produits & services'!E$31=0,NA(),'Indices des produits & services'!E36/'Indices des produits & services'!E$31),NA()) -> 1.05861244 | DU117: =IFERROR(IF('Indices des produits & services'!F36/'Indices des produits & services'!F$31=0,NA(),'Indices des produits & services'!F36/'Indices des produits & services'!F$31),NA()) -> 1.023430178 | DV117: =IFERROR(IF('Indices des produits & services'!G36/'Indices des produits & services'!G$31=0,NA(),'Indices des produits & services'!G36/'Indices des produits & services'!G$31),NA()) -> 0.9990740741 | DW117: =IFERROR(IF('Indices des produits & services'!H36/'Indices des produits & services'!H$31=0,NA(),'Indices des produits & services'!H36/'Indices des produits & services'!H$31),NA()) -> 1.00170503 | DX117: =IFERROR(IF('Indices des produits & services'!I36/'Indices des produits & services'!I$31=0,NA(),'Indices des produits & services'!I36/'Indices des produits & services'!I$31),NA()) -> 0.9680111266 | DY117: =IFERROR(IF('Indices des produits & services'!J36/'Indices des produits & services'!J$31=0,NA(),'Indices des produits & services'!J36/'Indices des produits & services'!J$31),NA()) -> 1.003676471 | DZ117: =IFERROR(IF('Indices des produits & services'!K36/'Indices des produits & services'!K$31=0,NA(),'Indices des produits & services'!K36/'Indices des produits & services'!K$31),NA()) -> 0.9955357143 | EA117: =IFERROR(IF('Indices des produits & services'!L36/'Indices des produits & services'!L$31=0,NA(),'Indices des produits & services'!L36/'Indices des produits & services'!L$31),NA()) -> 1 | EB117: =IFERROR(IF('Indices des produits & services'!M36/'Indices des produits & services'!M$31=0,NA(),'Indices des produits & services'!M36/'Indices des produits & services'!M$31),NA()) -> 1.006161972 | EC117: =IFERROR(IF('Indices des produits & services'!N36/'Indices des produits & services'!N$31=0,NA(),'Indices des produits & services'!N36/'Indices des produits & services'!N$31),NA()) -> 1.004052685 | ED117: =IFERROR(IF('Indices des produits & services'!O36/'Indices des produits & services'!O$31=0,NA(),'Indices des produits & services'!O36/'Indices des produits & services'!O$31),NA()) -> 1 | EE117: =IFERROR(IF('Indices des produits & services'!P36/'Indices des produits & services'!P$31=0,NA(),'Indices des produits & services'!P36/'Indices des produits & services'!P$31),NA()) -> 1.024916944 | EF117: =IFERROR(IF('Indices des produits & services'!Q36/'Indices des produits & services'!Q$31=0,NA(),'Indices des produits & services'!Q36/'Indices des produits & services'!Q$31),NA()) -> 1.019695613 | EG117: =IFERROR(IF('Indices des produits & services'!R36/'Indices des produits & services'!R$31=0,NA(),'Indices des produits & services'!R36/'Indices des produits & services'!R$31),NA()) -> 1.016997167 | EH117: =IFERROR(IF('Indices des produits & services'!S36/'Indices des produits & services'!S$31=0,NA(),'Indices des produits & services'!S36/'Indices des produits & services'!S$31),NA()) -> 1.022321429 | EI117: =IFERROR(IF('Indices des produits & services'!T36/'Indices des produits & services'!T$31=0,NA(),'Indices des produits & services'!T36/'Indices des produits & services'!T$31),NA()) -> 1.028871391 | EJ117: =IFERROR(IF('Indices des produits & services'!U36/'Indices des produits & services'!U$31=0,NA(),'Indices des produits & services'!U36/'Indices des produits & services'!U$31),NA()) -> 1.036777583 | EK117: =IFERROR(IF('Indices des produits & services'!V36/'Indices des produits & services'!V$31=0,NA(),'Indices des produits & services'!V36/'Indices des produits & services'!V$31),NA()) -> 1.050139276 | EL117: =IFERROR(IF('Indices des produits & services'!W36/'Indices des produits & services'!W$31=0,NA(),'Indices des produits & services'!W36/'Indices des produits & services'!W$31),NA()) -> 1.008006405 | EM117: =IFERROR(IF('Indices des produits & services'!X36/'Indices des produits & services'!X$31=0,NA(),'Indices des produits & services'!X36/'Indices des produits & services'!X$31),NA()) -> 1.056245435 | EN117: =IFERROR(IF('Indices des produits & services'!Y36/'Indices des produits & services'!Y$31=0,NA(),'Indices des produits & services'!Y36/'Indices des produits & services'!Y$31),NA()) -> 1.007778738 | EO117: =IFERROR(IF('Indices des produits & services'!Z36/'Indices des produits & services'!Z$31=0,NA(),'Indices des produits & services'!Z36/'Indices des produits & services'!Z$31),NA()) -> 0.9759656652 | EP117: =IFERROR(IF('Indices des produits & services'!AA36/'Indices des produits & services'!AA$31=0,NA(),'Indices des produits & services'!AA36/'Indices des produits & services'!AA$31),NA()) -> 0.8878416588 | EQ117: =IFERROR(IF('Indices des produits & services'!AB36/'Indices des produits & services'!AB$31=0,NA(),'Indices des produits & services'!AB36/'Indices des produits & services'!AB$31),NA()) -> 1.02698145 | ER117: =IFERROR(IF('Indices des produits & services'!AC36/'Indices des produits & services'!AC$31=0,NA(),'Indices des produits & services'!AC36/'Indices des produits & services'!AC$31),NA()) -> 1.038006757 | ES117: =IFERROR(IF('Indices des produits & services'!AD36/'Indices des produits & services'!AD$31=0,NA(),'Indices des produits & services'!AD36/'Indices des produits & services'!AD$31),NA()) -> 1.024513948 | ET117: =IFERROR(IF('Indices des produits & services'!AE36/'Indices des produits & services'!AE$31=0,NA(),'Indices des produits & services'!AE36/'Indices des produits & services'!AE$31),NA()) -> 1.025902669 | EU117: =IFERROR(IF('Indices des produits & services'!AF36/'Indices des produits & services'!AF$31=0,NA(),'Indices des produits & services'!AF36/'Indices des produits & services'!AF$31),NA()) -> 1.000868056 | EV117: =IFERROR(IF('Indices des produits & services'!AG36/'Indices des produits & services'!AG$31=0,NA(),'Indices des produits & services'!AG36/'Indices des produits & services'!AG$31),NA()) -> 1.025962399 | EW117: =IFERROR(IF('Indices des produits & services'!AH36/'Indices des produits & services'!AH$31=0,NA(),'Indices des produits & services'!AH36/'Indices des produits & services'!AH$31),NA()) -> 1.110215054 | EX117: =IFERROR(IF('Indices des produits & services'!AI36/'Indices des produits & services'!AI$31=0,NA(),'Indices des produits & services'!AI36/'Indices des produits & services'!AI$31),NA()) -> 1.019264448 | EY117: =IFERROR(IF('Indices des produits & services'!AJ36/'Indices des produits & services'!AJ$31=0,NA(),'Indices des produits & services'!AJ36/'Indices des produits & services'!AJ$31),NA()) -> 1.033591731 | EZ117: =IFERROR(IF('Indices des produits & services'!AK36/'Indices des produits & services'!AK$31=0,NA(),'Indices des produits & services'!AK36/'Indices des produits & services'!AK$31),NA()) -> 0.9440124417 | FA117: =IFERROR(IF('Indices des produits & services'!AL36/'Indices des produits & services'!AL$31=0,NA(),'Indices des produits & services'!AL36/'Indices des produits & services'!AL$31),NA()) -> 0.9983879635 | FB117: =IFERROR(IF('Indices des produits & services'!AM36/'Indices des produits & services'!AM$31=0,NA(),'Indices des produits & services'!AM36/'Indices des produits & services'!AM$31),NA()) -> 1.057843996 | FC117: =IFERROR(IF('Indices des produits & services'!AN36/'Indices des produits & services'!AN$31=0,NA(),'Indices des produits & services'!AN36/'Indices des produits & services'!AN$31),NA()) -> 1.00233463 | FD117: =IFERROR(IF('Indices des produits & services'!AO36/'Indices des produits & services'!AO$31=0,NA(),'Indices des produits & services'!AO36/'Indices des produits & services'!AO$31),NA()) -> 1.008857396 | FE117: =IFERROR(IF('Indices des produits & services'!AP36/'Indices des produits & services'!AP$31=0,NA(),'Indices des produits & services'!AP36/'Indices des produits & services'!AP$31),NA()) -> 0.9982222222 | FF117: =IFERROR(IF('Indices des produits & services'!AQ36/'Indices des produits & services'!AQ$31=0,NA(),'Indices des produits & services'!AQ36/'Indices des produits & services'!AQ$31),NA()) -> 1.009751773 | FG117: =IFERROR(IF('Indices des produits & services'!AR36/'Indices des produits & services'!AR$31=0,NA(),'Indices des produits & services'!AR36/'Indices des produits & services'!AR$31),NA()) -> 1.006896552 | FH117: =IFERROR(IF('Indices des produits & services'!AS36/'Indices des produits & services'!AS$31=0,NA(),'Indices des produits & services'!AS36/'Indices des produits & services'!AS$31),NA()) -> 1.019809826 | FI117: =IFERROR(IF('Indices des produits & services'!AT36/'Indices des produits & services'!AT$31=0,NA(),'Indices des produits & services'!AT36/'Indices des produits & services'!AT$31),NA()) -> 1.02901354 | FJ117: =IFERROR(IF('Indices des produits & services'!AU36/'Indices des produits & services'!AU$31=0,NA(),'Indices des produits & services'!AU36/'Indices des produits & services'!AU$31),NA()) -> 1.026565465 | FK117: =IFERROR(IF('Indices des produits & services'!AV36/'Indices des produits & services'!AV$31=0,NA(),'Indices des produits & services'!AV36/'Indices des produits & services'!AV$31),NA()) -> 1.037260826 | FL117: =IFERROR(IF('Indices des produits & services'!AW36/'Indices des produits & services'!AW$31=0,NA(),'Indices des produits & services'!AW36/'Indices des produits & services'!AW$31),NA()) -> 1.117977528 | FM117: =IFERROR(IF('Indices des produits & services'!AX36/'Indices des produits & services'!AX$31=0,NA(),'Indices des produits & services'!AX36/'Indices des produits & services'!AX$31),NA()) -> 1.01453958 | FN117: =IFERROR(IF('Indices des produits & services'!AY36/'Indices des produits & services'!AY$31=0,NA(),'Indices des produits & services'!AY36/'Indices des produits & services'!AY$31),NA()) -> 1.01453958 | FO117: =IFERROR(IF('Indices des produits & services'!AZ36/'Indices des produits & services'!AZ$31=0,NA(),'Indices des produits & services'!AZ36/'Indices des produits & services'!AZ$31),NA()) -> 1.029585799 | FP117: =IFERROR(IF('Indices des produits & services'!BA36/'Indices des produits & services'!BA$31=0,NA(),'Indices des produits & services'!BA36/'Indices des produits & services'!BA$31),NA()) -> 1.047227926 | FQ117: =IFERROR(IF('Indices des produits & services'!BB36/'Indices des produits & services'!BB$31=0,NA(),'Indices des produits & services'!BB36/'Indices des produits & services'!BB$31),NA()) -> 1.02266289 | FR117: =IFERROR(IF('Indices des produits & services'!BC36/'Indices des produits & services'!BC$31=0,NA(),'Indices des produits & services'!BC36/'Indices des produits & services'!BC$31),NA()) -> 1.028284672 | FS117: =IFERROR(IF('Indices des produits & services'!BD36/'Indices des produits & services'!BD$31=0,NA(),'Indices des produits & services'!BD36/'Indices des produits & services'!BD$31),NA()) -> 1.017489712 | FT117: =IFERROR(IF('Indices des produits & services'!BE36/'Indices des produits & services'!BE$31=0,NA(),'Indices des produits & services'!BE36/'Indices des produits & services'!BE$31),NA()) -> 0.996039604 | FU117: =IFERROR(IF('Indices des produits & services'!BF36/'Indices des produits & services'!BF$31=0,NA(),'Indices des produits & services'!BF36/'Indices des produits & services'!BF$31),NA()) -> 1.003734827 | FV117: =IFERROR(IF('Indices des produits & services'!BG36/'Indices des produits & services'!BG$31=0,NA(),'Indices des produits & services'!BG36/'Indices des produits & services'!BG$31),NA()) -> 1.0304 | FW117: =IFERROR(IF('Indices des produits & services'!BH36/'Indices des produits & services'!BH$31=0,NA(),'Indices des produits & services'!BH36/'Indices des produits & services'!BH$31),NA()) -> 1.004893964 | FX117: =IFERROR(IF('Indices des produits & services'!BI36/'Indices des produits & services'!BI$31=0,NA(),'Indices des produits & services'!BI36/'Indices des produits & services'!BI$31),NA()) -> 1.0296875 | FY117: =IFERROR(IF('Indices des produits & services'!BJ36/'Indices des produits & services'!BJ$31=0,NA(),'Indices des produits & services'!BJ36/'Indices des produits & services'!BJ$31),NA()) -> 0.9886255924 | FZ117: =IFERROR(IF('Indices des produits & services'!BK36/'Indices des produits & services'!BK$31=0,NA(),'Indices des produits & services'!BK36/'Indices des produits & services'!BK$31),NA()) -> 0.9876893939 | GA117: =IFERROR(IF('Indices des produits & services'!BL36/'Indices des produits & services'!BL$31=0,NA(),'Indices des produits & services'!BL36/'Indices des produits & services'!BL$31),NA()) -> 0.9991438356 | GB117: =IFERROR(IF('Indices des produits & services'!BM36/'Indices des produits & services'!BM$31=0,NA(),'Indices des produits & services'!BM36/'Indices des produits & services'!BM$31),NA()) -> 1.001754386 | GC117: =IFERROR(IF('Indices des produits & services'!BN36/'Indices des produits & services'!BN$31=0,NA(),'Indices des produits & services'!BN36/'Indices des produits & services'!BN$31),NA()) -> 1.018442623 | GD117: =IFERROR(IF('Indices des produits & services'!BO36/'Indices des produits & services'!BO$31=0,NA(),'Indices des produits & services'!BO36/'Indices des produits & services'!BO$31),NA()) -> 1.024021352 | GE117: =IFERROR(IF('Indices des produits & services'!BP36/'Indices des produits & services'!BP$31=0,NA(),'Indices des produits & services'!BP36/'Indices des produits & services'!BP$31),NA()) -> 1.026794258 | GF117: =IFERROR(IF('Indices des produits & services'!BQ36/'Indices des produits & services'!BQ$31=0,NA(),'Indices des produits & services'!BQ36/'Indices des produits & services'!BQ$31),NA()) -> 1.007194245 | GG117: =IFERROR(IF('Indices des produits & services'!BR36/'Indices des produits & services'!BR$31=0,NA(),'Indices des produits & services'!BR36/'Indices des produits & services'!BR$31),NA()) -> 1.010091743 | GH117: =IFERROR(IF('Indices des produits & services'!BS36/'Indices des produits & services'!BS$31=0,NA(),'Indices des produits & services'!BS36/'Indices des produits & services'!BS$31),NA()) -> 1.00174216 | GI117: =IFERROR(IF('Indices des produits & services'!BT36/'Indices des produits & services'!BT$31=0,NA(),'Indices des produits & services'!BT36/'Indices des produits & services'!BT$31),NA()) -> 1.022913257 | GJ117: =IFERROR(IF('Indices des produits & services'!BU36/'Indices des produits & services'!BU$31=0,NA(),'Indices des produits & services'!BU36/'Indices des produits & services'!BU$31),NA()) -> 1.038528897 | GK117: =IFERROR(IF('Indices des produits & services'!BV36/'Indices des produits & services'!BV$31=0,NA(),'Indices des produits & services'!BV36/'Indices des produits & services'!BV$31),NA()) -> 1.022727273 | GL117: =IFERROR(IF('Indices des produits & services'!BW36/'Indices des produits & services'!BW$31=0,NA(),'Indices des produits & services'!BW36/'Indices des produits & services'!BW$31),NA()) -> 1 | GM117: =IFERROR(IF('Indices des produits & services'!BX36/'Indices des produits & services'!BX$31=0,NA(),'Indices des produits & services'!BX36/'Indices des produits & services'!BX$31),NA()) -> 1.020869565 | GN117: =IFERROR(IF('Indices des produits & services'!BY36/'Indices des produits & services'!BY$31=0,NA(),'Indices des produits & services'!BY36/'Indices des produits & services'!BY$31),NA()) -> 1.017215569 | GO117: =IFERROR(IF('Indices des produits & services'!BZ36/'Indices des produits & services'!BZ$31=0,NA(),'Indices des produits & services'!BZ36/'Indices des produits & services'!BZ$31),NA()) -> 1.019572954 | GP117: =IFERROR(IF('Indices des produits & services'!CA36/'Indices des produits & services'!CA$31=0,NA(),'Indices des produits & services'!CA36/'Indices des produits & services'!CA$31),NA()) -> 1.058187864 | GQ117: =IFERROR(IF('Indices des produits & services'!CB36/'Indices des produits & services'!CB$31=0,NA(),'Indices des produits & services'!CB36/'Indices des produits & services'!CB$31),NA()) -> 1.004643963 | GR117: =IFERROR(IF('Indices des produits & services'!CC36/'Indices des produits & services'!CC$31=0,NA(),'Indices des produits & services'!CC36/'Indices des produits & services'!CC$31),NA()) -> 1.005314438 | GS117: =IFERROR(IF('Indices des produits & services'!CD36/'Indices des produits & services'!CD$31=0,NA(),'Indices des produits & services'!CD36/'Indices des produits & services'!CD$31),NA()) -> 1.011948529 | GT117: =IFERROR(IF('Indices des produits & services'!CE36/'Indices des produits & services'!CE$31=0,NA(),'Indices des produits & services'!CE36/'Indices des produits & services'!CE$31),NA()) -> 1.0039801 | GU117: =IFERROR(IF('Indices des produits & services'!CF36/'Indices des produits & services'!CF$31=0,NA(),'Indices des produits & services'!CF36/'Indices des produits & services'!CF$31),NA()) -> 1.006145742 | GV117: =IFERROR(IF('Indices des produits & services'!CG36/'Indices des produits & services'!CG$31=0,NA(),'Indices des produits & services'!CG36/'Indices des produits & services'!CG$31),NA()) -> 1 | GW117: =IFERROR(IF('Indices des produits & services'!CH36/'Indices des produits & services'!CH$31=0,NA(),'Indices des produits & services'!CH36/'Indices des produits & services'!CH$31),NA()) -> 1.004444444 | GX117: =IFERROR(IF('Indices des produits & services'!CI36/'Indices des produits & services'!CI$31=0,NA(),'Indices des produits & services'!CI36/'Indices des produits & services'!CI$31),NA()) -> 1.017526777 | GY117: =IFERROR(IF('Indices des produits & services'!CJ36/'Indices des produits & services'!CJ$31=0,NA(),'Indices des produits & services'!CJ36/'Indices des produits & services'!CJ$31),NA()) -> 1.001052632 | GZ117: =IFERROR(IF('Indices des produits & services'!CK36/'Indices des produits & services'!CK$31=0,NA(),'Indices des produits & services'!CK36/'Indices des produits & services'!CK$31),NA()) -> 0.9829123328 | HA117: =IFERROR(IF('Indices des produits & services'!CL36/'Indices des produits & services'!CL$31=0,NA(),'Indices des produits & services'!CL36/'Indices des produits & services'!CL$31),NA()) -> 0.9929971989 | HB117: =IFERROR(IF('Indices des produits & services'!CM36/'Indices des produits & services'!CM$31=0,NA(),'Indices des produits & services'!CM36/'Indices des produits & services'!CM$31),NA()) -> 0.9502923977 | HC117: =IFERROR(IF('Indices des produits & services'!CN36/'Indices des produits & services'!CN$31=0,NA(),'Indices des produits & services'!CN36/'Indices des produits & services'!CN$31),NA()) -> 1.00090009 | HE117: =Tableau21[[#This Row],[Période]] -> 2018-06-01 | HF117: =IFERROR(IF('Indices courants'!J34/'Indices courants'!J$29=0,NA(),'Indices courants'!J34/'Indices courants'!J$29),NA()) -> 0.9954946257 | HG117: =IFERROR(IF('Indices courants'!K34/'Indices courants'!K$29=0,NA(),'Indices courants'!K34/'Indices courants'!K$29),NA()) -> 0.9956812919 | HH117: =IFERROR(IF('Indices courants'!L34/'Indices courants'!L$29=0,NA(),'Indices courants'!L34/'Indices courants'!L$29),NA()) -> 0.9957119159 | HI117: =IFERROR(IF('Indices courants'!M34/'Indices courants'!M$29=0,NA(),'Indices courants'!M34/'Indices courants'!M$29),NA()) -> 0.9954899813 | HJ117: =IFERROR(IF('Indices courants'!N34/'Indices courants'!N$29=0,NA(),'Indices courants'!N34/'Indices courants'!N$29),NA()) -> 0.9956769626 | HK117: =IFERROR(IF('Indices courants'!O34/'Indices courants'!O$29=0,NA(),'Indices courants'!O34/'Indices courants'!O$29),NA()) -> 0.9956762854 | HL117: =IFERROR(IF('Indices courants'!P34/'Indices courants'!P$29=0,NA(),'Indices courants'!P34/'Indices courants'!P$29),NA()) -> 0.9952943499 | HM117: =IFERROR(IF('Indices courants'!Q34/'Indices courants'!Q$29=0,NA(),'Indices courants'!Q34/'Indices courants'!Q$29),NA()) -> 0.9954907416 | HN117: =IFERROR(IF('Indices courants'!R34/'Indices courants'!R$29=0,NA(),'Indices courants'!R34/'Indices courants'!R$29),NA()) -> 0.9954900205 | HO117: =IFERROR(IF('Indices courants'!S34/'Indices courants'!S$29=0,NA(),'Indices courants'!S34/'Indices courants'!S$29),NA()) -> 0.995183141 | HP117: =IFERROR(IF('Indices courants'!T34/'Indices courants'!T$29=0,NA(),'Indices courants'!T34/'Indices courants'!T$29),NA()) -> 0.9953858652 | HQ117: =IFERROR(IF('Indices courants'!U34/'Indices courants'!U$29=0,NA(),'Indices courants'!U34/'Indices courants'!U$29),NA()) -> 0.9953851154 | HR117: =IFERROR(IF('Indices courants'!V34/'Indices courants'!V$29=0,NA(),'Indices courants'!V34/'Indices courants'!V$29),NA()) -> 1.000795355 | HS117: =IFERROR(IF('Indices courants'!W34/'Indices courants'!W$29=0,NA(),'Indices courants'!W34/'Indices courants'!W$29),NA()) -> 1.000747737 | HT117: =IFERROR(IF('Indices courants'!X34/'Indices courants'!X$29=0,NA(),'Indices courants'!X34/'Indices courants'!X$29),NA()) -> 1.052807224 | HU117: =IFERROR(IF('Indices courants'!Y34/'Indices courants'!Y$29=0,NA(),'Indices courants'!Y34/'Indices courants'!Y$29),NA()) -> 1.068114511 | HV117: =IFERROR(IF('Indices courants'!Z34/'Indices courants'!Z$29=0,NA(),'Indices courants'!Z34/'Indices courants'!Z$29),NA()) -> 1.038026256 | HW117: =IFERROR(IF('Indices courants'!AA34/'Indices courants'!AA$29=0,NA(),'Indices courants'!AA34/'Indices courants'!AA$29),NA()) -> 1.058877986 | HX117: =IFERROR(IF('Indices courants'!AB34/'Indices courants'!AB$29=0,NA(),'Indices courants'!AB34/'Indices courants'!AB$29),NA()) -> 1.041469194 | HY117: =IFERROR(IF('Indices courants'!AC34/'Indices courants'!AC$29=0,NA(),'Indices courants'!AC34/'Indices courants'!AC$29),NA()) -> 1.069134792 | HZ117: =Tableau21[[#This Row],[Evolution des prix selon formule de révision - indice i 2021]] -> 1.00431 | IA117: =Tableau21[[#This Row],[Evolution des prix selon formule de révision - indice i]] -> 1.0079 | IB117: =Tableau21[[#This Row],[Augmentation mois par mois - selon indice i 2021]] -> 1.00139 | IC117: =Tableau21[[#This Row],[Augmentation mois par mois - selon indice i ]] -> 1.00497 | ID117: =IFERROR(IF('Indexations des salaires par CP'!BY43/'Indexations des salaires par CP'!BY$38=0,NA(),'Indexations des salaires par CP'!BY43/'Indexations des salaires par CP'!BY$38),NA()) -> 1.004216093 | IE117: =IFERROR(IF('Indexations des salaires par CP'!BZ43/'Indexations des salaires par CP'!BZ$38=0,NA(),'Indexations des salaires par CP'!BZ43/'Indexations des salaires par CP'!BZ$38),NA()) -> 1 | IF117: =IFERROR(IF('Indexations des salaires par CP'!CA43/'Indexations des salaires par CP'!CA$38=0,NA(),'Indexations des salaires par CP'!CA43/'Indexations des salaires par CP'!CA$38),NA()) -> 1 | IG117: =IFERROR(IF('Indexations des salaires par CP'!CB43/'Indexations des salaires par CP'!CB$38=0,NA(),'Indexations des salaires par CP'!CB43/'Indexations des salaires par CP'!CB$38),NA()) -> 1.019855596 | IH117: =IFERROR(IF('Indexations des salaires par CP'!CC43/'Indexations des salaires par CP'!CC$38=0,NA(),'Indexations des salaires par CP'!CC43/'Indexations des salaires par CP'!CC$38),NA()) -> 1 | II117: =IFERROR(IF('Indexations des salaires par CP'!CD43/'Indexations des salaires par CP'!CD$38=0,NA(),'Indexations des salaires par CP'!CD43/'Indexations des salaires par CP'!CD$38),NA()) -> 1 | IJ117: =IFERROR(IF('Indexations des salaires par CP'!CE43/'Indexations des salaires par CP'!CE$38=0,NA(),'Indexations des salaires par CP'!CE43/'Indexations des salaires par CP'!CE$38),NA()) -> 1 | IK117: =IFERROR(IF('Indexations des salaires par CP'!CF43/'Indexations des salaires par CP'!CF$38=0,NA(),'Indexations des salaires par CP'!CF43/'Indexations des salaires par CP'!CF$38),NA()) -> 1.008928571 | IL117: =IFERROR(IF('Indexations des salaires par CP'!CG43/'Indexations des salaires par CP'!CG$38=0,NA(),'Indexations des salaires par CP'!CG43/'Indexations des salaires par CP'!CG$38),NA()) -> 1 | IM117: =IFERROR(IF('Indexations des salaires par CP'!CH43/'Indexations des salaires par CP'!CH$38=0,NA(),'Indexations des salaires par CP'!CH43/'Indexations des salaires par CP'!CH$38),NA()) -> 1
